date,department/service,beneficiary,amount,summary of purpose,category,transaction number,SAP vendor number
01.05.2019,"BOROUGH, BANKSIDE AND WALWORTH COMMUNITY COUNCIL",SOUTHWARK EXPLORERS' CLUB ,500,SOUTHWARK EXPLORERS' CLUB ,GRANT,CHEQUE PAYMENT,CHEQUE PAYMENT
01.05.2019,"BOROUGH, BANKSIDE AND WALWORTH COMMUNITY COUNCIL",SOUTHWARK EXPLORERS' CLUB ,"1,000.00",SOUTHWARK EXPLORERS' CLUB ,GRANT,CHEQUE PAYMENT,CHEQUE PAYMENT
01.05.2019,CHILDREN'S SERVICES,MEDWAY COUNCIL,"16,666.67",CASEWORK OLA  0-8,RECOUPMENT,2102936398,1000021704
01.05.2019,CHILDREN'S SERVICES,MEDWAY COUNCIL,"2,875.00",CASEWORK OLA  0-8,RECOUPMENT,2102936399,1000021704
01.05.2019,CHILDREN'S SERVICES,MEDWAY COUNCIL,"1,244.08",CASEWORK OLA  0-8,RECOUPMENT,2102936400,1000021704
01.05.2019,CHILDREN'S SERVICES,MEDWAY COUNCIL,"-20,785.75",CASEWORK OLA  0-8,RECOUPMENT,2102950774,1000021704
01.05.2019,HOUSING HRA,LAND REGISTRY,576,HOME OWNERSHIP,PROFESSIONAL FEES,6101883133,DIRECT DEBIT PAYMENT
01.05.2019,MODERNISATION HGF,COMENSURA LTD,"407,268.53",WEEKLY PAYMENTS,AGENCY STAFF,5902355809,1000051261
01.05.2019,PECKHAM AND NUNHEAD COMMUNITY COUNCIL,PEOPLE EMPOWERING PEOPLE,"3,000.00",PEOPLE EMPOWERING PEOPLE,GRANT,CHEQUE PAYMENT,CHEQUE PAYMENT
01.05.2019,PECKHAM AND NUNHEAD COMMUNITY COUNCIL,SALEM ACADEMY OF MUSIC ,"2,000.00",SALEM MUSIC EDUCARE ,GRANT,CHEQUE PAYMENT,CHEQUE PAYMENT
02.05.2019,ADULT SOCIAL CARE,PEABODY TRUST,"1,802.28",APPOINTEESHIPS,OTHER PAYMENTS FOR CLIENTS,2102950523,11275862
02.05.2019,ADULT SOCIAL CARE,EQUINOX CARE,"1,730.90",APPOINTEESHIPS,OTHER PAYMENTS FOR CLIENTS,2102950520,11325422
02.05.2019,ADULT SOCIAL CARE,HYDE HOUSING ASSOCIATION LTD,"1,458.35",APPOINTEESHIPS,OTHER PAYMENTS FOR CLIENTS,2102950554,1000013980
02.05.2019,ADULT SOCIAL CARE,EQUINOX CARE,"1,362.75",APPOINTEESHIPS,OTHER PAYMENTS FOR CLIENTS,2102950518,11325422
02.05.2019,ADULT SOCIAL CARE,GOLDEN LANE HOUSING LTD,"1,183.40",APPOINTEESHIPS,OTHER PAYMENTS FOR CLIENTS,2102950563,1000046267
02.05.2019,ADULT SOCIAL CARE,LOOK AHEAD CARE AND SUPPORT LTD,"1,168.95",APPOINTEESHIPS,OTHER PAYMENTS FOR CLIENTS,2102950533,1000072923
02.05.2019,ADULT SOCIAL CARE,HYDE HOUSING ASSOCIATION LTD,"1,061.50",APPOINTEESHIPS,OTHER PAYMENTS FOR CLIENTS,2102950555,1000013980
02.05.2019,ADULT SOCIAL CARE,PEABODY TRUST,798.55,APPOINTEESHIPS,OTHER PAYMENTS FOR CLIENTS,2102950524,11275862
02.05.2019,ADULT SOCIAL CARE,LONDON CYRENIANS HOUSING LTD,750,APPOINTEESHIPS,OTHER PAYMENTS FOR CLIENTS,2102950526,1000078600
02.05.2019,ADULT SOCIAL CARE,HEXAGON HOUSING ASSOCIATION LTD,705.15,APPOINTEESHIPS,OTHER PAYMENTS FOR CLIENTS,2102950521,1000056905
02.05.2019,ADULT SOCIAL CARE,PEABODY TRUST,602.28,APPOINTEESHIPS,OTHER PAYMENTS FOR CLIENTS,2102950525,11275862
02.05.2019,ADULT SOCIAL CARE,STRADA CARE LTD,500,APPOINTEESHIPS,OTHER PAYMENTS FOR CLIENTS,2102950577,1000082133
02.05.2019,ADULT SOCIAL CARE,AMBLESIDE LODGE,450,APPOINTEESHIPS,OTHER PAYMENTS FOR CLIENTS,2102950561,1000042535
02.05.2019,ADULT SOCIAL CARE,PEABODY TRUST,425.17,APPOINTEESHIPS,OTHER PAYMENTS FOR CLIENTS,2102950522,11275862
02.05.2019,ADULT SOCIAL CARE,CYGNET HOSPITAL BURY,425,APPOINTEESHIPS,OTHER PAYMENTS FOR CLIENTS,2102950515,1000079492
02.05.2019,ADULT SOCIAL CARE,DANSHELL GROUP,400,APPOINTEESHIPS,OTHER PAYMENTS FOR CLIENTS,2102950516,1000079284
02.05.2019,ADULT SOCIAL CARE,AFFINITY SUTTON HOMES LTD,399.05,APPOINTEESHIPS,OTHER PAYMENTS FOR CLIENTS,2102950565,1000051647
02.05.2019,ADULT SOCIAL CARE,DINARDO SUPPORTS LTD,378.43,APPOINTEESHIPS,OTHER PAYMENTS FOR CLIENTS,2102950564,1000063093
02.05.2019,ADULT SOCIAL CARE,UPLANDS CARE HOME,375,APPOINTEESHIPS,OTHER PAYMENTS FOR CLIENTS,2102950508,1000014374
02.05.2019,ADULT SOCIAL CARE,SIGNATURE HEALTH & LIVING LTD,350,APPOINTEESHIPS,OTHER PAYMENTS FOR CLIENTS,2102950505,1000079189
02.05.2019,ADULT SOCIAL CARE,CRYSTAL MANAGEMENT SERVICE LTD,350,APPOINTEESHIPS,OTHER PAYMENTS FOR CLIENTS,2102950513,1000053550
02.05.2019,ADULT SOCIAL CARE,ELIZABETH PETERS CARE HOMES LTD,350,APPOINTEESHIPS,OTHER PAYMENTS FOR CLIENTS,2102950517,1000078858
02.05.2019,ADULT SOCIAL CARE,POP INN CAFE,350,APPOINTEESHIPS,OTHER PAYMENTS FOR CLIENTS,2102950542,1000079353
02.05.2019,ADULT SOCIAL CARE,LOOK AHEAD CARE AND SUPPORT LTD,347.6,APPOINTEESHIPS,OTHER PAYMENTS FOR CLIENTS,2102950532,1000072923
02.05.2019,ADULT SOCIAL CARE,THAMES WATER UTILITIES LTD,334.61,APPOINTEESHIPS,OTHER PAYMENTS FOR CLIENTS,2102950503,11003005
02.05.2019,ADULT SOCIAL CARE,WINDSOR WALK HOUSING ASSOCIATION,330.25,APPOINTEESHIPS,OTHER PAYMENTS FOR CLIENTS,2102950569,1012653
02.05.2019,ADULT SOCIAL CARE,GLEN CARE GROUP,300,APPOINTEESHIPS,OTHER PAYMENTS FOR CLIENTS,2102950558,1000050223
02.05.2019,ADULT SOCIAL CARE,THAMES WATER UTILITIES LTD,270.34,APPOINTEESHIPS,OTHER PAYMENTS FOR CLIENTS,2102950502,11003005
02.05.2019,ADULT SOCIAL CARE,REDACTED PERSONAL DATA,850,APPOINTEESHIPS,OTHER PAYMENTS FOR CLIENTS,REDACTED,REDACTED
02.05.2019,ADULT SOCIAL CARE,REDACTED PERSONAL DATA,729.25,APPOINTEESHIPS,OTHER PAYMENTS FOR CLIENTS,REDACTED,REDACTED
02.05.2019,ADULT SOCIAL CARE,REDACTED PERSONAL DATA,600,APPOINTEESHIPS,OTHER PAYMENTS FOR CLIENTS,REDACTED,REDACTED
02.05.2019,ADULT SOCIAL CARE,REDACTED PERSONAL DATA,550,APPOINTEESHIPS,OTHER PAYMENTS FOR CLIENTS,REDACTED,REDACTED
02.05.2019,ADULT SOCIAL CARE,REDACTED PERSONAL DATA,500,APPOINTEESHIPS,OTHER PAYMENTS FOR CLIENTS,REDACTED,REDACTED
02.05.2019,ADULT SOCIAL CARE,REDACTED PERSONAL DATA,460,APPOINTEESHIPS,OTHER PAYMENTS FOR CLIENTS,REDACTED,REDACTED
02.05.2019,ADULT SOCIAL CARE,REDACTED PERSONAL DATA,400,APPOINTEESHIPS,OTHER PAYMENTS FOR CLIENTS,REDACTED,REDACTED
02.05.2019,ADULT SOCIAL CARE,REDACTED PERSONAL DATA,400,APPOINTEESHIPS,OTHER PAYMENTS FOR CLIENTS,REDACTED,REDACTED
02.05.2019,ADULT SOCIAL CARE,REDACTED PERSONAL DATA,400,APPOINTEESHIPS,OTHER PAYMENTS FOR CLIENTS,REDACTED,REDACTED
02.05.2019,ADULT SOCIAL CARE,REDACTED PERSONAL DATA,325,APPOINTEESHIPS,OTHER PAYMENTS FOR CLIENTS,REDACTED,REDACTED
02.05.2019,ADULT SOCIAL CARE,THE CAMDEN SOCIETY (SOCIAL CARE),704,LD LTS 18-64,DAYCARE,2102950687,1000036369
02.05.2019,ADULT SOCIAL CARE,THE CAMDEN SOCIETY (SOCIAL CARE),704,LD LTS 18-64,DAYCARE,2102950688,1000036369
02.05.2019,ADULT SOCIAL CARE,THE CAMDEN SOCIETY (SOCIAL CARE),704,LD LTS 18-64,DAYCARE,2102950689,1000036369
02.05.2019,ADULT SOCIAL CARE,THE CAMDEN SOCIETY (SOCIAL CARE),704,LD LTS 18-64,DAYCARE,2102950690,1000036369
02.05.2019,ADULT SOCIAL CARE,THE CAMDEN SOCIETY (SOCIAL CARE),704,LD LTS 18-64,DAYCARE,2102950691,1000036369
02.05.2019,ADULT SOCIAL CARE,THE CAMDEN SOCIETY (SOCIAL CARE),704,LD LTS 18-64,DAYCARE,2102950692,1000036369
02.05.2019,ADULT SOCIAL CARE,THE CAMDEN SOCIETY (SOCIAL CARE),704,LD LTS 18-64,DAYCARE,2102950693,1000036369
02.05.2019,ADULT SOCIAL CARE,THE CAMDEN SOCIETY (SOCIAL CARE),704,LD LTS 18-64,DAYCARE,2102950694,1000036369
02.05.2019,ADULT SOCIAL CARE,THE CAMDEN SOCIETY (SOCIAL CARE),704,LD LTS 18-64,DAYCARE,2102950695,1000036369
02.05.2019,ADULT SOCIAL CARE,INSPIRE SUPPORT WORKERS LTD,"-1,568.00",LD LTS 18-64,HOMECARE - SPOT,2102950698,1000080725
02.05.2019,ADULT SOCIAL CARE,INSPIRE SUPPORT WORKERS LTD,"4,488.00",LD LTS 18-64,SUPPORTED LIVING,2102950699,1000080725
02.05.2019,ADULT SOCIAL CARE,REMARK LIVING,"1,058.50",LD LTS 18-64,SUPPORTED LIVING,2102950696,1000081741
02.05.2019,ADULT SOCIAL CARE,THAMES HOMECARE SERVICE LTD,930.8,PHY LTS 18-64,HOMECARE - SPOT,2102950656,1000079295
02.05.2019,ADULT SOCIAL CARE,THAMES HOMECARE SERVICE LTD,563.85,PHY LTS 18-64,HOMECARE - SPOT,2102950642,1000079295
02.05.2019,ADULT SOCIAL CARE,THAMES HOMECARE SERVICE LTD,438.55,PHY LTS 18-64,HOMECARE - SPOT,2102950680,1000079295
02.05.2019,ADULT SOCIAL CARE,THAMES HOMECARE SERVICE LTD,380.38,PHY LTS 18-64,HOMECARE - SPOT,2102950614,1000079295
02.05.2019,ADULT SOCIAL CARE,THAMES HOMECARE SERVICE LTD,371.43,PHY LTS 18-64,HOMECARE - SPOT,2102950670,1000079295
02.05.2019,ADULT SOCIAL CARE,THAMES HOMECARE SERVICE LTD,304.3,PHY LTS 18-64,HOMECARE - SPOT,2102950644,1000079295
02.05.2019,ADULT SOCIAL CARE,THAMES HOMECARE SERVICE LTD,250.6,PHY LTS 18-64,HOMECARE - SPOT,2102950647,1000079295
02.05.2019,ADULT SOCIAL CARE,THAMES HOMECARE SERVICE LTD,250.6,PHY LTS 18-64,HOMECARE - SPOT,2102950674,1000079295
02.05.2019,ADULT SOCIAL CARE,REMARK LIVING,"1,012.00",PHY LTS 18-64,SUPPORTED LIVING,2102950697,1000081741
02.05.2019,ADULT SOCIAL CARE,THAMES HOMECARE SERVICE LTD,"1,029.25",PHY LTS 65+,HOMECARE - SPOT,2102950634,1000079295
02.05.2019,ADULT SOCIAL CARE,THAMES HOMECARE SERVICE LTD,707.05,PHY LTS 65+,HOMECARE - SPOT,2102950624,1000079295
02.05.2019,ADULT SOCIAL CARE,THAMES HOMECARE SERVICE LTD,702.58,PHY LTS 65+,HOMECARE - SPOT,2102950654,1000079295
02.05.2019,ADULT SOCIAL CARE,THAMES HOMECARE SERVICE LTD,689.15,PHY LTS 65+,HOMECARE - SPOT,2102950661,1000079295
02.05.2019,ADULT SOCIAL CARE,THAMES HOMECARE SERVICE LTD,563.85,PHY LTS 65+,HOMECARE - SPOT,2102950679,1000079295
02.05.2019,ADULT SOCIAL CARE,THAMES HOMECARE SERVICE LTD,483.3,PHY LTS 65+,HOMECARE - SPOT,2102950658,1000079295
02.05.2019,ADULT SOCIAL CARE,THAMES HOMECARE SERVICE LTD,420.65,PHY LTS 65+,HOMECARE - SPOT,2102950672,1000079295
02.05.2019,ADULT SOCIAL CARE,THAMES HOMECARE SERVICE LTD,407.23,PHY LTS 65+,HOMECARE - SPOT,2102950662,1000079295
02.05.2019,ADULT SOCIAL CARE,THAMES HOMECARE SERVICE LTD,375.9,PHY LTS 65+,HOMECARE - SPOT,2102950612,1000079295
02.05.2019,ADULT SOCIAL CARE,THAMES HOMECARE SERVICE LTD,349.05,PHY LTS 65+,HOMECARE - SPOT,2102950660,1000079295
02.05.2019,ADULT SOCIAL CARE,THAMES HOMECARE SERVICE LTD,344.58,PHY LTS 65+,HOMECARE - SPOT,2102950664,1000079295
02.05.2019,ADULT SOCIAL CARE,THAMES HOMECARE SERVICE LTD,344.58,PHY LTS 65+,HOMECARE - SPOT,2102950673,1000079295
02.05.2019,ADULT SOCIAL CARE,THAMES HOMECARE SERVICE LTD,317.73,PHY LTS 65+,HOMECARE - SPOT,2102950652,1000079295
02.05.2019,ADULT SOCIAL CARE,THAMES HOMECARE SERVICE LTD,299.83,PHY LTS 65+,HOMECARE - SPOT,2102950659,1000079295
02.05.2019,ADULT SOCIAL CARE,THAMES HOMECARE SERVICE LTD,281.93,PHY LTS 65+,HOMECARE - SPOT,2102950665,1000079295
02.05.2019,ADULT SOCIAL CARE,THAMES HOMECARE SERVICE LTD,250.6,PHY LTS 65+,HOMECARE - SPOT,2102950649,1000079295
02.05.2019,ADULT SOCIAL CARE,THAMES HOMECARE SERVICE LTD,255.08,SUB LTS 65+,HOMECARE - SPOT,2102950675,1000079295
02.05.2019,ASSET MANAGEMENT,HIGHER ELEVATION LTD,"4,549.75",ADAPTATIONS,BUILDING R&M,5902356561,1000067328
02.05.2019,CENTRAL FUNCTIONS,TELSOLUTIONS LTD,956.47,OPERATIONAL TEAM,TELEPHONES (MOBILES),5902356577,1000074033
02.05.2019,CENTRAL FUNCTIONS,TELSOLUTIONS LTD,829.44,OPERATIONAL TEAM,TELEPHONES (MOBILES),5902356574,1000074033
02.05.2019,CHIEF EXECUTIVE,TRANSPORT FOR LONDON,"5,000.00",CAPITAL PS (REGEN),CONSTR'N SUB CONTRACT - NON CERTIFICATED,2102950487,3000001395
02.05.2019,CHIEF EXECUTIVE,RED R DESIGN,575,CAPITAL PS (REGEN),CONSTR'N SUB CONTRACT - NON CERTIFICATED,5902356780,1000035984
02.05.2019,CHIEF EXECUTIVE,FAITHFUL & GOULD,"3,952.00",CAPITAL PS (STRAT SERV),CONSTRUCTION FEES - QUANTITY SURVEYOR,5902356756,1000061390
02.05.2019,CHIEF EXECUTIVE'S OFFICE,BAS CONSULTANCY LTD,"3,400.00",BUSINESS SUPPORT,GRANTS,5902356730,1000082570
02.05.2019,CHILDREN'S SERVICES,FOLLOWING WHISPERS FAMILY SERVICE LTD,"6,642.90",AGENCY FOSTERING,EXTERNAL AGENCIES AND BODIES,2102950711,1000065611
02.05.2019,CHILDREN'S SERVICES,FOLLOWING WHISPERS FAMILY SERVICE LTD,"6,315.00",AGENCY FOSTERING,EXTERNAL AGENCIES AND BODIES,2102950707,1000065611
02.05.2019,CHILDREN'S SERVICES,BY THE BRIDGE LTD,"6,030.00",AGENCY FOSTERING,EXTERNAL AGENCIES AND BODIES,2102950718,1000043961
02.05.2019,CHILDREN'S SERVICES,SHARED CARE SERVICES LTD,"5,650.20",AGENCY FOSTERING,EXTERNAL AGENCIES AND BODIES,2102950710,1000080308
02.05.2019,CHILDREN'S SERVICES,BY THE BRIDGE LTD,"5,571.43",AGENCY FOSTERING,EXTERNAL AGENCIES AND BODIES,2102950716,1000043961
02.05.2019,CHILDREN'S SERVICES,BY THE BRIDGE LTD,"5,292.86",AGENCY FOSTERING,EXTERNAL AGENCIES AND BODIES,2102950709,1000043961
02.05.2019,CHILDREN'S SERVICES,BY THE BRIDGE LTD,"5,292.86",AGENCY FOSTERING,EXTERNAL AGENCIES AND BODIES,2102950730,1000043961
02.05.2019,CHILDREN'S SERVICES,BY THE BRIDGE LTD,"5,292.86",AGENCY FOSTERING,EXTERNAL AGENCIES AND BODIES,2102950733,1000043961
02.05.2019,CHILDREN'S SERVICES,FOSTERING SUPPORT GROUP LTD,"4,799.76",AGENCY FOSTERING,EXTERNAL AGENCIES AND BODIES,2102950724,1000065830
02.05.2019,CHILDREN'S SERVICES,BY THE BRIDGE LTD,"4,745.36",AGENCY FOSTERING,EXTERNAL AGENCIES AND BODIES,2102950717,1000043961
02.05.2019,CHILDREN'S SERVICES,BY THE BRIDGE LTD,"4,745.36",AGENCY FOSTERING,EXTERNAL AGENCIES AND BODIES,2102950734,1000043961
02.05.2019,CHILDREN'S SERVICES,ST CHRISTOPHER FELLOWSHIP,"4,727.10",AGENCY FOSTERING,EXTERNAL AGENCIES AND BODIES,2102950706,1000045269
02.05.2019,CHILDREN'S SERVICES,ST CHRISTOPHER FELLOWSHIP,"4,727.10",AGENCY FOSTERING,EXTERNAL AGENCIES AND BODIES,2102950726,1000045269
02.05.2019,CHILDREN'S SERVICES,BY THE BRIDGE LTD,"4,650.47",AGENCY FOSTERING,EXTERNAL AGENCIES AND BODIES,2102950720,1000043961
02.05.2019,CHILDREN'S SERVICES,BY THE BRIDGE LTD,"4,650.47",AGENCY FOSTERING,EXTERNAL AGENCIES AND BODIES,2102950731,1000043961
02.05.2019,CHILDREN'S SERVICES,BY THE BRIDGE LTD,"4,523.49",AGENCY FOSTERING,EXTERNAL AGENCIES AND BODIES,2102950715,1000043961
02.05.2019,CHILDREN'S SERVICES,BY THE BRIDGE LTD,"4,433.01",AGENCY FOSTERING,EXTERNAL AGENCIES AND BODIES,2102950727,1000043961
02.05.2019,CHILDREN'S SERVICES,BY THE BRIDGE LTD,"4,422.60",AGENCY FOSTERING,EXTERNAL AGENCIES AND BODIES,2102950713,1000043961
02.05.2019,CHILDREN'S SERVICES,BY THE BRIDGE LTD,"4,422.60",AGENCY FOSTERING,EXTERNAL AGENCIES AND BODIES,2102950722,1000043961
02.05.2019,CHILDREN'S SERVICES,BY THE BRIDGE LTD,"4,422.60",AGENCY FOSTERING,EXTERNAL AGENCIES AND BODIES,2102950729,1000043961
02.05.2019,CHILDREN'S SERVICES,BY THE BRIDGE LTD,"4,422.60",AGENCY FOSTERING,EXTERNAL AGENCIES AND BODIES,2102950732,1000043961
02.05.2019,CHILDREN'S SERVICES,BY THE BRIDGE LTD,"4,359.64",AGENCY FOSTERING,EXTERNAL AGENCIES AND BODIES,2102950721,1000043961
02.05.2019,CHILDREN'S SERVICES,BY THE BRIDGE LTD,"4,331.44",AGENCY FOSTERING,EXTERNAL AGENCIES AND BODIES,2102950725,1000043961
02.05.2019,CHILDREN'S SERVICES,BY THE BRIDGE LTD,"4,297.33",AGENCY FOSTERING,EXTERNAL AGENCIES AND BODIES,2102950708,1000043961
02.05.2019,CHILDREN'S SERVICES,BY THE BRIDGE LTD,"4,297.33",AGENCY FOSTERING,EXTERNAL AGENCIES AND BODIES,2102950736,1000043961
02.05.2019,CHILDREN'S SERVICES,BY THE BRIDGE LTD,"4,206.86",AGENCY FOSTERING,EXTERNAL AGENCIES AND BODIES,2102950728,1000043961
02.05.2019,CHILDREN'S SERVICES,BY THE BRIDGE LTD,"4,082.44",AGENCY FOSTERING,EXTERNAL AGENCIES AND BODIES,2102950735,1000043961
02.05.2019,CHILDREN'S SERVICES,DIVERSITY FOSTER CARE LTD,"3,976.16",AGENCY FOSTERING,EXTERNAL AGENCIES AND BODIES,2102950704,1000081399
02.05.2019,CHILDREN'S SERVICES,DIVERSITY FOSTER CARE LTD,"3,976.16",AGENCY FOSTERING,EXTERNAL AGENCIES AND BODIES,2102950712,1000081399
02.05.2019,CHILDREN'S SERVICES,FUSION FOSTERING LTD,"3,646.07",AGENCY FOSTERING,EXTERNAL AGENCIES AND BODIES,2102950714,1000081674
02.05.2019,CHILDREN'S SERVICES,ST CHRISTOPHER FELLOWSHIP,"3,578.70",AGENCY FOSTERING,EXTERNAL AGENCIES AND BODIES,2102950719,1000045269
02.05.2019,CHILDREN'S SERVICES,SWIIS FOSTER CARE LTD,697.97,AGENCY FOSTERING,EXTERNAL AGENCIES AND BODIES,2102950705,1000069633
02.05.2019,CHILDREN'S SERVICES,FLEET TUTORS,"29,470.00",ALTERNATIVE PROVISION,EXTERNAL AGENCIES AND BODIES,5902356751,1000044820
02.05.2019,CHILDREN'S SERVICES,FLEET TUTORS,"-3,028.00",ALTERNATIVE PROVISION,EXTERNAL AGENCIES AND BODIES,5902356754,1000044820
02.05.2019,CHILDREN'S SERVICES,CAVENDISH SCHOOL,755,CASEWORK SOUTHWARK 0-8,CONTRIBUTION TO PROVISIONS (TP PAYMENTS),2102950757,1000024278
02.05.2019,CHILDREN'S SERVICES,CAVENDISH SCHOOL,"9,818.18",CASEWORK SOUTHWARK 0-8,RECOUPMENT,2102950765,1000024278
02.05.2019,CHILDREN'S SERVICES,CAVENDISH SCHOOL,"9,818.18",CASEWORK SOUTHWARK 0-8,RECOUPMENT,2102950769,1000024278
02.05.2019,CHILDREN'S SERVICES,ISABELLE GRAVENSTEIN T/A REVIVAL,696,CENTRAL SUPPORT,OTHER PAYMENTS FOR CLIENTS,5902356551,1000027424
02.05.2019,CHILDREN'S SERVICES,CHARLOTTE NOYES LTD,"1,608.40",CLA TEAM SAFEGUARDING,PROFESSIONAL FEES,5902356587,1000055677
02.05.2019,CHILDREN'S SERVICES,CHARLOTTE NOYES LTD,"1,290.70",CLA TEAM SAFEGUARDING,PROFESSIONAL FEES,5902356593,1000055677
02.05.2019,CHILDREN'S SERVICES,CHARLOTTE NOYES LTD,785.6,CLA TEAM SAFEGUARDING,PROFESSIONAL FEES,5902356592,1000055677
02.05.2019,CHILDREN'S SERVICES,CHARLOTTE NOYES LTD,740.7,CLA TEAM SAFEGUARDING,PROFESSIONAL FEES,5902356588,1000055677
02.05.2019,CHILDREN'S SERVICES,MARTINS UPHOLSTERY SUPPLIES LTD,311,DIRECT DELIVERY,MATERIALS,5902356775,1000049444
02.05.2019,CHILDREN'S SERVICES,FLOURISHING PEOPLE LTD,800,FREE AND EARLY LEARNING TEAM,TRAINING,5902356629,1000081262
02.05.2019,CHILDREN'S SERVICES,FLOURISHING PEOPLE LTD,500,FREE AND EARLY LEARNING TEAM,TRAINING,5902356629,1000081262
02.05.2019,CHILDREN'S SERVICES,FLOURISHING PEOPLE LTD,500,FREE AND EARLY LEARNING TEAM,TRAINING,5902356629,1000081262
02.05.2019,CHILDREN'S SERVICES,FLOURISHING PEOPLE LTD,-500,FREE AND EARLY LEARNING TEAM,TRAINING,5902356630,1000081262
02.05.2019,CHILDREN'S SERVICES,FLOURISHING PEOPLE LTD,-500,FREE AND EARLY LEARNING TEAM,TRAINING,5902356630,1000081262
02.05.2019,CHILDREN'S SERVICES,ST GEORGES CE SCHOOL,"10,000.00",INTERVENTION FUND,MISCELLANEOUS RECHARGES,5902356777,5001000069
02.05.2019,CHILDREN'S SERVICES,HEBER PRIMARY SCHOOL,"5,000.00",INTERVENTION FUND,MISCELLANEOUS RECHARGES,5902356781,5001000035
02.05.2019,CHILDREN'S SERVICES,CAVENDISH SCHOOL,755,PFA TEAM SOUTHWARK 9 PLUS,CONTRIBUTION TO PROVISIONS (TP PAYMENTS),2102950754,1000024278
02.05.2019,CHILDREN'S SERVICES,CAVENDISH SCHOOL,755,PFA TEAM SOUTHWARK 9 PLUS,CONTRIBUTION TO PROVISIONS (TP PAYMENTS),2102950756,1000024278
02.05.2019,CHILDREN'S SERVICES,CAVENDISH SCHOOL,740,PFA TEAM SOUTHWARK 9 PLUS,CONTRIBUTION TO PROVISIONS (TP PAYMENTS),2102950758,1000024278
02.05.2019,CHILDREN'S SERVICES,CAVENDISH SCHOOL,"9,818.18",PFA TEAM SOUTHWARK 9 PLUS,RECOUPMENT,2102950753,1000024278
02.05.2019,CHILDREN'S SERVICES,CAVENDISH SCHOOL,"9,818.18",PFA TEAM SOUTHWARK 9 PLUS,RECOUPMENT,2102950755,1000024278
02.05.2019,CHILDREN'S SERVICES,CAVENDISH SCHOOL,"9,818.18",PFA TEAM SOUTHWARK 9 PLUS,RECOUPMENT,2102950759,1000024278
02.05.2019,CHILDREN'S SERVICES,CAVENDISH SCHOOL,"9,818.18",PFA TEAM SOUTHWARK 9 PLUS,RECOUPMENT,2102950760,1000024278
02.05.2019,CHILDREN'S SERVICES,CAVENDISH SCHOOL,"9,818.18",PFA TEAM SOUTHWARK 9 PLUS,RECOUPMENT,2102950761,1000024278
02.05.2019,CHILDREN'S SERVICES,CAVENDISH SCHOOL,"9,818.18",PFA TEAM SOUTHWARK 9 PLUS,RECOUPMENT,2102950762,1000024278
02.05.2019,CHILDREN'S SERVICES,CAVENDISH SCHOOL,"9,818.18",PFA TEAM SOUTHWARK 9 PLUS,RECOUPMENT,2102950763,1000024278
02.05.2019,CHILDREN'S SERVICES,CAVENDISH SCHOOL,"9,818.18",PFA TEAM SOUTHWARK 9 PLUS,RECOUPMENT,2102950764,1000024278
02.05.2019,CHILDREN'S SERVICES,CAVENDISH SCHOOL,"9,818.18",PFA TEAM SOUTHWARK 9 PLUS,RECOUPMENT,2102950766,1000024278
02.05.2019,CHILDREN'S SERVICES,CAVENDISH SCHOOL,"9,818.18",PFA TEAM SOUTHWARK 9 PLUS,RECOUPMENT,2102950767,1000024278
02.05.2019,CHILDREN'S SERVICES,CAVENDISH SCHOOL,"9,818.18",PFA TEAM SOUTHWARK 9 PLUS,RECOUPMENT,2102950768,1000024278
02.05.2019,CHILDREN'S SERVICES,CAVENDISH SCHOOL,"9,818.18",PFA TEAM SOUTHWARK 9 PLUS,RECOUPMENT,2102950770,1000024278
02.05.2019,CHILDREN'S SERVICES,CAVENDISH SCHOOL,"9,818.18",PFA TEAM SOUTHWARK 9 PLUS,RECOUPMENT,2102950771,1000024278
02.05.2019,CHILDREN'S SERVICES,KEYS CHILDCARE LTD,857.14,RESIDENTIAL,OTHER PAYMENTS FOR CLIENTS,2102950702,1000081582
02.05.2019,CHILDREN'S SERVICES,KISIMUL GROUP LTD,"37,522.95",RESIDENTIAL,RESIDENTIAL CARE,2102950601,1000079657
02.05.2019,CHILDREN'S SERVICES,CAMBIAN AUTISM SERVICES LTD,"30,283.89",RESIDENTIAL,RESIDENTIAL CARE,2102950604,1000074719
02.05.2019,CHILDREN'S SERVICES,THE CHILDRENS TRUST,"23,100.00",RESIDENTIAL,RESIDENTIAL CARE,2102950700,1758469
02.05.2019,CHILDREN'S SERVICES,CHILDHOOD FIRST,"21,484.29",RESIDENTIAL,RESIDENTIAL CARE,2102950703,1000076330
02.05.2019,CHILDREN'S SERVICES,KEYS SPECIALIST RESIDENTIAL CHILDREN'S SERVICES,"21,214.29",RESIDENTIAL,RESIDENTIAL CARE,2102950610,1000081606
02.05.2019,CHILDREN'S SERVICES,THE AMICUS COMMUNITY (ARUNDEL) LTD,"19,907.10",RESIDENTIAL,RESIDENTIAL CARE,2102950599,1000079012
02.05.2019,CHILDREN'S SERVICES,FOOTSTEPS CARE LTD,"16,566.96",RESIDENTIAL,RESIDENTIAL CARE,2102950597,1000045464
02.05.2019,CHILDREN'S SERVICES,CASTLE HOMES LIMITED,"16,344.69",RESIDENTIAL,RESIDENTIAL CARE,2102950608,1000019388
02.05.2019,CHILDREN'S SERVICES,KEYS CHILDCARE LTD,"16,071.43",RESIDENTIAL,RESIDENTIAL CARE,2102950701,1000081582
02.05.2019,CHILDREN'S SERVICES,ST CHRISTOPHER FELLOWSHIP,"14,571.30",RESIDENTIAL,RESIDENTIAL CARE,2102950737,1000045269
02.05.2019,CHILDREN'S SERVICES,HORIZON CARE & EDUCATION GROUP LTD,"14,357.10",RESIDENTIAL,RESIDENTIAL CARE,2102950723,1000075467
02.05.2019,CHILDREN'S SERVICES,CAMBIAN AUTISM SERVICES LTD,"11,097.45",RESIDENTIAL,RESIDENTIAL CARE,2102950606,1000074719
02.05.2019,CHILDREN'S SERVICES,ANNA KOVACEVIC,321.8,SOUTHWARK COSTUME,CONSULTANTS SERVICES,5902356788,1000081151
02.05.2019,COLLECTION FUNDS,MINISTRY OF HOUSING COMMUNITIES & LOCAL GOVERNMENT,"6,812,981.00",NNDR CLG SHARE,EXTERNAL AGENCIES AND BODIES,2102950500,1000081809
02.05.2019,COMMUNITIES,ST OLAVES LTD,"15,000.00",MAYORAL SUPPORT,MISCELLANEOUS EXPENSES,5902356304,1000082640
02.05.2019,COMMUNITIES,S7 CHAUFFEURS LTD,"2,715.00",MAYORAL SUPPORT,MISCELLANEOUS EXPENSES,5902356559,1000075707
02.05.2019,COMMUNITIES,K3 PROPERTY MANAGEMENT LTD,"6,603.00",NO RECOURSE TO PUBLIC FUNDS,ACCOMMODATION CHARGES,5902356596,1000068219
02.05.2019,COMMUNITIES,GROVE HOTEL LTD,"2,170.00",NO RECOURSE TO PUBLIC FUNDS,ACCOMMODATION CHARGES,5902356736,1000043663
02.05.2019,COMMUNITIES,METROPOLITAN SUPPORT TRUST,805.2,NO RECOURSE TO PUBLIC FUNDS,ACCOMMODATION CHARGES,5902356759,1000047547
02.05.2019,COMMUNITIES,GROVE HOTEL LTD,700,NO RECOURSE TO PUBLIC FUNDS,ACCOMMODATION CHARGES,5902356733,1000043663
02.05.2019,COMMUNITIES,METROPOLITAN SUPPORT TRUST,671,NO RECOURSE TO PUBLIC FUNDS,ACCOMMODATION CHARGES,5902356601,1000047547
02.05.2019,COMMUNITIES,THAMES HOMECARE SERVICE LTD,281.93,NO RECOURSE TO PUBLIC FUNDS,HOMECARE - C&V,2102950651,1000079295
02.05.2019,COMMUNITIES,ST MUNGOS,"25,000.00",RADAR-IOM,PROFESSIONAL FEES,5902356739,1000017600
02.05.2019,COMMUNITIES,LONDON COMMUNITY REHABILITATION COMPANY,"13,325.00",RADAR-IOM,PROFESSIONAL FEES,5902356748,1000035629
02.05.2019,CUSTOMER EXPERIENCE HGF,SALT LAKE MEDICAL LTD,"1,548.80",CORONER'S,PROFESSIONAL FEES,5902356589,1000078684
02.05.2019,CUSTOMER EXPERIENCE HGF,CLYDE & CO,"1,111.50",CORONER'S,PROFESSIONAL FEES,5902356668,1000067838
02.05.2019,CUSTOMER EXPERIENCE HGF,SG PATH LTD,595.9,CORONER'S,PROFESSIONAL FEES,5902356550,1000077883
02.05.2019,CUSTOMER EXPERIENCE HGF,IMPERIAL COLLEGE PROJECTS LTD,484,CORONER'S,PROFESSIONAL FEES,5902356720,1000080106
02.05.2019,CUSTOMER EXPERIENCE HGF,IMPERIAL COLLEGE PROJECTS LTD,456,CORONER'S,PROFESSIONAL FEES,5902356728,1000080106
02.05.2019,CUSTOMER EXPERIENCE HGF,IMPERIAL COLLEGE PROJECTS LTD,404,CORONER'S,PROFESSIONAL FEES,5902356725,1000080106
02.05.2019,CUSTOMER EXPERIENCE HGF,CIVICA UK LTD,383.06,CORONER'S,PROFESSIONAL FEES,5902356669,1730625
02.05.2019,CUSTOMER EXPERIENCE HGF,IMPERIAL COLLEGE PROJECTS LTD,368,CORONER'S,PROFESSIONAL FEES,5902356717,1000080106
02.05.2019,CUSTOMER EXPERIENCE HGF,STENFORD PROPERTY LTD,"55,568.05",NIGHTLY TA (NSC),EXTERNAL AGENCIES AND BODIES,5902356584,1000074759
02.05.2019,CUSTOMER EXPERIENCE HGF,NORBURY PROPERTY SERVICES (LONDON) LTD,"44,252.05",NIGHTLY TA (NSC),EXTERNAL AGENCIES AND BODIES,5902356613,1000075566
02.05.2019,CUSTOMER EXPERIENCE HGF,KINDLY PROPERTIES LTD,"21,558.05",NIGHTLY TA (NSC),EXTERNAL AGENCIES AND BODIES,5902356665,1000060734
02.05.2019,CUSTOMER EXPERIENCE HGF,NORBURY PROPERTY SERVICES (LONDON) LTD,"16,862.15",NIGHTLY TA (NSC),EXTERNAL AGENCIES AND BODIES,5902356613,1000075566
02.05.2019,CUSTOMER EXPERIENCE HGF,RAYMOND BAILEY,"2,721.84",PRIVATE SECTOR LEASING,EXTERNAL AGENCIES AND BODIES,2102949804,1000082654
02.05.2019,CUSTOMER EXPERIENCE HGF,RAYMOND BAILEY,750,PRIVATE SECTOR LEASING,EXTERNAL AGENCIES AND BODIES,2102949805,1000082654
02.05.2019,ENVIRONMENT AND LEISURE,GARY WOOLCOMBE,"2,750.00",CAPITAL PS (LEISURE),CONST'N MAIN CONTRACT - NON CERTIFICATED,2102935056,3000001727
02.05.2019,ENVIRONMENT AND LEISURE,RH WROUGHT IRON,"2,230.00",CAPITAL PS (LEISURE),CONST'N MAIN CONTRACT - NON CERTIFICATED,2102950492,3000000680
02.05.2019,ENVIRONMENT AND LEISURE,ROOFF LTD,"87,920.60",CAPITAL PS (LEISURE),CONSTRUCTION FEES  - EXTERNAL,2102950488,3000001090
02.05.2019,ENVIRONMENT AND LEISURE,BREEZE LANDSCAPE ARCHITECTS LTD,"1,325.00",CAPITAL PS (LEISURE),CONSTRUCTION FEES  - EXTERNAL,5902356737,1000078053
02.05.2019,ENVIRONMENT AND LEISURE,WOODCRAFT UK LTD,402,CAPITAL PS (LEISURE),CONSTRUCTION FEES  - EXTERNAL,5902356548,1000080431
02.05.2019,ENVIRONMENT AND LEISURE,HOBART PAVING COMPANY LTD,"9,555.00",CAPITAL PS (LEISURE),CONSTRUCTION FEES - INTERNAL,2102950491,3000001690
02.05.2019,ENVIRONMENT DIRECTORATE,SELECTA UK LTD,398.19,BUSINESS CORE,CATERING MATERIALS & SUPPLIES,5902356556,1000003729
02.05.2019,ENVIRONMENT DIRECTORATE,KENT COUNTY COUNCIL - LASER,"2,247.42",BUSINESS CORE,ELECTRICITY,5902356554,1000012926
02.05.2019,ENVIRONMENT DIRECTORATE,KENT COUNTY COUNCIL - LASER,754.39,BUSINESS CORE,GAS,5902356553,1000012926
02.05.2019,ENVIRONMENT DIRECTORATE,KOMPAN LTD,"4,295.48",PARKS TECH UNIT (PREMISES),OTHER R&M,5902356582,1080346
02.05.2019,ENVIRONMENT DIRECTORATE,UK POWER NETWORKS (OPERATIONS) LTD,505,PUBLIC LIGHTING,SOUTHWARK DIRECT CHARGES,5902356620,1000016085
02.05.2019,ENVIRONMENT DIRECTORATE,UK POWER NETWORKS (OPERATIONS) LTD,505,PUBLIC LIGHTING,SOUTHWARK DIRECT CHARGES,5902356621,1000016085
02.05.2019,ENVIRONMENT DIRECTORATE,UK POWER NETWORKS (OPERATIONS) LTD,482,PUBLIC LIGHTING,SOUTHWARK DIRECT CHARGES,5902356606,1000016085
02.05.2019,ENVIRONMENT DIRECTORATE,UK POWER NETWORKS (OPERATIONS) LTD,482,PUBLIC LIGHTING,SOUTHWARK DIRECT CHARGES,5902356608,1000016085
02.05.2019,ENVIRONMENT DIRECTORATE,UK POWER NETWORKS (OPERATIONS) LTD,482,PUBLIC LIGHTING,SOUTHWARK DIRECT CHARGES,5902356610,1000016085
02.05.2019,ENVIRONMENT DIRECTORATE,UK POWER NETWORKS (OPERATIONS) LTD,482,PUBLIC LIGHTING,SOUTHWARK DIRECT CHARGES,5902356612,1000016085
02.05.2019,ENVIRONMENT DIRECTORATE,UK POWER NETWORKS (OPERATIONS) LTD,482,PUBLIC LIGHTING,SOUTHWARK DIRECT CHARGES,5902356615,1000016085
02.05.2019,ENVIRONMENT DIRECTORATE,UK POWER NETWORKS (OPERATIONS) LTD,482,PUBLIC LIGHTING,SOUTHWARK DIRECT CHARGES,5902356619,1000016085
02.05.2019,ENVIRONMENT DIRECTORATE,UK POWER NETWORKS (OPERATIONS) LTD,482,PUBLIC LIGHTING,SOUTHWARK DIRECT CHARGES,5902356622,1000016085
02.05.2019,ENVIRONMENT DIRECTORATE,UK POWER NETWORKS (OPERATIONS) LTD,482,PUBLIC LIGHTING,SOUTHWARK DIRECT CHARGES,5902356623,1000016085
02.05.2019,F & C S EXCLUDING CORPORATE BUDGETS,TELSOLUTIONS LTD,"2,493.11",ADMINISTRATIVE SUPPORT,TELEPHONES (MOBILES),5902356595,1000074033
02.05.2019,F & C S EXCLUDING CORPORATE BUDGETS,LG FUTURES LTD,"6,090.00",CORPORATE SERVICES AND F&G,SUBSCRIPTIONS,5902356770,1000046563
02.05.2019,F & C S EXCLUDING CORPORATE BUDGETS,CIPFA BUSINESS LTD,295,CORPORATE SERVICES AND F&G,SUBSCRIPTIONS,5902356767,1000024688
02.05.2019,FINANCE & GOVERNANCE,LAND REGISTRY,374,REGENERATION,LEGAL & COURT FEES,6101883466,DIRECT DEBIT PAYMENT
02.05.2019,HOUSING HRA,TRINITY CONSTRUCTION SERVICES LTD,"13,228.40",CAPITAL PS (HRA),CONST'N MAIN CONTRACT - NON CERTIFICATED,2102950490,3000001416
02.05.2019,HOUSING HRA,TRINITY CONSTRUCTION SERVICES LTD,"8,671.00",CAPITAL PS (HRA),CONST'N MAIN CONTRACT - NON CERTIFICATED,2102950485,3000001416
02.05.2019,HOUSING HRA,BRAC CONTRACTS,"161,120.00",CAPITAL PS (HRA),CONSTRUCTION FEES  - EXTERNAL,2102950486,3000002025
02.05.2019,HOUSING HRA,ENGIE REGENERATION (APOLLO) LTD,"278,524.84",CAPITAL PS (HRA),CONSTRUCTION MAIN CONTRACT -CERTIFICATED,2102950489,4000449
02.05.2019,HOUSING HRA,HMCTS,489.74,HOME OWNERSHIP,LEGAL & COURT FEES,CHEQUE PAYMENT,CHEQUE PAYMENT
02.05.2019,HOUSING STRATEGY AND OPTIONS,REDACTED PERSONAL DATA,405,HOMELESS PROJECTS,GRANTS,REDACTED,REDACTED
02.05.2019,HOUSING STRATEGY AND OPTIONS,TREVOR HADJIMINA,"1,213.33",HOMELESS PROJECTS,GRANTS,5902355764,1000082628
02.05.2019,LEISURE DIRECTORATE,KENT COUNTY COUNCIL - LASER,"-1,938.24",PECKHAM LIBRARY,GAS,5902356579,1000012926
02.05.2019,LEISURE DIRECTORATE,ASKEWS & HOLTS LIBRARY SERVICES LTD,"3,396.15",STOCK SERVICES,BOOKS & PUBLICATIONS,5902356758,1494168
02.05.2019,LEISURE DIRECTORATE,ASKEWS & HOLTS LIBRARY SERVICES LTD,717.1,STOCK SERVICES,BOOKS & PUBLICATIONS,5902356762,1494168
02.05.2019,PECKHAM AND NUNHEAD COMMUNITY COUNCIL,LEADERS OF TOMORROW (LOT),"2,000.00",VOLUNTEERING IN THE COMMUNITY,GRANT,CHEQUE PAYMENT,CHEQUE PAYMENT
02.05.2019,PUBLIC HEALTH,CHAPEAU TOWER BRIDGE LTD,"75,000.00","COURAGE YARD, SHAD THAMES",BUILDING R&M,5902356787,1000082561
02.05.2019,PUBLIC HEALTH,NORTHAMPTONSHIRE HEALTHCARE,379,SEXUAL HEALTH - STI,EXTERNAL AGENCIES AND BODIES,5902356729,1000075461
02.05.2019,PUBLIC HEALTH,CHELSEA AND WESTMINSTER HOSPITAL,319.95,SEXUAL HEALTH - STI,EXTERNAL AGENCIES AND BODIES,5902356783,1000072053
02.05.2019,RESIDENT SERVICES,STENFORD PROPERTY LTD,"3,524.70",TA PLACEMENTS,EXTERNAL AGENCIES AND BODIES,5902356580,1000074759
02.05.2019,RESIDENT SERVICES,J & M OASIS LTD,"3,337.00",TA PLACEMENTS,EXTERNAL AGENCIES AND BODIES,5902356598,1000072169
02.05.2019,RESIDENT SERVICES,EDEN ESTATES LONDON LTD,"2,301.00",TA PLACEMENTS,EXTERNAL AGENCIES AND BODIES,5902356607,1000061217
02.05.2019,RESIDENT SERVICES,CITYGLEN LTD,"1,085.00",TA PLACEMENTS,EXTERNAL AGENCIES AND BODIES,5902356604,1000026239
02.05.2019,SOUTHWARK BUILDING SERVICES,TRAVIS PERKINS TRADING COMPANY LTD,680.68,R & M OVERHEADS,MATERIALS,5902356696,1514319
02.05.2019,SOUTHWARK BUILDING SERVICES,TRAVIS PERKINS TRADING COMPANY LTD,570,R & M OVERHEADS,MATERIALS,5902356697,1514319
02.05.2019,SOUTHWARK BUILDING SERVICES,TRAVIS PERKINS TRADING COMPANY LTD,520,R & M OVERHEADS,MATERIALS,5902356727,1514319
02.05.2019,SOUTHWARK BUILDING SERVICES,TRAVIS PERKINS TRADING COMPANY LTD,270.24,R & M OVERHEADS,MATERIALS,5902356692,1514319
02.05.2019,SOUTHWARK BUILDING SERVICES,TRAVIS PERKINS TRADING COMPANY LTD,264.15,R & M OVERHEADS,MATERIALS,5902356673,1514319
02.05.2019,STRATEGIC FINANCING BUDGETS,ALLIANCE BERNSTEIN LTD,"13,721.16",CASH MANAGERS' COSTS,PROFESSIONAL FEES,5902356773,1000055012
02.05.2019,STRATEGIC FINANCING BUDGETS,4 FUTURES PHASE 2 LTD,"232,211.86",ONGOING SCHOOLS PFI COSTS,PFI/PPP PAYMENTS,5902356778,1000068567
02.05.2019,STRATEGIC FINANCING BUDGETS,4 FUTURES PHASE 2 LTD,"232,185.25",ONGOING SCHOOLS PFI COSTS,PFI/PPP PAYMENTS,5902356778,1000068567
02.05.2019,STRATEGIC FINANCING BUDGETS,4 FUTURES PHASE 1 LIMITED,"228,784.18",ONGOING SCHOOLS PFI COSTS,PFI/PPP PAYMENTS,5902356766,1000061400
02.05.2019,STRATEGIC FINANCING BUDGETS,4 FUTURES PHASE 2 LTD,"27,076.69",ONGOING SCHOOLS PFI COSTS,PFI/PPP PAYMENTS,5902356778,1000068567
03.05.2019,ADULT SOCIAL CARE,FOUNTAIN CARE LTD,329.4,APPOINTEESHIPS,OTHER PAYMENTS FOR CLIENTS,2102950879,1000066815
03.05.2019,ADULT SOCIAL CARE,FOUNTAIN CARE LTD,-329.4,APPOINTEESHIPS,OTHER PAYMENTS FOR CLIENTS,2102951419,1000066815
03.05.2019,ADULT SOCIAL CARE,REDACTED PERSONAL DATA,488,APPOINTEESHIPS,OTHER PAYMENTS FOR CLIENTS,REDACTED,REDACTED
03.05.2019,ADULT SOCIAL CARE,EMMA GODFREY,700,DIR OF ASC,LEGAL FEES & COURT COSTS,2102950910,1000068757
03.05.2019,ADULT SOCIAL CARE,MEDEQUIP ASSISTIVE TECHNOLOGY LTD,"1,267.73",ICES CONTRACT,EQUIPMENT PURCHASE & REPAIR,5902356862,1000062775
03.05.2019,ADULT SOCIAL CARE,MEDEQUIP ASSISTIVE TECHNOLOGY LTD,"1,233.45",ICES CONTRACT,EQUIPMENT PURCHASE & REPAIR,5902356830,1000062775
03.05.2019,ADULT SOCIAL CARE,MEDEQUIP ASSISTIVE TECHNOLOGY LTD,"1,229.80",ICES CONTRACT,EQUIPMENT PURCHASE & REPAIR,5902356853,1000062775
03.05.2019,ADULT SOCIAL CARE,MEDEQUIP ASSISTIVE TECHNOLOGY LTD,"1,078.80",ICES CONTRACT,EQUIPMENT PURCHASE & REPAIR,5902356840,1000062775
03.05.2019,ADULT SOCIAL CARE,MEDEQUIP ASSISTIVE TECHNOLOGY LTD,"1,078.80",ICES CONTRACT,EQUIPMENT PURCHASE & REPAIR,5902356846,1000062775
03.05.2019,ADULT SOCIAL CARE,MEDEQUIP ASSISTIVE TECHNOLOGY LTD,"1,044.00",ICES CONTRACT,EQUIPMENT PURCHASE & REPAIR,5902356848,1000062775
03.05.2019,ADULT SOCIAL CARE,MEDEQUIP ASSISTIVE TECHNOLOGY LTD,946.33,ICES CONTRACT,EQUIPMENT PURCHASE & REPAIR,5902356836,1000062775
03.05.2019,ADULT SOCIAL CARE,MEDEQUIP ASSISTIVE TECHNOLOGY LTD,857.19,ICES CONTRACT,EQUIPMENT PURCHASE & REPAIR,5902356838,1000062775
03.05.2019,ADULT SOCIAL CARE,MEDEQUIP ASSISTIVE TECHNOLOGY LTD,691.44,ICES CONTRACT,EQUIPMENT PURCHASE & REPAIR,5902356852,1000062775
03.05.2019,ADULT SOCIAL CARE,MEDEQUIP ASSISTIVE TECHNOLOGY LTD,639.25,ICES CONTRACT,EQUIPMENT PURCHASE & REPAIR,5902356834,1000062775
03.05.2019,ADULT SOCIAL CARE,MEDEQUIP ASSISTIVE TECHNOLOGY LTD,478.8,ICES CONTRACT,EQUIPMENT PURCHASE & REPAIR,5902356845,1000062775
03.05.2019,ADULT SOCIAL CARE,MEDEQUIP ASSISTIVE TECHNOLOGY LTD,339.86,ICES CONTRACT,EQUIPMENT PURCHASE & REPAIR,5902356856,1000062775
03.05.2019,ADULT SOCIAL CARE,MEDEQUIP ASSISTIVE TECHNOLOGY LTD,281.33,ICES CONTRACT,EQUIPMENT PURCHASE & REPAIR,5902356844,1000062775
03.05.2019,ADULT SOCIAL CARE,MENTAL HEALTH ADVOCACY SCHEME,780,LD LTS 18-64,EXTERNAL AGENCIES AND BODIES,2102950948,1000080715
03.05.2019,ADULT SOCIAL CARE,CARE DIRECT UK LTD,347.51,LD LTS 18-64,SUPPORTED LIVING,2102951159,1000066322
03.05.2019,ADULT SOCIAL CARE,TOGETHER WORKING FOR WELLBEING,"9,342.50",LD/MH/SM MANAGEMENT,EXTERNAL AGENCIES AND BODIES,5902356807,1000039537
03.05.2019,ADULT SOCIAL CARE,WESTMINSTER HOMECARE LTD,"1,532.16",MEM LTS 65+,HOMECARE - SPOT,2102951187,1000075287
03.05.2019,ADULT SOCIAL CARE,WESTMINSTER HOMECARE LTD,"1,459.20",MEM LTS 65+,HOMECARE - SPOT,2102951189,1000075287
03.05.2019,ADULT SOCIAL CARE,ELEANOR NURSING AND SOCIAL CARE LTD,512.96,MEM LTS 65+,HOMECARE - SPOT,2102951123,1000081695
03.05.2019,ADULT SOCIAL CARE,CLOUDS END SERVICES LTD,800,MH LTS 18-64,EXTERNAL AGENCIES AND BODIES,2102950945,1000079240
03.05.2019,ADULT SOCIAL CARE,ELEANOR NURSING AND SOCIAL CARE LTD,796.08,PHY LTS 18-64,HOMECARE - C&V,2102951147,1000081695
03.05.2019,ADULT SOCIAL CARE,ELEANOR NURSING AND SOCIAL CARE LTD,"3,114.16",PHY LTS 18-64,HOMECARE - SPOT,2102951144,1000081695
03.05.2019,ADULT SOCIAL CARE,WESTMINSTER HOMECARE LTD,"2,352.96",PHY LTS 18-64,HOMECARE - SPOT,2102951188,1000075287
03.05.2019,ADULT SOCIAL CARE,WESTMINSTER HOMECARE LTD,"2,334.72",PHY LTS 18-64,HOMECARE - SPOT,2102951195,1000075287
03.05.2019,ADULT SOCIAL CARE,ELEANOR NURSING AND SOCIAL CARE LTD,"2,249.28",PHY LTS 18-64,HOMECARE - SPOT,2102951120,1000081695
03.05.2019,ADULT SOCIAL CARE,WESTMINSTER HOMECARE LTD,"2,042.88",PHY LTS 18-64,HOMECARE - SPOT,2102951173,1000075287
03.05.2019,ADULT SOCIAL CARE,ELEANOR NURSING AND SOCIAL CARE LTD,"1,012.05",PHY LTS 18-64,HOMECARE - SPOT,2102951141,1000081695
03.05.2019,ADULT SOCIAL CARE,ELEANOR NURSING AND SOCIAL CARE LTD,951.64,PHY LTS 18-64,HOMECARE - SPOT,2102951140,1000081695
03.05.2019,ADULT SOCIAL CARE,WESTMINSTER HOMECARE LTD,866.4,PHY LTS 18-64,HOMECARE - SPOT,2102951177,1000075287
03.05.2019,ADULT SOCIAL CARE,ELEANOR NURSING AND SOCIAL CARE LTD,834.86,PHY LTS 18-64,HOMECARE - SPOT,2102951145,1000081695
03.05.2019,ADULT SOCIAL CARE,ELEANOR NURSING AND SOCIAL CARE LTD,709.44,PHY LTS 18-64,HOMECARE - SPOT,2102951150,1000081695
03.05.2019,ADULT SOCIAL CARE,ELEANOR NURSING AND SOCIAL CARE LTD,605.64,PHY LTS 18-64,HOMECARE - SPOT,2102951138,1000081695
03.05.2019,ADULT SOCIAL CARE,THAMES HOMECARE SERVICE LTD,438.55,PHY LTS 18-64,HOMECARE - SPOT,2102951109,1000079295
03.05.2019,ADULT SOCIAL CARE,THAMES HOMECARE SERVICE LTD,250.6,PHY LTS 18-64,HOMECARE - SPOT,2102951098,1000079295
03.05.2019,ADULT SOCIAL CARE,THAMES HOMECARE SERVICE LTD,250.6,PHY LTS 18-64,HOMECARE - SPOT,2102951110,1000079295
03.05.2019,ADULT SOCIAL CARE,WESTMINSTER HOMECARE LTD,638.4,PHY LTS 65+,HOMECARE - C&V,2102951181,1000075287
03.05.2019,ADULT SOCIAL CARE,SUPREME CARE SERVICES LTD,488.48,PHY LTS 65+,HOMECARE - C&V,2102950949,1000059416
03.05.2019,ADULT SOCIAL CARE,WESTMINSTER HOMECARE LTD,"2,444.16",PHY LTS 65+,HOMECARE - SPOT,2102951198,1000075287
03.05.2019,ADULT SOCIAL CARE,THAMES HOMECARE SERVICE LTD,"2,392.16",PHY LTS 65+,HOMECARE - SPOT,2102951103,1000079295
03.05.2019,ADULT SOCIAL CARE,WESTMINSTER HOMECARE LTD,"1,605.12",PHY LTS 65+,HOMECARE - SPOT,2102951200,1000075287
03.05.2019,ADULT SOCIAL CARE,WESTMINSTER HOMECARE LTD,"1,596.00",PHY LTS 65+,HOMECARE - SPOT,2102951197,1000075287
03.05.2019,ADULT SOCIAL CARE,ELEANOR NURSING AND SOCIAL CARE LTD,"1,453.48",PHY LTS 65+,HOMECARE - SPOT,2102951124,1000081695
03.05.2019,ADULT SOCIAL CARE,ELEANOR NURSING AND SOCIAL CARE LTD,"1,319.35",PHY LTS 65+,HOMECARE - SPOT,2102951142,1000081695
03.05.2019,ADULT SOCIAL CARE,WESTMINSTER HOMECARE LTD,"1,272.24",PHY LTS 65+,HOMECARE - SPOT,2102951178,1000075287
03.05.2019,ADULT SOCIAL CARE,ELEANOR NURSING AND SOCIAL CARE LTD,"1,193.84",PHY LTS 65+,HOMECARE - SPOT,2102951112,1000081695
03.05.2019,ADULT SOCIAL CARE,WESTMINSTER HOMECARE LTD,"1,076.16",PHY LTS 65+,HOMECARE - SPOT,2102951165,1000075287
03.05.2019,ADULT SOCIAL CARE,ELEANOR NURSING AND SOCIAL CARE LTD,"1,016.76",PHY LTS 65+,HOMECARE - SPOT,2102951117,1000081695
03.05.2019,ADULT SOCIAL CARE,ELEANOR NURSING AND SOCIAL CARE LTD,968.8,PHY LTS 65+,HOMECARE - SPOT,2102951149,1000081695
03.05.2019,ADULT SOCIAL CARE,THAMES HOMECARE SERVICE LTD,897.69,PHY LTS 65+,HOMECARE - SPOT,2102951101,1000079295
03.05.2019,ADULT SOCIAL CARE,ELEANOR NURSING AND SOCIAL CARE LTD,851.88,PHY LTS 65+,HOMECARE - SPOT,2102951143,1000081695
03.05.2019,ADULT SOCIAL CARE,ELEANOR NURSING AND SOCIAL CARE LTD,847.84,PHY LTS 65+,HOMECARE - SPOT,2102951136,1000081695
03.05.2019,ADULT SOCIAL CARE,ELEANOR NURSING AND SOCIAL CARE LTD,834.78,PHY LTS 65+,HOMECARE - SPOT,2102951148,1000081695
03.05.2019,ADULT SOCIAL CARE,ELEANOR NURSING AND SOCIAL CARE LTD,761.2,PHY LTS 65+,HOMECARE - SPOT,2102951137,1000081695
03.05.2019,ADULT SOCIAL CARE,WESTMINSTER HOMECARE LTD,747.84,PHY LTS 65+,HOMECARE - SPOT,2102951180,1000075287
03.05.2019,ADULT SOCIAL CARE,ELEANOR NURSING AND SOCIAL CARE LTD,726.72,PHY LTS 65+,HOMECARE - SPOT,2102951133,1000081695
03.05.2019,ADULT SOCIAL CARE,ELEANOR NURSING AND SOCIAL CARE LTD,726.6,PHY LTS 65+,HOMECARE - SPOT,2102951128,1000081695
03.05.2019,ADULT SOCIAL CARE,CARE DIRECT UK LTD,701.13,PHY LTS 65+,HOMECARE - SPOT,2102951154,1000066322
03.05.2019,ADULT SOCIAL CARE,WESTMINSTER HOMECARE LTD,684,PHY LTS 65+,HOMECARE - SPOT,2102951191,1000075287
03.05.2019,ADULT SOCIAL CARE,WESTMINSTER HOMECARE LTD,674.88,PHY LTS 65+,HOMECARE - SPOT,2102951176,1000075287
03.05.2019,ADULT SOCIAL CARE,WESTMINSTER HOMECARE LTD,652.08,PHY LTS 65+,HOMECARE - SPOT,2102951163,1000075287
03.05.2019,ADULT SOCIAL CARE,ELEANOR NURSING AND SOCIAL CARE LTD,641.2,PHY LTS 65+,HOMECARE - SPOT,2102951116,1000081695
03.05.2019,ADULT SOCIAL CARE,WESTMINSTER HOMECARE LTD,638.4,PHY LTS 65+,HOMECARE - SPOT,2102951167,1000075287
03.05.2019,ADULT SOCIAL CARE,WESTMINSTER HOMECARE LTD,565.44,PHY LTS 65+,HOMECARE - SPOT,2102951168,1000075287
03.05.2019,ADULT SOCIAL CARE,CARE DIRECT UK LTD,559.13,PHY LTS 65+,HOMECARE - SPOT,2102951153,1000066322
03.05.2019,ADULT SOCIAL CARE,CARE DIRECT UK LTD,559.13,PHY LTS 65+,HOMECARE - SPOT,2102951161,1000066322
03.05.2019,ADULT SOCIAL CARE,ELEANOR NURSING AND SOCIAL CARE LTD,512.96,PHY LTS 65+,HOMECARE - SPOT,2102951126,1000081695
03.05.2019,ADULT SOCIAL CARE,WESTMINSTER HOMECARE LTD,510.72,PHY LTS 65+,HOMECARE - SPOT,2102951166,1000075287
03.05.2019,ADULT SOCIAL CARE,WESTMINSTER HOMECARE LTD,510.72,PHY LTS 65+,HOMECARE - SPOT,2102951186,1000075287
03.05.2019,ADULT SOCIAL CARE,CARE DIRECT UK LTD,497,PHY LTS 65+,HOMECARE - SPOT,2102951156,1000066322
03.05.2019,ADULT SOCIAL CARE,ELEANOR NURSING AND SOCIAL CARE LTD,484.48,PHY LTS 65+,HOMECARE - SPOT,2102951134,1000081695
03.05.2019,ADULT SOCIAL CARE,ELEANOR NURSING AND SOCIAL CARE LTD,484.4,PHY LTS 65+,HOMECARE - SPOT,2102951130,1000081695
03.05.2019,ADULT SOCIAL CARE,ELEANOR NURSING AND SOCIAL CARE LTD,449.8,PHY LTS 65+,HOMECARE - SPOT,2102951121,1000081695
03.05.2019,ADULT SOCIAL CARE,WESTMINSTER HOMECARE LTD,449.59,PHY LTS 65+,HOMECARE - SPOT,2102951172,1000075287
03.05.2019,ADULT SOCIAL CARE,WESTMINSTER HOMECARE LTD,437.76,PHY LTS 65+,HOMECARE - SPOT,2102951169,1000075287
03.05.2019,ADULT SOCIAL CARE,ELEANOR NURSING AND SOCIAL CARE LTD,432.5,PHY LTS 65+,HOMECARE - SPOT,2102951129,1000081695
03.05.2019,ADULT SOCIAL CARE,THAMES HOMECARE SERVICE LTD,375.9,PHY LTS 65+,HOMECARE - SPOT,2102951100,1000079295
03.05.2019,ADULT SOCIAL CARE,THAMES HOMECARE SERVICE LTD,375.9,PHY LTS 65+,HOMECARE - SPOT,2102951106,1000079295
03.05.2019,ADULT SOCIAL CARE,ELEANOR NURSING AND SOCIAL CARE LTD,363.44,PHY LTS 65+,HOMECARE - SPOT,2102951119,1000081695
03.05.2019,ADULT SOCIAL CARE,ELEANOR NURSING AND SOCIAL CARE LTD,363.44,PHY LTS 65+,HOMECARE - SPOT,2102951135,1000081695
03.05.2019,ADULT SOCIAL CARE,ELEANOR NURSING AND SOCIAL CARE LTD,346,PHY LTS 65+,HOMECARE - SPOT,2102951132,1000081695
03.05.2019,ADULT SOCIAL CARE,WESTMINSTER HOMECARE LTD,314.64,PHY LTS 65+,HOMECARE - SPOT,2102951199,1000075287
03.05.2019,ADULT SOCIAL CARE,ELEANOR NURSING AND SOCIAL CARE LTD,293.12,PHY LTS 65+,HOMECARE - SPOT,2102951139,1000081695
03.05.2019,ADULT SOCIAL CARE,WESTMINSTER HOMECARE LTD,283.12,PHY LTS 65+,HOMECARE - SPOT,2102951194,1000075287
03.05.2019,ADULT SOCIAL CARE,WESTMINSTER HOMECARE LTD,264.48,PHY LTS 65+,HOMECARE - SPOT,2102951170,1000075287
03.05.2019,ADULT SOCIAL CARE,WESTMINSTER HOMECARE LTD,296.4,PHY STS 65+,HOMECARE - IC,2102951175,1000075287
03.05.2019,ADULT SOCIAL CARE,ELEANOR NURSING AND SOCIAL CARE LTD,916.9,SEN LTS 65+,HOMECARE - SPOT,2102951114,1000081695
03.05.2019,ADULT SOCIAL CARE,ELEANOR NURSING AND SOCIAL CARE LTD,899.6,SEN LTS 65+,HOMECARE - SPOT,2102951115,1000081695
03.05.2019,ADULT SOCIAL CARE,WESTMINSTER HOMECARE LTD,369.36,SOCIAL ISOLATION,HOMECARE - SPOT,2102951196,1000075287
03.05.2019,ADULT SOCIAL CARE,CONTACT PROFESSIONALS,760,SPECIALIST CARE,SECTION 17 PAYMENTS TO AGENCIES/CARERS,2102951034,1000057263
03.05.2019,ADULT SOCIAL CARE,CONTACT PROFESSIONALS,608,SPECIALIST CARE,SECTION 17 PAYMENTS TO AGENCIES/CARERS,2102951039,1000057263
03.05.2019,ADULT SOCIAL CARE,CONTACT PROFESSIONALS,589,SPECIALIST CARE,SECTION 17 PAYMENTS TO AGENCIES/CARERS,2102951077,1000057263
03.05.2019,ADULT SOCIAL CARE,CONTACT PROFESSIONALS,570,SPECIALIST CARE,SECTION 17 PAYMENTS TO AGENCIES/CARERS,2102951017,1000057263
03.05.2019,ADULT SOCIAL CARE,CONTACT PROFESSIONALS,532,SPECIALIST CARE,SECTION 17 PAYMENTS TO AGENCIES/CARERS,2102951037,1000057263
03.05.2019,ADULT SOCIAL CARE,CONTACT PROFESSIONALS,494,SPECIALIST CARE,SECTION 17 PAYMENTS TO AGENCIES/CARERS,2102951090,1000057263
03.05.2019,ADULT SOCIAL CARE,CONTACT PROFESSIONALS,456,SPECIALIST CARE,SECTION 17 PAYMENTS TO AGENCIES/CARERS,2102951027,1000057263
03.05.2019,ADULT SOCIAL CARE,CONTACT PROFESSIONALS,456,SPECIALIST CARE,SECTION 17 PAYMENTS TO AGENCIES/CARERS,2102951055,1000057263
03.05.2019,ADULT SOCIAL CARE,CONTACT PROFESSIONALS,437,SPECIALIST CARE,SECTION 17 PAYMENTS TO AGENCIES/CARERS,2102951070,1000057263
03.05.2019,ADULT SOCIAL CARE,CONTACT PROFESSIONALS,427.5,SPECIALIST CARE,SECTION 17 PAYMENTS TO AGENCIES/CARERS,2102951067,1000057263
03.05.2019,ADULT SOCIAL CARE,CONTACT PROFESSIONALS,380,SPECIALIST CARE,SECTION 17 PAYMENTS TO AGENCIES/CARERS,2102951022,1000057263
03.05.2019,ADULT SOCIAL CARE,CONTACT PROFESSIONALS,380,SPECIALIST CARE,SECTION 17 PAYMENTS TO AGENCIES/CARERS,2102951063,1000057263
03.05.2019,ADULT SOCIAL CARE,CONTACT PROFESSIONALS,342,SPECIALIST CARE,SECTION 17 PAYMENTS TO AGENCIES/CARERS,2102951032,1000057263
03.05.2019,ADULT SOCIAL CARE,CONTACT PROFESSIONALS,342,SPECIALIST CARE,SECTION 17 PAYMENTS TO AGENCIES/CARERS,2102951035,1000057263
03.05.2019,ADULT SOCIAL CARE,CONTACT PROFESSIONALS,342,SPECIALIST CARE,SECTION 17 PAYMENTS TO AGENCIES/CARERS,2102951062,1000057263
03.05.2019,ADULT SOCIAL CARE,CONTACT PROFESSIONALS,323,SPECIALIST CARE,SECTION 17 PAYMENTS TO AGENCIES/CARERS,2102951018,1000057263
03.05.2019,ADULT SOCIAL CARE,CONTACT PROFESSIONALS,323,SPECIALIST CARE,SECTION 17 PAYMENTS TO AGENCIES/CARERS,2102951081,1000057263
03.05.2019,ADULT SOCIAL CARE,CONTACT PROFESSIONALS,323,SPECIALIST CARE,SECTION 17 PAYMENTS TO AGENCIES/CARERS,2102951092,1000057263
03.05.2019,ADULT SOCIAL CARE,CONTACT PROFESSIONALS,304,SPECIALIST CARE,SECTION 17 PAYMENTS TO AGENCIES/CARERS,2102951021,1000057263
03.05.2019,ADULT SOCIAL CARE,CONTACT PROFESSIONALS,304,SPECIALIST CARE,SECTION 17 PAYMENTS TO AGENCIES/CARERS,2102951045,1000057263
03.05.2019,ADULT SOCIAL CARE,CONTACT PROFESSIONALS,304,SPECIALIST CARE,SECTION 17 PAYMENTS TO AGENCIES/CARERS,2102951053,1000057263
03.05.2019,ADULT SOCIAL CARE,CONTACT PROFESSIONALS,304,SPECIALIST CARE,SECTION 17 PAYMENTS TO AGENCIES/CARERS,2102951083,1000057263
03.05.2019,ADULT SOCIAL CARE,CONTACT PROFESSIONALS,304,SPECIALIST CARE,SECTION 17 PAYMENTS TO AGENCIES/CARERS,2102951085,1000057263
03.05.2019,ADULT SOCIAL CARE,CONTACT PROFESSIONALS,285,SPECIALIST CARE,SECTION 17 PAYMENTS TO AGENCIES/CARERS,2102951080,1000057263
03.05.2019,ADULT SOCIAL CARE,CONTACT PROFESSIONALS,266,SPECIALIST CARE,SECTION 17 PAYMENTS TO AGENCIES/CARERS,2102951025,1000057263
03.05.2019,ADULT SOCIAL CARE,CONTACT PROFESSIONALS,266,SPECIALIST CARE,SECTION 17 PAYMENTS TO AGENCIES/CARERS,2102951061,1000057263
03.05.2019,ADULT SOCIAL CARE,CONTACT PROFESSIONALS,266,SPECIALIST CARE,SECTION 17 PAYMENTS TO AGENCIES/CARERS,2102951073,1000057263
03.05.2019,ADULT SOCIAL CARE,STREETSCENE ADDICTION RECOVERY LTD,"2,987.20",SUB LTS 18-64,PLACEMENTS - REHAB,2102951097,11221787
03.05.2019,ADULT SOCIAL CARE,CONTACT PROFESSIONALS,380,TRANSITIONS 14-18YRS,SECTION 17 PAYMENTS TO AGENCIES/CARERS,2102951030,1000057263
03.05.2019,ADULT SOCIAL CARE,CONTACT PROFESSIONALS,380,TRANSITIONS 14-18YRS,SECTION 17 PAYMENTS TO AGENCIES/CARERS,2102951064,1000057263
03.05.2019,ASSET MANAGEMENT,POSTURITE (UK) LTD,915.5,DESIGN & DELIVERY,FURNITURE PURCHASE & REPAIR,5902356898,11015468
03.05.2019,ASSET MANAGEMENT,HOPKIN MURRAY BESKINE LTD,"1,989.59",DISREPAIR,LEGAL FEES & COURT COSTS,2102950915,1000076236
03.05.2019,ASSET MANAGEMENT,FARANI JAVID TAYLOR SOLICITORS,"5,669.12",DISREPAIR,LEGAL FEES & COURT COSTS,2102950911,1000078262
03.05.2019,ASSET MANAGEMENT,FRANKHAM CONSULTANCY GROUP LTD,930,DISREPAIR,OTHER R&M,5902356847,1000043952
03.05.2019,ASSET MANAGEMENT,FRANKHAM CONSULTANCY GROUP LTD,930,DISREPAIR,OTHER R&M,5902356849,1000043952
03.05.2019,ASSET MANAGEMENT,GW LEGAL,"1,500.00",DISREPAIR,PAYMENTS FOR LEGAL SERVICES,2102950895,1000081845
03.05.2019,ASSET MANAGEMENT,MATRIX SOLICITORS,"7,000.00",DISREPAIR,PAYMENTS FOR LEGAL SERVICES,2102950897,1000082248
03.05.2019,ASSET MANAGEMENT,BELSHAW & CURTIN SOLICITORS,"3,278.91",DISREPAIR,PAYMENTS FOR LEGAL SERVICES,2102950896,1767379
03.05.2019,BERMONDSEY AND ROTHERHITHE COMMUNITY COUNCIL,UNITY MUSIC ARTS TRUST (UMAT),"3,480.00",BERMONDSEY SQUARE JAZZ DAYS,GRANT,CHEQUE PAYMENT,CHEQUE PAYMENT
03.05.2019,BERMONDSEY AND ROTHERHITHE COMMUNITY COUNCIL,CAPOYOGA,"3,200.00",CARERS WELL-BEING PROJECT,GRANT,CHEQUE PAYMENT,CHEQUE PAYMENT
03.05.2019,BERMONDSEY AND ROTHERHITHE COMMUNITY COUNCIL,LONGFIELD TRA,"2,500.00",LONGFIELD FUN DAY,GRANT,CHEQUE PAYMENT,CHEQUE PAYMENT
03.05.2019,BERMONDSEY AND ROTHERHITHE COMMUNITY COUNCIL,UNITY MUSIC ARTS TRUST (UMAT),"4,480.00",THE BERMONDSEY MUSIC GALAS,GRANT,CHEQUE PAYMENT,CHEQUE PAYMENT
03.05.2019,"BOROUGH, BANKSIDE AND WALWORTH COMMUNITY COUNCIL",AFRO-BRAZILIAN ARTS & CULTURAL EXCHANGE INSTITUTE ,"1,500.00",FIGHTING INEQUALITY ,GRANT,CHEQUE PAYMENT,CHEQUE PAYMENT
03.05.2019,"BOROUGH, BANKSIDE AND WALWORTH COMMUNITY COUNCIL",ARTIC (ART IN COMMUNITIES) ,"5,036.00",HORTI-CULTURE ,GRANT,CHEQUE PAYMENT,CHEQUE PAYMENT
03.05.2019,"BOROUGH, BANKSIDE AND WALWORTH COMMUNITY COUNCIL",FROM THAT TO THIS ,"6,600.00",SKILLS FOR LIFE ,GRANT,CHEQUE PAYMENT,CHEQUE PAYMENT
03.05.2019,"BOROUGH, BANKSIDE AND WALWORTH COMMUNITY COUNCIL",BURGESS SPORTS ,"5,000.00",SUMMER MULTI-SPORTS PROGRAMME ,GRANT,CHEQUE PAYMENT,CHEQUE PAYMENT
03.05.2019,"BOROUGH, BANKSIDE AND WALWORTH COMMUNITY COUNCIL",LINK AGE SOUTHWARK ,"2,295.00",YOGA GROUP FOR OLDER PEOPLE ,GRANT,CHEQUE PAYMENT,CHEQUE PAYMENT
03.05.2019,CENTRAL FUNCTIONS,KENT COUNTY COUNCIL - LASER,"78,044.78",HEATING ACCOUNT,ELECTRICITY,5902356224,1000012926
03.05.2019,CENTRAL FUNCTIONS,KENT COUNTY COUNCIL - LASER,"14,324.36",HEATING ACCOUNT,ELECTRICITY,5902356224,1000012926
03.05.2019,CENTRAL FUNCTIONS,KENT COUNTY COUNCIL - LASER,"504,353.66",HEATING ACCOUNT,GAS,5902356222,1000012926
03.05.2019,CENTRAL FUNCTIONS,KENT COUNTY COUNCIL - LASER,"23,626.56",HEATING ACCOUNT,GAS,5902356222,1000012926
03.05.2019,CHIEF EXECUTIVE,PROJECT CENTRE LTD,850,CAPITAL PS (REGEN),CONSTR'N SUB CONTRACT - NON CERTIFICATED,5902356795,1000072621
03.05.2019,CHIEF EXECUTIVE,WALWORTH HOMES LTD,"1,069,921.78",CAPITAL PS (REGEN),CONSTRUCTION FEES,5902356900,1000079197
03.05.2019,CHIEF EXECUTIVE,WALWORTH HOMES LTD,"84,503.51",CAPITAL PS (REGEN),CONSTRUCTION FEES,5902356900,1000079197
03.05.2019,CHILDREN AND ADULT,PELLINGS LLP,648,CAPITAL PS (EDUCATION),CONSTRUCTION MAIN CONTRACT -CERTIFICATED,5902356886,1009262
03.05.2019,CHILDREN AND ADULT,LONDON EARLY YEARS FOUNDATION,"150,000.00",CAPITAL PS (EDUCATION),FURNITURE & FITTINGS ACQUISITION,5902356877,1000077919
03.05.2019,CHILDREN'S SERVICES,PARENT AND CHILD FOSTERING ASSESSMENTS,"7,928.57",AGENCY FOSTERING,EXTERNAL AGENCIES AND BODIES,2102950996,1000078962
03.05.2019,CHILDREN'S SERVICES,NEXT STEP FOSTERING SERVICES LTD,"6,961.20",AGENCY FOSTERING,EXTERNAL AGENCIES AND BODIES,2102950963,1000044973
03.05.2019,CHILDREN'S SERVICES,MOSAIC FOSTER CARE LTD,"6,750.00",AGENCY FOSTERING,EXTERNAL AGENCIES AND BODIES,2102951003,1000076259
03.05.2019,CHILDREN'S SERVICES,MOSAIC FOSTER CARE LTD,"6,750.00",AGENCY FOSTERING,EXTERNAL AGENCIES AND BODIES,2102951004,1000076259
03.05.2019,CHILDREN'S SERVICES,MOSAIC FOSTER CARE LTD,"6,428.40",AGENCY FOSTERING,EXTERNAL AGENCIES AND BODIES,2102950969,1000076259
03.05.2019,CHILDREN'S SERVICES,ALL4U FOSTERING LTD,"6,235.20",AGENCY FOSTERING,EXTERNAL AGENCIES AND BODIES,2102951006,1000080663
03.05.2019,CHILDREN'S SERVICES,DIVERSE CARE (UK) LTD,"6,120.00",AGENCY FOSTERING,EXTERNAL AGENCIES AND BODIES,2102950972,1000055636
03.05.2019,CHILDREN'S SERVICES,HEATH FARM FAMILY SOLUTION (FOSTERING),"5,722.80",AGENCY FOSTERING,EXTERNAL AGENCIES AND BODIES,2102950964,11271268
03.05.2019,CHILDREN'S SERVICES,INTEGRATED SERVICES PROGRAMME,"5,396.10",AGENCY FOSTERING,EXTERNAL AGENCIES AND BODIES,2102950957,1642068
03.05.2019,CHILDREN'S SERVICES,COMPASS FOSTERING SOUTH EAST LTD,"5,357.10",AGENCY FOSTERING,EXTERNAL AGENCIES AND BODIES,2102950960,1000081155
03.05.2019,CHILDREN'S SERVICES,SYNERGY FOSTERING LTD,"5,280.00",AGENCY FOSTERING,EXTERNAL AGENCIES AND BODIES,2102950975,1000031559
03.05.2019,CHILDREN'S SERVICES,INTEGRATED SERVICES PROGRAMME,"5,164.20",AGENCY FOSTERING,EXTERNAL AGENCIES AND BODIES,2102950956,1642068
03.05.2019,CHILDREN'S SERVICES,INTEGRATED SERVICES PROGRAMME,"5,164.20",AGENCY FOSTERING,EXTERNAL AGENCIES AND BODIES,2102950977,1642068
03.05.2019,CHILDREN'S SERVICES,INTEGRATED SERVICES PROGRAMME,"5,164.20",AGENCY FOSTERING,EXTERNAL AGENCIES AND BODIES,2102950989,1642068
03.05.2019,CHILDREN'S SERVICES,INTEGRATED SERVICES PROGRAMME,"5,164.20",AGENCY FOSTERING,EXTERNAL AGENCIES AND BODIES,2102951007,1642068
03.05.2019,CHILDREN'S SERVICES,HEATH FARM FAMILY SOLUTION (FOSTERING),"5,150.40",AGENCY FOSTERING,EXTERNAL AGENCIES AND BODIES,2102950950,11271268
03.05.2019,CHILDREN'S SERVICES,INTEGRATED SERVICES PROGRAMME,"5,009.40",AGENCY FOSTERING,EXTERNAL AGENCIES AND BODIES,2102950978,1642068
03.05.2019,CHILDREN'S SERVICES,INTEGRATED SERVICES PROGRAMME,"5,009.40",AGENCY FOSTERING,EXTERNAL AGENCIES AND BODIES,2102951014,1642068
03.05.2019,CHILDREN'S SERVICES,DIVERSE CARE (UK) LTD,"4,345.20",AGENCY FOSTERING,EXTERNAL AGENCIES AND BODIES,2102951010,1000055636
03.05.2019,CHILDREN'S SERVICES,NEXT STEP FOSTERING SERVICES LTD,"4,209.00",AGENCY FOSTERING,EXTERNAL AGENCIES AND BODIES,2102950995,1000044973
03.05.2019,CHILDREN'S SERVICES,ANCHOR FOSTERCARE,"4,148.70",AGENCY FOSTERING,EXTERNAL AGENCIES AND BODIES,2102950984,1000065675
03.05.2019,CHILDREN'S SERVICES,COMPASS FOSTERING SOUTH EAST LTD,"4,132.50",AGENCY FOSTERING,EXTERNAL AGENCIES AND BODIES,2102950998,1000081155
03.05.2019,CHILDREN'S SERVICES,NEXT STEP FOSTERING SERVICES LTD,"3,858.00",AGENCY FOSTERING,EXTERNAL AGENCIES AND BODIES,2102951000,1000044973
03.05.2019,CHILDREN'S SERVICES,AIM HIGH FOSTERING SERVICES LTD,"3,764.02",AGENCY FOSTERING,EXTERNAL AGENCIES AND BODIES,2102950981,1000082607
03.05.2019,CHILDREN'S SERVICES,ETHELBERT SPECIALIST HOMES,"3,757.16",AGENCY FOSTERING,EXTERNAL AGENCIES AND BODIES,2102950976,1796129
03.05.2019,CHILDREN'S SERVICES,ETHELBERT SPECIALIST HOMES,"3,757.16",AGENCY FOSTERING,EXTERNAL AGENCIES AND BODIES,2102950980,1796129
03.05.2019,CHILDREN'S SERVICES,CHILDREN FIRST FOSTERING AGENCY LTD,"3,750.00",AGENCY FOSTERING,EXTERNAL AGENCIES AND BODIES,2102951008,1000060081
03.05.2019,CHILDREN'S SERVICES,TIME FOR CHILDREN LTD,"3,711.30",AGENCY FOSTERING,EXTERNAL AGENCIES AND BODIES,2102950955,1000024439
03.05.2019,CHILDREN'S SERVICES,AIM HIGH FOSTERING SERVICES LTD,"3,642.60",AGENCY FOSTERING,EXTERNAL AGENCIES AND BODIES,2102951009,1000082607
03.05.2019,CHILDREN'S SERVICES,ORANGE GROVE FOSTERCARE LTD,"3,630.73",AGENCY FOSTERING,EXTERNAL AGENCIES AND BODIES,2102950959,1000078716
03.05.2019,CHILDREN'S SERVICES,ETHELBERT SPECIALIST HOMES,"3,559.46",AGENCY FOSTERING,EXTERNAL AGENCIES AND BODIES,2102950952,1796129
03.05.2019,CHILDREN'S SERVICES,ETHELBERT SPECIALIST HOMES,"3,559.46",AGENCY FOSTERING,EXTERNAL AGENCIES AND BODIES,2102950968,1796129
03.05.2019,CHILDREN'S SERVICES,ETHELBERT SPECIALIST HOMES,"3,559.46",AGENCY FOSTERING,EXTERNAL AGENCIES AND BODIES,2102951002,1796129
03.05.2019,CHILDREN'S SERVICES,COMPASS FOSTERING LONDON LTD,"3,557.10",AGENCY FOSTERING,EXTERNAL AGENCIES AND BODIES,2102950994,1000057908
03.05.2019,CHILDREN'S SERVICES,SYNERGY FOSTERING LTD,"3,552.84",AGENCY FOSTERING,EXTERNAL AGENCIES AND BODIES,2102950965,1000031559
03.05.2019,CHILDREN'S SERVICES,SELECT FOSTERCARE SERVICES LTD,"3,535.80",AGENCY FOSTERING,EXTERNAL AGENCIES AND BODIES,2102950973,1000079277
03.05.2019,CHILDREN'S SERVICES,SELECT FOSTERCARE SERVICES LTD,"3,535.80",AGENCY FOSTERING,EXTERNAL AGENCIES AND BODIES,2102950993,1000079277
03.05.2019,CHILDREN'S SERVICES,SELECT FOSTERCARE SERVICES LTD,"3,535.50",AGENCY FOSTERING,EXTERNAL AGENCIES AND BODIES,2102950985,1000079277
03.05.2019,CHILDREN'S SERVICES,FUTURES FOR CHILDREN LIMITED,"3,532.20",AGENCY FOSTERING,EXTERNAL AGENCIES AND BODIES,2102950982,1000041984
03.05.2019,CHILDREN'S SERVICES,FUTURES FOR CHILDREN LIMITED,"3,487.20",AGENCY FOSTERING,EXTERNAL AGENCIES AND BODIES,2102950983,1000041984
03.05.2019,CHILDREN'S SERVICES,KENT HOMEFINDING & FOSTERING LTD,"3,450.00",AGENCY FOSTERING,EXTERNAL AGENCIES AND BODIES,2102950951,1000033978
03.05.2019,CHILDREN'S SERVICES,KENT HOMEFINDING & FOSTERING LTD,"3,450.00",AGENCY FOSTERING,EXTERNAL AGENCIES AND BODIES,2102950971,1000033978
03.05.2019,CHILDREN'S SERVICES,KENT HOMEFINDING & FOSTERING LTD,"3,450.00",AGENCY FOSTERING,EXTERNAL AGENCIES AND BODIES,2102950988,1000033978
03.05.2019,CHILDREN'S SERVICES,BARNARDOS SERVICES LTD,"3,444.30",AGENCY FOSTERING,EXTERNAL AGENCIES AND BODIES,2102950953,1000063730
03.05.2019,CHILDREN'S SERVICES,CHILDREN OF COLOUR,"3,444.00",AGENCY FOSTERING,EXTERNAL AGENCIES AND BODIES,2102950954,1000044955
03.05.2019,CHILDREN'S SERVICES,CHILDREN OF COLOUR,"3,444.00",AGENCY FOSTERING,EXTERNAL AGENCIES AND BODIES,2102951012,1000044955
03.05.2019,CHILDREN'S SERVICES,SHINING STARS FOSTERING AGENCY LTD,"3,428.40",AGENCY FOSTERING,EXTERNAL AGENCIES AND BODIES,2102950986,1000079431
03.05.2019,CHILDREN'S SERVICES,RYANCARE FOSTERING,"3,427.50",AGENCY FOSTERING,EXTERNAL AGENCIES AND BODIES,2102950979,1000062376
03.05.2019,CHILDREN'S SERVICES,CHILDREN OF COLOUR,"3,360.00",AGENCY FOSTERING,EXTERNAL AGENCIES AND BODIES,2102951005,1000044955
03.05.2019,CHILDREN'S SERVICES,FUTURES FOR CHILDREN LIMITED,"3,338.70",AGENCY FOSTERING,EXTERNAL AGENCIES AND BODIES,2102951011,1000041984
03.05.2019,CHILDREN'S SERVICES,FIVE RIVERS CHILD CARE LTD,"3,257.14",AGENCY FOSTERING,EXTERNAL AGENCIES AND BODIES,2102951001,1000018792
03.05.2019,CHILDREN'S SERVICES,CONNECT FOSTERING SERVICES LTD,"3,235.71",AGENCY FOSTERING,EXTERNAL AGENCIES AND BODIES,2102950997,1000079969
03.05.2019,CHILDREN'S SERVICES,SHINING STARS FOSTERING AGENCY LTD,"3,214.20",AGENCY FOSTERING,EXTERNAL AGENCIES AND BODIES,2102951013,1000079431
03.05.2019,CHILDREN'S SERVICES,CORE ASSETS FOSTERING LTD,"3,211.60",AGENCY FOSTERING,EXTERNAL AGENCIES AND BODIES,2102950974,11288002
03.05.2019,CHILDREN'S SERVICES,COMPASS FOSTERING SOUTH LTD,"3,201.39",AGENCY FOSTERING,EXTERNAL AGENCIES AND BODIES,2102950962,1000073772
03.05.2019,CHILDREN'S SERVICES,COMPASS FOSTERING SOUTH LTD,"3,201.39",AGENCY FOSTERING,EXTERNAL AGENCIES AND BODIES,2102950999,1000073772
03.05.2019,CHILDREN'S SERVICES,SELECT FOSTERCARE SERVICES LTD,"3,180.00",AGENCY FOSTERING,EXTERNAL AGENCIES AND BODIES,2102950970,1000079277
03.05.2019,CHILDREN'S SERVICES,THE XCEL 2000 PARTNERSHIP LTD,"3,055.71",AGENCY FOSTERING,EXTERNAL AGENCIES AND BODIES,2102950990,1000024427
03.05.2019,CHILDREN'S SERVICES,COMPASS FOSTERING LONDON LTD,"2,978.70",AGENCY FOSTERING,EXTERNAL AGENCIES AND BODIES,2102950961,1000057908
03.05.2019,CHILDREN'S SERVICES,KENT HOMEFINDING & FOSTERING LTD,"2,943.00",AGENCY FOSTERING,EXTERNAL AGENCIES AND BODIES,2102950958,1000033978
03.05.2019,CHILDREN'S SERVICES,KENT HOMEFINDING & FOSTERING LTD,"2,943.00",AGENCY FOSTERING,EXTERNAL AGENCIES AND BODIES,2102950987,1000033978
03.05.2019,CHILDREN'S SERVICES,KENT HOMEFINDING & FOSTERING LTD,"2,943.00",AGENCY FOSTERING,EXTERNAL AGENCIES AND BODIES,2102950992,1000033978
03.05.2019,CHILDREN'S SERVICES,PHS GROUP PLC,"2,070.76",BISHOPS HOUSE EARLY YEARS CENTRE,EXTERNAL AGENCIES AND BODIES,5902356864,1851993
03.05.2019,CHILDREN'S SERVICES,PHS GROUP PLC,"1,105.51",BISHOPS HOUSE EARLY YEARS CENTRE,EXTERNAL AGENCIES AND BODIES,5902356858,1851993
03.05.2019,CHILDREN'S SERVICES,EAGLE HOUSE (MITCHAM) LTD T/A EAGLE HOUSE MITCHAM,"25,751.67",CASEWORK OLA  0-8,RECOUPMENT,2102951238,1000071156
03.05.2019,CHILDREN'S SERVICES,EAGLE HOUSE (MITCHAM) LTD T/A EAGLE HOUSE MITCHAM,"19,488.33",CASEWORK OLA  0-8,RECOUPMENT,2102951229,1000071156
03.05.2019,CHILDREN'S SERVICES,EAGLE HOUSE (MITCHAM) LTD T/A EAGLE HOUSE MITCHAM,"16,990.33",CASEWORK OLA  0-8,RECOUPMENT,2102951235,1000071156
03.05.2019,CHILDREN'S SERVICES,EAGLE HOUSE (MITCHAM) LTD T/A EAGLE HOUSE MITCHAM,"16,990.33",CASEWORK OLA  0-8,RECOUPMENT,2102951236,1000071156
03.05.2019,CHILDREN'S SERVICES,EAGLE HOUSE (MITCHAM) LTD T/A EAGLE HOUSE MITCHAM,"16,618.33",CASEWORK OLA  0-8,RECOUPMENT,2102951231,1000071156
03.05.2019,CHILDREN'S SERVICES,EAGLE HOUSE (MITCHAM) LTD T/A EAGLE HOUSE MITCHAM,"16,618.33",CASEWORK OLA  0-8,RECOUPMENT,2102951232,1000071156
03.05.2019,CHILDREN'S SERVICES,EAGLE HOUSE (MITCHAM) LTD T/A EAGLE HOUSE MITCHAM,"16,618.33",CASEWORK OLA  0-8,RECOUPMENT,2102951233,1000071156
03.05.2019,CHILDREN'S SERVICES,EAGLE HOUSE (MITCHAM) LTD T/A EAGLE HOUSE MITCHAM,"16,618.33",CASEWORK OLA  0-8,RECOUPMENT,2102951234,1000071156
03.05.2019,CHILDREN'S SERVICES,EAGLE HOUSE (MITCHAM) LTD T/A EAGLE HOUSE MITCHAM,"16,618.33",CASEWORK OLA  0-8,RECOUPMENT,2102951237,1000071156
03.05.2019,CHILDREN'S SERVICES,THE FOSTERING NETWORK,"5,167.50",DISABILITY & HIV,SUBSCRIPTIONS,5902356973,1000030450
03.05.2019,CHILDREN'S SERVICES,THE FOSTERING NETWORK,"3,802.50",DISABILITY & HIV,SUBSCRIPTIONS,5902356973,1000030450
03.05.2019,CHILDREN'S SERVICES,E4 LAW LTD,927.24,LEGAL,LEGAL FEES & COURT COSTS,2102950921,1000072222
03.05.2019,CHILDREN'S SERVICES,TIM PARKER,"16,650.00",LEGAL,LEGAL FEES & COURT COSTS,2102950930,1000061949
03.05.2019,CHILDREN'S SERVICES,NEIL MERCER,"3,150.00",LEGAL,LEGAL FEES & COURT COSTS,2102950923,1000068906
03.05.2019,CHILDREN'S SERVICES,DEBORAH SEITLER,"2,490.00",LEGAL,LEGAL FEES & COURT COSTS,2102950908,1000059125
03.05.2019,CHILDREN'S SERVICES,TOM RESTALL,"1,050.00",LEGAL,LEGAL FEES & COURT COSTS,2102950934,1000063020
03.05.2019,CHILDREN'S SERVICES,JULIAN DATE,800,LEGAL,LEGAL FEES & COURT COSTS,2102950918,1000068743
03.05.2019,CHILDREN'S SERVICES,MELANIE NAZARETH,675,LEGAL,LEGAL FEES & COURT COSTS,2102950922,1000044248
03.05.2019,CHILDREN'S SERVICES,JACOB RICHARDS,650,LEGAL,LEGAL FEES & COURT COSTS,2102950916,1000080778
03.05.2019,CHILDREN'S SERVICES,OBA NSUGBE QC,525,LEGAL,LEGAL FEES & COURT COSTS,2102950924,1000082395
03.05.2019,CHILDREN'S SERVICES,PAULA DIAZ,475,LEGAL,LEGAL FEES & COURT COSTS,2102950926,1000063943
03.05.2019,CHILDREN'S SERVICES,GAYLE BISBEY,450,LEGAL,LEGAL FEES & COURT COSTS,2102950914,1000074738
03.05.2019,CHILDREN'S SERVICES,TIM PARKER,400,LEGAL,LEGAL FEES & COURT COSTS,2102950929,1000061949
03.05.2019,CHILDREN'S SERVICES,BALDIP SINGH,325,LEGAL,LEGAL FEES & COURT COSTS,2102950898,1000081252
03.05.2019,CHILDREN'S SERVICES,EMILY RADCLIFFE,300,LEGAL,LEGAL FEES & COURT COSTS,2102950909,1000047317
03.05.2019,CHILDREN'S SERVICES,KIERAN COLEMAN,300,LEGAL,LEGAL FEES & COURT COSTS,2102950919,1000074145
03.05.2019,CHILDREN'S SERVICES,LAUREN SUDING,300,LEGAL,LEGAL FEES & COURT COSTS,2102950920,1000079692
03.05.2019,CHILDREN'S SERVICES,OLIVER MILLINGTON,300,LEGAL,LEGAL FEES & COURT COSTS,2102950925,1000051055
03.05.2019,CHILDREN'S SERVICES,TIM PARKER,300,LEGAL,LEGAL FEES & COURT COSTS,2102950931,1000061949
03.05.2019,CHILDREN'S SERVICES,TOM RESTALL,300,LEGAL,LEGAL FEES & COURT COSTS,2102950933,1000063020
03.05.2019,CHILDREN'S SERVICES,MIME CONSULTING LTD,"6,635.00",MANAGEMENT AND SUPPORT,PROFESSIONAL FEES,5902356863,1000057079
03.05.2019,CHILDREN'S SERVICES,ROEHAMPTON LODGE PRIORY,"15,000.00",PFA TEAM SOUTHWARK 9 PLUS,ADDITIONAL PAYMENTS TO AGENCIES/CARERS,2102951230,1000076122
03.05.2019,CHILDREN'S SERVICES,CAVENDISH SCHOOL,"2,699.84",PFA TEAM SOUTHWARK 9 PLUS,RECOUPMENT,2102951239,1000024278
03.05.2019,CHILDREN'S SERVICES,THE LITERACY TREE LTD,"3,850.00",PRIMARY ACHIEVEMENT,CONSULTANTS SERVICES,5902356957,1000069542
03.05.2019,CHILDREN'S SERVICES,CONTACT PROFESSIONALS,532,RESOURCE PANEL,OTHER PAYMENTS FOR CLIENTS,2102951096,1000057263
03.05.2019,CHILDREN'S SERVICES,REDACTED PERSONAL DATA,756,SCH TRANS - CONTRACT COST,AGENCY STAFF,REDACTED,REDACTED
03.05.2019,CHILDREN'S SERVICES,REDACTED PERSONAL DATA,504,SCH TRANS - CONTRACT COST,AGENCY STAFF,REDACTED,REDACTED
03.05.2019,CHILDREN'S SERVICES,REDACTED PERSONAL DATA,253.2,SCH TRANS - CONTRACT COST,AGENCY STAFF,REDACTED,REDACTED
03.05.2019,CHILDREN'S SERVICES,REDACTED PERSONAL DATA,969.12,SCH TRANS - CONTRACT COST,CAR MILEAGE EXPENSES,REDACTED,REDACTED
03.05.2019,CHILDREN'S SERVICES,REDACTED PERSONAL DATA,565.02,SCH TRANS - CONTRACT COST,CAR MILEAGE EXPENSES,REDACTED,REDACTED
03.05.2019,CHILDREN'S SERVICES,REDACTED PERSONAL DATA,"1,393.68",SCH TRANS - CONTRACT COST,OTHER PAYMENTS FOR CLIENTS,REDACTED,REDACTED
03.05.2019,CHILDREN'S SERVICES,REDACTED PERSONAL DATA,651,SCH TRANS - CONTRACT COST,OTHER PAYMENTS FOR CLIENTS,REDACTED,REDACTED
03.05.2019,CHILDREN'S SERVICES,REDACTED PERSONAL DATA,550,SCH TRANS - CONTRACT COST,OTHER PAYMENTS FOR CLIENTS,REDACTED,REDACTED
03.05.2019,CHILDREN'S SERVICES,REDACTED PERSONAL DATA,480,SCH TRANS - CONTRACT COST,OTHER PAYMENTS FOR CLIENTS,REDACTED,REDACTED
03.05.2019,CHILDREN'S SERVICES,REDACTED PERSONAL DATA,336,SCH TRANS - CONTRACT COST,OTHER PAYMENTS FOR CLIENTS,REDACTED,REDACTED
03.05.2019,CHILDREN'S SERVICES,REDACTED PERSONAL DATA,275,SCH TRANS - CONTRACT COST,OTHER PAYMENTS FOR CLIENTS,REDACTED,REDACTED
03.05.2019,CHILDREN'S SERVICES,REDACTED PERSONAL DATA,255,SCH TRANS - CONTRACT COST,OTHER PAYMENTS FOR CLIENTS,REDACTED,REDACTED
03.05.2019,CHILDREN'S SERVICES,LIVING ACCOMODATION LTD,"2,856.00",TEMPORARY ACCOMMODATION,EXTERNAL AGENCIES AND BODIES,5902356950,1000063985
03.05.2019,CHILDREN'S SERVICES,TAAKSVALE HOUSING LTD,315,TEMPORARY ACCOMMODATION,EXTERNAL AGENCIES AND BODIES,5902356859,1000073665
03.05.2019,COMMUNITIES,DEYNSFORD TENANT MANAGEMENT ORGANISATION,"88,204.75",D'EYNSFORD ESTATE,M&M ALLOWANCE CO-OPS,5902356891,1000075613
03.05.2019,COMMUNITIES,S7 CHAUFFEURS LTD,"3,300.00",MAYORAL SUPPORT,MISCELLANEOUS EXPENSES,5902356889,1000075707
03.05.2019,COMMUNITIES,S7 CHAUFFEURS LTD,-435,MAYORAL SUPPORT,MISCELLANEOUS EXPENSES,5902356887,1000075707
03.05.2019,COMMUNITIES,FLAMINGO CREATIVE,430,MAYORAL SUPPORT,PRINTING,5902356881,1000044711
03.05.2019,COMMUNITIES,FLAMINGO CREATIVE,392,MAYORAL SUPPORT,PRINTING,5902356880,1000044711
03.05.2019,COMMUNITIES,FLAMINGO CREATIVE,346,MAYORAL SUPPORT,PRINTING,5902356879,1000044711
03.05.2019,COMMUNITIES,SOUTHSIDE PARTNERSHIP,"2,058.28",NO RECOURSE TO PUBLIC FUNDS,ACCOMMODATION CHARGES,5902356860,1716624
03.05.2019,COMMUNITIES,SOUTHSIDE PARTNERSHIP,-516.6,NO RECOURSE TO PUBLIC FUNDS,ACCOMMODATION CHARGES,5902356861,1716624
03.05.2019,COMMUNITIES,ELEANOR NURSING AND SOCIAL CARE LTD,"1,176.56",NO RECOURSE TO PUBLIC FUNDS,HOMECARE - C&V,2102951146,1000081695
03.05.2019,COMMUNITIES,ACHIEVING FOR CHILDREN,500,SAFEGUARDING BOARDS,HIRE OF ROOMS/HALLS,5902356804,1000077253
03.05.2019,CUSTOMER EXPERIENCE,T V F (UK) LTD,699.19,PECKHAM MSSP,OFFICE EXPENSES,5902356885,1000052046
03.05.2019,CUSTOMER EXPERIENCE HGF,TAAKSVALE HOUSING LTD,"99,719.55",NIGHTLY TA (NSC),EXTERNAL AGENCIES AND BODIES,5902356794,1000073665
03.05.2019,CUSTOMER EXPERIENCE HGF,EDEN ESTATES LONDON LTD,"34,503.00",NIGHTLY TA (NSC),EXTERNAL AGENCIES AND BODIES,5902356820,1000061217
03.05.2019,CUSTOMER EXPERIENCE HGF,SK HOUSING LTD,"18,444.00",NIGHTLY TA (NSC),EXTERNAL AGENCIES AND BODIES,5902356944,1000070716
03.05.2019,CUSTOMER EXPERIENCE HGF,QUINARY LTD,"7,318.50",NIGHTLY TA (NSC),EXTERNAL AGENCIES AND BODIES,5902356946,1000029106
03.05.2019,CUSTOMER EXPERIENCE HGF,EASYMOVE EA LIMITED,"2,715.00",NIGHTLY TA (NSC),EXTERNAL AGENCIES AND BODIES,5902356948,1000066859
03.05.2019,CUSTOMER EXPERIENCE HGF,TAAKSVALE HOUSING LTD,875,NIGHTLY TA (NSC),EXTERNAL AGENCIES AND BODIES,5902356790,1000073665
03.05.2019,CUSTOMER EXPERIENCE HGF,WILLOW ESTATE AGENTS (LONDON) LTD,595,NIGHTLY TA (NSC),EXTERNAL AGENCIES AND BODIES,5902356961,1000060607
03.05.2019,DULWICH COMMUNITY COUNCIL,LOVE WEST DULWICH ,"2,500.00",LOVE WEST DULWICH SPRING FAIR 2019 ,GRANT,CHEQUE PAYMENT,CHEQUE PAYMENT
03.05.2019,ELECTORAL SVCES,FINANCIAL DATA MANAGEMENT PLC,592.04,BOROUGH COUNCIL ELECTIONS,LEGAL FEES & COURT COSTS,2102950912,1000031759
03.05.2019,ENVIRONMENT AND LEISURE,KINNEAR LANDSCAPE ARCHITECTS LTD,"3,755.50",CAPITAL PS (LEISURE),CONSTRUCTION FEES  - EXTERNAL,5902356895,1000076981
03.05.2019,ENVIRONMENT DIRECTORATE,GREENHAM TRADING LTD,918.05,ESTATE CLEANING-GENERAL,MATERIALS,5902356935,1000006610
03.05.2019,ENVIRONMENT DIRECTORATE,TFL TELESALES / OYSTER FULFILMENT,280,PROJECT SUPPORT,PUBLIC TRANSPORT,5902356893,1000059727
03.05.2019,ENVIRONMENT DIRECTORATE,BRYAN MADAGAN ASSOCIATES LTD,466.2,ROUGH SLEEPERS,LEGAL FEES & COURT COSTS,2102950904,1000072045
03.05.2019,ENVIRONMENT DIRECTORATE,JARED NORMAN,450,ROUGH SLEEPERS,LEGAL FEES & COURT COSTS,2102950917,1000064080
03.05.2019,ENVIRONMENT DIRECTORATE,AUTO SISTANCE LTD,"1,800.00",STREET WORKS OVERHEADS,BOOKS & PUBLICATIONS,5902356822,1000070536
03.05.2019,ENVIRONMENT DIRECTORATE,AUTO SISTANCE LTD,"1,500.00",STREET WORKS OVERHEADS,BOOKS & PUBLICATIONS,5902356819,1000070536
03.05.2019,ENVIRONMENT DIRECTORATE,AUTO SISTANCE LTD,500,STREET WORKS OVERHEADS,BOOKS & PUBLICATIONS,5902356812,1000070536
03.05.2019,F & C S EXCLUDING CORPORATE BUDGETS,REAL ASSET MANAGEMENT LTD,"9,940.00",CORPORATE SERVICES AND F&G,SOFTWARE,5902356481,1000066157
03.05.2019,HOUSING GENERAL FUND,STANNAH LIFT SERVICES LTD,"5,799.00",CAPITAL PS (HOUSING GF),CAPITAL GRANTS,5902356843,1063595
03.05.2019,HOUSING HRA,POTTER RAPER AND PARTNERS,"5,145.13",CAPITAL PS (HRA),CONSTRUCTION FEES  - EXTERNAL,5902356081,1009369
03.05.2019,HOUSING HRA,JOHN BURKE ASSOCIATES,"2,432.00",CAPITAL PS (HRA),CONSTRUCTION FEES - INTERNAL,5902356865,1000026411
03.05.2019,HOUSING HRA,JOHN BURKE ASSOCIATES,"1,344.00",CAPITAL PS (HRA),CONSTRUCTION FEES - INTERNAL,5902356870,1000026411
03.05.2019,HOUSING HRA,JOHN BURKE ASSOCIATES,704,CAPITAL PS (HRA),CONSTRUCTION FEES - INTERNAL,5902356871,1000026411
03.05.2019,HOUSING HRA,JOHN BURKE ASSOCIATES,416,CAPITAL PS (HRA),CONSTRUCTION FEES - INTERNAL,5902356867,1000026411
03.05.2019,HOUSING HRA,CARTER JONAS LLP,700,CAPITAL PS (HRA),LAND & BUILDINGS ACQUISITION FEES,5902356251,1000073124
03.05.2019,HOUSING HRA,WALWORTH HOMES LTD,"1,319,696.35",CAPITAL PS (REGEN),CONST'N MAIN CONTRACT - NON CERTIFICATED,5902356821,1000079197
03.05.2019,HOUSING HRA,WALWORTH HOMES LTD,"351,166.34",CAPITAL PS (REGEN),CONSTRUCTION FEES,5902356841,1000079197
03.05.2019,HOUSING HRA,WALWORTH HOMES LTD,"74,287.16",CAPITAL PS (REGEN),CONSTRUCTION FEES,5902356821,1000079197
03.05.2019,HOUSING HRA,WALWORTH HOMES LTD,"49,694.73",CAPITAL PS (REGEN),CONSTRUCTION FEES,5902356841,1000079197
03.05.2019,HOUSING HRA,OCO LIMITED,"764,864.52",PAYMENTS CONTROL ACCOUNT - OCO,MANUAL CREDITORS,5902356894,1006066
03.05.2019,HOUSING HRA,OCO LIMITED,"138,474.12",PAYMENTS CONTROL ACCOUNT - OCO,MANUAL CREDITORS,5902356680,1006066
03.05.2019,HOUSING HRA,SMITH & BYFORD LTD,"113,765.56",SMITH AND BYFORD,MANUAL CREDITORS,5902356681,11212119
03.05.2019,HOUSING STRATEGY AND OPTIONS,HYDE HOUSING ASSOCIATION,500,HOMELESS & HOUSING OPTIONS MGT,EXTERNAL AGENCIES AND BODIES,5902356839,1000031709
03.05.2019,HOUSING STRATEGY AND OPTIONS,REDACTED PERSONAL DATA,"1,688.70",HOMELESS PROJECTS,GRANTS,REDACTED,REDACTED
03.05.2019,HOUSING STRATEGY AND OPTIONS,REDACTED PERSONAL DATA,"3,000.00",HOMELESS PROJECTS,GRANTS,REDACTED,REDACTED
03.05.2019,LEISURE DIRECTORATE,UNITED ST SAVIOUR`S CHARITY,"50,000.00",ADMINISTRATION,PROFESSIONAL FEES,5902356764,1000069890
03.05.2019,LEISURE DIRECTORATE,QUADRON SERVICES LIMITED,"4,875.00",CLIENT SERV(GRNS MAIN),OTHER CONTRACTORS,5902356813,1000066528
03.05.2019,LEISURE DIRECTORATE,GRAFTON MERCHANTING GB LTD,696.2,DULWICH AREA TEAM,OTHER R&M,5902356934,11296147
03.05.2019,LEISURE DIRECTORATE,EDF ENERGY PLC,"1,264.89",PLAY CENTRAL,ELECTRICITY,5902356890,1008746
03.05.2019,LEISURE DIRECTORATE,EDF ENERGY PLC,677.47,PLAY CENTRAL,ELECTRICITY,5902356896,1008746
03.05.2019,LEISURE DIRECTORATE,EDF ENERGY PLC,334.42,PLAY CENTRAL,ELECTRICITY,5902356892,1008746
03.05.2019,MODERNISATION HGF,ROYAL MAIL GROUP LTD,"5,277.27",160 TOOLEY ST.,POSTAGES,5902356928,1000008168
03.05.2019,MODERNISATION HGF,ROYAL MAIL GROUP LTD,"4,008.63",160 TOOLEY ST.,POSTAGES,5902356930,1000008168
03.05.2019,MODERNISATION HGF,PSI TALENT MEASUREMENT (UK) LTD,418.92,OCCUPATIONAL ASSESSMENT,CONSULTANTS SERVICES,5902356926,1000008858
03.05.2019,MODERNISATION HGF,COMENSURA LTD,"418,050.52",WEEKLY PAYMENTS,AGENCY STAFF,5902356713,1000051261
03.05.2019,PECKHAM AND NUNHEAD COMMUNITY COUNCIL,SOUTH LONDON FINE ART GALLERY AND LIBRARY,"3,000.00",SOUTH LONDON FINE ART GALLERY AND LIBRARY,GRANT,CHEQUE PAYMENT,CHEQUE PAYMENT
03.05.2019,PLANNING AND TRANSPORT,DANIEL KOLINSKY,"3,600.00",S106 & CIL ADMINISTRATION,LEGAL FEES & COURT COSTS,2102950907,1000040369
03.05.2019,PUBLIC HEALTH,CENTRAL LONDON COMMUNITY HEALTHCARE,"2,456.75",SEXUAL HEALTH - STI,EXTERNAL AGENCIES AND BODIES,5902356791,1000077767
03.05.2019,RESIDENT SERVICES,BRITISH GAS TRADING LTD,795,OPERATIONS/OFFICES ACCOMMODATION,ELECTRICITY,5902356932,1000055977
03.05.2019,RESIDENT SERVICES,BRITISH GAS TRADING LTD,-476.67,OPERATIONS/OFFICES ACCOMMODATION,ELECTRICITY,5902356933,1000055977
03.05.2019,RESIDENT SERVICES,SECURENT LTD,"2,294.00",TA PLACEMENTS,EXTERNAL AGENCIES AND BODIES,5902356959,1000079400
03.05.2019,SOUTHWARK BUILDING SERVICES,CITY ELECTRICAL FACTORS LTD,464.44,ELECTRICAL TEAM - ELECTRICIAN,MATERIALS,5902356922,1003485
03.05.2019,SOUTHWARK BUILDING SERVICES,CITY ELECTRICAL FACTORS LTD,297.98,ELECTRICAL TEAM - ELECTRICIAN,MATERIALS,5902356924,1003485
03.05.2019,SOUTHWARK BUILDING SERVICES,LONDON TOOLS LIMITED,"3,700.00",STORES/LOGISTICS,CREDITORS -GR/IR CLEARING ACCOUNT,5902356901,1000003017
03.05.2019,SOUTHWARK BUILDING SERVICES,KEMICO LIMITED,"1,296.00",STORES/LOGISTICS,CREDITORS -GR/IR CLEARING ACCOUNT,5902356914,1000030226
03.05.2019,SOUTHWARK BUILDING SERVICES,LONDON TOOLS LIMITED,"1,200.00",STORES/LOGISTICS,CREDITORS -GR/IR CLEARING ACCOUNT,5902356903,1000003017
03.05.2019,SOUTHWARK BUILDING SERVICES,LONDON TOOLS LIMITED,"1,200.00",STORES/LOGISTICS,CREDITORS -GR/IR CLEARING ACCOUNT,5902356906,1000003017
03.05.2019,SOUTHWARK BUILDING SERVICES,KEMICO LIMITED,"1,080.00",STORES/LOGISTICS,CREDITORS -GR/IR CLEARING ACCOUNT,5902356914,1000030226
03.05.2019,SOUTHWARK BUILDING SERVICES,KEMICO LIMITED,924.48,STORES/LOGISTICS,CREDITORS -GR/IR CLEARING ACCOUNT,5902356914,1000030226
03.05.2019,SOUTHWARK BUILDING SERVICES,LONDON TOOLS LIMITED,720,STORES/LOGISTICS,CREDITORS -GR/IR CLEARING ACCOUNT,5902356903,1000003017
03.05.2019,SOUTHWARK BUILDING SERVICES,LONDON TOOLS LIMITED,720,STORES/LOGISTICS,CREDITORS -GR/IR CLEARING ACCOUNT,5902356906,1000003017
03.05.2019,SOUTHWARK BUILDING SERVICES,AKW MEDI-CARE LTD,612.96,STORES/LOGISTICS,CREDITORS -GR/IR CLEARING ACCOUNT,5902356960,1000047103
03.05.2019,SOUTHWARK BUILDING SERVICES,LONDON TOOLS LIMITED,558,STORES/LOGISTICS,CREDITORS -GR/IR CLEARING ACCOUNT,5902356906,1000003017
03.05.2019,SOUTHWARK BUILDING SERVICES,LONDON TOOLS LIMITED,500,STORES/LOGISTICS,CREDITORS -GR/IR CLEARING ACCOUNT,5902356905,1000003017
03.05.2019,SOUTHWARK BUILDING SERVICES,LONDON TOOLS LIMITED,418.5,STORES/LOGISTICS,CREDITORS -GR/IR CLEARING ACCOUNT,5902356903,1000003017
03.05.2019,SOUTHWARK BUILDING SERVICES,LONDON TOOLS LIMITED,387.5,STORES/LOGISTICS,CREDITORS -GR/IR CLEARING ACCOUNT,5902356906,1000003017
03.05.2019,SOUTHWARK BUILDING SERVICES,AKW MEDI-CARE LTD,331,STORES/LOGISTICS,CREDITORS -GR/IR CLEARING ACCOUNT,5902356972,1000047103
04.05.2019,CHIEF EXECUTIVE'S OFFICE,UNIVERSITY OF ARTS LONDON,"8,500.00",BUSINESS SUPPORT,SUBSCRIPTIONS,5902356334,11042483
04.05.2019,CHILDREN'S SERVICES,GUARANTEED TRAINING LTD,"1,250.00",FREE AND EARLY LEARNING TEAM,TRAINING,5902356947,1000066767
04.05.2019,ENVIRONMENT DIRECTORATE,NPOWER,465.24,SANDGATE STREET,ELECTRICITY,5902356083,1000032342
04.05.2019,ENVIRONMENT DIRECTORATE,NPOWER,416.92,SANDGATE STREET,ELECTRICITY,5902356086,1000032342
04.05.2019,HOUSING STRATEGY AND OPTIONS,TFL TELESALES / OYSTER FULFILMENT,555,HOMELESS & HOUSING OPTIONS MGT,PUBLIC TRANSPORT,5902356016,1000059727
04.05.2019,HOUSING STRATEGY AND OPTIONS,TME PROPERTY SERVICES T/A HUNTERS,"3,000.00",HOMELESS PROJECTS,GRANTS,5902356495,1000080913
04.05.2019,LEISURE DIRECTORATE,NPOWER,789.09,BLUE ANCHOR LIBRARY,ELECTRICITY,5902356652,1000055441
04.05.2019,LEISURE DIRECTORATE,CLARK & KENT CONTRACTORS,"11,950.00",BMX BIKE TRACK,OTHER R&M,5902356458,1000070603
04.05.2019,LEISURE DIRECTORATE,NPOWER,"1,104.59",NUNHEAD LIBRARY,ELECTRICITY,5902356227,1000055441
04.05.2019,LEISURE DIRECTORATE,NPOWER,898.76,NUNHEAD LIBRARY,ELECTRICITY,5902356220,1000055441
04.05.2019,MODERNISATION HGF,INTERSERVE (FACILITIES MANAGEMENT),"85,065.23",FM SERVICES BY INTERSERVE,SECURITY SERVICES,5902356061,1000070792
05.05.2019,ASSET MANAGEMENT,STANNAH LIFT SERVICES LTD,"1,925.00",ADAPTATIONS,BUILDING R&M,5902356602,1063595
05.05.2019,CHILDREN AND ADULT,HAVERSTOCK,750,CAPITAL PS (EDUCATION),CONSTRUCTION FEES - ARCHITECT,5902356246,1000074288
05.05.2019,COMMISSIONING & CENTRAL,THE DARTINGTON HALL TRUST LTD,735,AYSE ADULTS,TRAINING,5902356264,1000066355
05.05.2019,COMMUNITIES,TOGETHER WORKING FOR WELLBEING,"13,500.00",SOUTHWARK ANTI VIOLENCE UNIT,PROFESSIONAL FEES,5902356640,1000039537
05.05.2019,COMMUNITIES,EQUINOX CARE,"12,480.00",TIER 4 SERVICES,OTHER CONTRACTORS,5902356341,11325422
05.05.2019,ENVIRONMENT AND LEISURE,ALDO RINALDI,756.14,CAPITAL PS (LEISURE),CONSTR'N SUB CONTRACT - NON CERTIFICATED,5902356735,1000079649
05.05.2019,F & C S EXCLUDING CORPORATE BUDGETS,INFORMATION COMMISSIONERS OFFICE,"2,900.00",INFORMATION GOVERNANCE,SUBSCRIPTIONS,5902356331,1000000794
05.05.2019,HOUSING HRA,CARL TURNER ARCHITECTS LTD,"1,562.50",CAPITAL PS (HRA),CONSTRUCTION FEES - ARCHITECT,5902356501,1000060355
06.05.2019,CHILDREN'S SERVICES,EAST DULWICH EST T&RA,"1,100.00",FREE AND EARLY LEARNING TEAM,TRAINING,5902356949,1000050123
06.05.2019,COMMUNITIES,CANON UK LTD,780.83,TENANTS FUND,OP LEASE/HIRE CHARGES:PLANT/EQUIP/FURNIT,5902356327,1000015046
06.05.2019,ENVIRONMENT DIRECTORATE,GO PRO CHEMICALS LTD,"1,838.99",MANAGEMENT TEAM,MATERIALS,5902356466,1000079528
06.05.2019,ENVIRONMENT DIRECTORATE,LAND SKILLS TRAINING LTD,"1,650.00",NON HOUSING GROUNDS,TRAINING,5902356499,1000060035
06.05.2019,ENVIRONMENT DIRECTORATE,LAND SKILLS TRAINING LTD,449,NON HOUSING GROUNDS,TRAINING,5902356500,1000060035
06.05.2019,ENVIRONMENT DIRECTORATE,LAND SKILLS TRAINING LTD,387,NON HOUSING GROUNDS,TRAINING,5902356499,1000060035
06.05.2019,F & C S EXCLUDING CORPORATE BUDGETS,DSI BILLING SERVICES LTD,"3,266.24",ADMINISTRATIVE SUPPORT,POSTAGES,5902356603,1000058640
06.05.2019,HOUSING HRA,CALFORD SEADEN LLP,"5,981.67",CAPITAL PS (HRA),CONSTRUCTION FEES  - EXTERNAL,5902356352,1061592
06.05.2019,HOUSING HRA,CALFORD SEADEN LLP,362.6,CAPITAL PS (HRA),CONSTRUCTION FEES  - EXTERNAL,5902356381,1061592
06.05.2019,HOUSING HRA,SPOKEMEAD MAINTENANCE LTD,"681,118.25",PAYMENTS CONTROL ACCOUNT - SPOKEMEAD,MANUAL CREDITORS,5902356413,1000059211
06.05.2019,MODERNISATION HGF,INFINITY NETWORKS LTD,874,REPAIR AND MAINTENANCE SERVICES,DATA COMMUNICATIONS,5902356368,1000035571
06.05.2019,MODERNISATION HGF,INFINITY NETWORKS LTD,650,REPAIR AND MAINTENANCE SERVICES,DATA COMMUNICATIONS,5902356367,1000035571
06.05.2019,MODERNISATION HGF,INFINITY NETWORKS LTD,574,REPAIR AND MAINTENANCE SERVICES,DATA COMMUNICATIONS,5902356369,1000035571
07.05.2019,ADULT SOCIAL CARE,DINARDO SUPPORTS LTD,378.43,APPOINTEESHIPS,OTHER PAYMENTS FOR CLIENTS,2102951243,1000063093
07.05.2019,ADULT SOCIAL CARE,THAMES WATER UTILITIES LTD,268.89,APPOINTEESHIPS,OTHER PAYMENTS FOR CLIENTS,2102950504,11003005
07.05.2019,ADULT SOCIAL CARE,THAMES WATER UTILITIES LTD,-268.89,APPOINTEESHIPS,OTHER PAYMENTS FOR CLIENTS,2102951983,11003005
07.05.2019,ADULT SOCIAL CARE,REDACTED PERSONAL DATA,277.3,APPOINTEESHIPS,OTHER PAYMENTS FOR CLIENTS,REDACTED,REDACTED
07.05.2019,ADULT SOCIAL CARE,THE CAMDEN SOCIETY (SOCIAL CARE),"3,114.00",LD LTS 18-64,DAYCARE,2102951383,1000036369
07.05.2019,ADULT SOCIAL CARE,THE CAMDEN SOCIETY (SOCIAL CARE),"2,700.00",LD LTS 18-64,DAYCARE,2102951402,1000036369
07.05.2019,ADULT SOCIAL CARE,THE CAMDEN SOCIETY (SOCIAL CARE),"2,525.00",LD LTS 18-64,DAYCARE,2102951344,1000036369
07.05.2019,ADULT SOCIAL CARE,THE CAMDEN SOCIETY (SOCIAL CARE),"2,500.00",LD LTS 18-64,DAYCARE,2102951371,1000036369
07.05.2019,ADULT SOCIAL CARE,THE CAMDEN SOCIETY (SOCIAL CARE),"2,489.68",LD LTS 18-64,DAYCARE,2102951374,1000036369
07.05.2019,ADULT SOCIAL CARE,THE CAMDEN SOCIETY (SOCIAL CARE),"2,448.00",LD LTS 18-64,DAYCARE,2102951396,1000036369
07.05.2019,ADULT SOCIAL CARE,THE CAMDEN SOCIETY (SOCIAL CARE),"2,374.00",LD LTS 18-64,DAYCARE,2102951376,1000036369
07.05.2019,ADULT SOCIAL CARE,THE CAMDEN SOCIETY (SOCIAL CARE),"2,280.50",LD LTS 18-64,DAYCARE,2102951361,1000036369
07.05.2019,ADULT SOCIAL CARE,THE CAMDEN SOCIETY (SOCIAL CARE),"1,848.00",LD LTS 18-64,DAYCARE,2102951404,1000036369
07.05.2019,ADULT SOCIAL CARE,THE CAMDEN SOCIETY (SOCIAL CARE),"1,848.00",LD LTS 18-64,DAYCARE,2102951405,1000036369
07.05.2019,ADULT SOCIAL CARE,THE CAMDEN SOCIETY (SOCIAL CARE),"1,760.00",LD LTS 18-64,DAYCARE,2102951346,1000036369
07.05.2019,ADULT SOCIAL CARE,THE CAMDEN SOCIETY (SOCIAL CARE),"1,760.00",LD LTS 18-64,DAYCARE,2102951364,1000036369
07.05.2019,ADULT SOCIAL CARE,THE CAMDEN SOCIETY (SOCIAL CARE),"1,634.76",LD LTS 18-64,DAYCARE,2102951407,1000036369
07.05.2019,ADULT SOCIAL CARE,THE CAMDEN SOCIETY (SOCIAL CARE),"1,536.00",LD LTS 18-64,DAYCARE,2102951403,1000036369
07.05.2019,ADULT SOCIAL CARE,THE CAMDEN SOCIETY (SOCIAL CARE),"1,500.00",LD LTS 18-64,DAYCARE,2102951384,1000036369
07.05.2019,ADULT SOCIAL CARE,THE CAMDEN SOCIETY (SOCIAL CARE),"1,473.60",LD LTS 18-64,DAYCARE,2102951400,1000036369
07.05.2019,ADULT SOCIAL CARE,THE CAMDEN SOCIETY (SOCIAL CARE),"1,451.52",LD LTS 18-64,DAYCARE,2102951392,1000036369
07.05.2019,ADULT SOCIAL CARE,THE CAMDEN SOCIETY (SOCIAL CARE),"1,408.00",LD LTS 18-64,DAYCARE,2102951378,1000036369
07.05.2019,ADULT SOCIAL CARE,THE CAMDEN SOCIETY (SOCIAL CARE),"1,408.00",LD LTS 18-64,DAYCARE,2102951393,1000036369
07.05.2019,ADULT SOCIAL CARE,THE CAMDEN SOCIETY (SOCIAL CARE),"1,320.00",LD LTS 18-64,DAYCARE,2102951370,1000036369
07.05.2019,ADULT SOCIAL CARE,THE CAMDEN SOCIETY (SOCIAL CARE),"1,129.50",LD LTS 18-64,DAYCARE,2102951363,1000036369
07.05.2019,ADULT SOCIAL CARE,THE CAMDEN SOCIETY (SOCIAL CARE),"1,128.00",LD LTS 18-64,DAYCARE,2102951373,1000036369
07.05.2019,ADULT SOCIAL CARE,THE CAMDEN SOCIETY (SOCIAL CARE),"1,128.00",LD LTS 18-64,DAYCARE,2102951387,1000036369
07.05.2019,ADULT SOCIAL CARE,THE CAMDEN SOCIETY (SOCIAL CARE),"1,122.00",LD LTS 18-64,DAYCARE,2102951366,1000036369
07.05.2019,ADULT SOCIAL CARE,THE CAMDEN SOCIETY (SOCIAL CARE),"1,056.00",LD LTS 18-64,DAYCARE,2102951357,1000036369
07.05.2019,ADULT SOCIAL CARE,THE CAMDEN SOCIETY (SOCIAL CARE),988,LD LTS 18-64,DAYCARE,2102951355,1000036369
07.05.2019,ADULT SOCIAL CARE,THE CAMDEN SOCIETY (SOCIAL CARE),988,LD LTS 18-64,DAYCARE,2102951369,1000036369
07.05.2019,ADULT SOCIAL CARE,THE CAMDEN SOCIETY (SOCIAL CARE),960,LD LTS 18-64,DAYCARE,2102951360,1000036369
07.05.2019,ADULT SOCIAL CARE,THE CAMDEN SOCIETY (SOCIAL CARE),960,LD LTS 18-64,DAYCARE,2102951375,1000036369
07.05.2019,ADULT SOCIAL CARE,THE CAMDEN SOCIETY (SOCIAL CARE),882,LD LTS 18-64,DAYCARE,2102951343,1000036369
07.05.2019,ADULT SOCIAL CARE,THE CAMDEN SOCIETY (SOCIAL CARE),882,LD LTS 18-64,DAYCARE,2102951356,1000036369
07.05.2019,ADULT SOCIAL CARE,THE CAMDEN SOCIETY (SOCIAL CARE),882,LD LTS 18-64,DAYCARE,2102951368,1000036369
07.05.2019,ADULT SOCIAL CARE,THE CAMDEN SOCIETY (SOCIAL CARE),882,LD LTS 18-64,DAYCARE,2102951395,1000036369
07.05.2019,ADULT SOCIAL CARE,THE CAMDEN SOCIETY (SOCIAL CARE),882,LD LTS 18-64,DAYCARE,2102951398,1000036369
07.05.2019,ADULT SOCIAL CARE,THE CAMDEN SOCIETY (SOCIAL CARE),880,LD LTS 18-64,DAYCARE,2102951379,1000036369
07.05.2019,ADULT SOCIAL CARE,THE CAMDEN SOCIETY (SOCIAL CARE),842.7,LD LTS 18-64,DAYCARE,2102951349,1000036369
07.05.2019,ADULT SOCIAL CARE,THE CAMDEN SOCIETY (SOCIAL CARE),765,LD LTS 18-64,DAYCARE,2102951397,1000036369
07.05.2019,ADULT SOCIAL CARE,THE CAMDEN SOCIETY (SOCIAL CARE),753.6,LD LTS 18-64,DAYCARE,2102951345,1000036369
07.05.2019,ADULT SOCIAL CARE,THE CAMDEN SOCIETY (SOCIAL CARE),753.6,LD LTS 18-64,DAYCARE,2102951351,1000036369
07.05.2019,ADULT SOCIAL CARE,THE CAMDEN SOCIETY (SOCIAL CARE),753.6,LD LTS 18-64,DAYCARE,2102951381,1000036369
07.05.2019,ADULT SOCIAL CARE,THE CAMDEN SOCIETY (SOCIAL CARE),753.6,LD LTS 18-64,DAYCARE,2102951386,1000036369
07.05.2019,ADULT SOCIAL CARE,THE CAMDEN SOCIETY (SOCIAL CARE),749.2,LD LTS 18-64,DAYCARE,2102951350,1000036369
07.05.2019,ADULT SOCIAL CARE,THE CAMDEN SOCIETY (SOCIAL CARE),742.5,LD LTS 18-64,DAYCARE,2102951401,1000036369
07.05.2019,ADULT SOCIAL CARE,THE CAMDEN SOCIETY (SOCIAL CARE),706,LD LTS 18-64,DAYCARE,2102951358,1000036369
07.05.2019,ADULT SOCIAL CARE,THE CAMDEN SOCIETY (SOCIAL CARE),706,LD LTS 18-64,DAYCARE,2102951359,1000036369
07.05.2019,ADULT SOCIAL CARE,THE CAMDEN SOCIETY (SOCIAL CARE),706,LD LTS 18-64,DAYCARE,2102951372,1000036369
07.05.2019,ADULT SOCIAL CARE,THE CAMDEN SOCIETY (SOCIAL CARE),706,LD LTS 18-64,DAYCARE,2102951380,1000036369
07.05.2019,ADULT SOCIAL CARE,THE CAMDEN SOCIETY (SOCIAL CARE),706,LD LTS 18-64,DAYCARE,2102951389,1000036369
07.05.2019,ADULT SOCIAL CARE,THE CAMDEN SOCIETY (SOCIAL CARE),706,LD LTS 18-64,DAYCARE,2102951391,1000036369
07.05.2019,ADULT SOCIAL CARE,THE CAMDEN SOCIETY (SOCIAL CARE),705.6,LD LTS 18-64,DAYCARE,2102951348,1000036369
07.05.2019,ADULT SOCIAL CARE,THE CAMDEN SOCIETY (SOCIAL CARE),705.6,LD LTS 18-64,DAYCARE,2102951352,1000036369
07.05.2019,ADULT SOCIAL CARE,THE CAMDEN SOCIETY (SOCIAL CARE),705.6,LD LTS 18-64,DAYCARE,2102951367,1000036369
07.05.2019,ADULT SOCIAL CARE,THE CAMDEN SOCIETY (SOCIAL CARE),704,LD LTS 18-64,DAYCARE,2102951354,1000036369
07.05.2019,ADULT SOCIAL CARE,THE CAMDEN SOCIETY (SOCIAL CARE),704,LD LTS 18-64,DAYCARE,2102951399,1000036369
07.05.2019,ADULT SOCIAL CARE,THE CAMDEN SOCIETY (SOCIAL CARE),676.8,LD LTS 18-64,DAYCARE,2102951353,1000036369
07.05.2019,ADULT SOCIAL CARE,THE CAMDEN SOCIETY (SOCIAL CARE),609.6,LD LTS 18-64,DAYCARE,2102951377,1000036369
07.05.2019,ADULT SOCIAL CARE,THE CAMDEN SOCIETY (SOCIAL CARE),582,LD LTS 18-64,DAYCARE,2102951382,1000036369
07.05.2019,ADULT SOCIAL CARE,THE CAMDEN SOCIETY (SOCIAL CARE),480,LD LTS 18-64,DAYCARE,2102951365,1000036369
07.05.2019,ADULT SOCIAL CARE,THE CAMDEN SOCIETY (SOCIAL CARE),465.6,LD LTS 18-64,DAYCARE,2102951362,1000036369
07.05.2019,ADULT SOCIAL CARE,THE CAMDEN SOCIETY (SOCIAL CARE),465.6,LD LTS 18-64,DAYCARE,2102951390,1000036369
07.05.2019,ADULT SOCIAL CARE,THE CAMDEN SOCIETY (SOCIAL CARE),425.1,LD LTS 18-64,DAYCARE,2102951388,1000036369
07.05.2019,ADULT SOCIAL CARE,THE CAMDEN SOCIETY (SOCIAL CARE),384,LD LTS 18-64,DAYCARE,2102951406,1000036369
07.05.2019,ADULT SOCIAL CARE,THE NEW SHOOTS,300,LD LTS 18-64,DAYCARE,2102951261,1000073970
07.05.2019,ADULT SOCIAL CARE,KENT HARRIER PROPERTY MANAGEMENT,"1,590.00",LD LTS 18-64,EXTERNAL AGENCIES AND BODIES,2102951264,1000078130
07.05.2019,ADULT SOCIAL CARE,KENT HARRIER PROPERTY MANAGEMENT,"1,516.00",LD LTS 18-64,EXTERNAL AGENCIES AND BODIES,2102951263,1000078130
07.05.2019,ADULT SOCIAL CARE,PEOPLEPLUS ILS,"3,500.00",LD LTS 18-64,PAYMENTS TO CLIENTS (DIRECT PAYMENTS),2102951336,1000061886
07.05.2019,ADULT SOCIAL CARE,PEOPLEPLUS ILS,"1,890.40",LD LTS 18-64,PAYMENTS TO CLIENTS (DIRECT PAYMENTS),2102951335,1000061886
07.05.2019,ADULT SOCIAL CARE,REDACTED PERSONAL DATA,502.6,LD LTS 18-64,PAYMENTS TO CLIENTS (DIRECT PAYMENTS),REDACTED,REDACTED
07.05.2019,ADULT SOCIAL CARE,HEALTH PERSONNEL LTD,"4,595.00",LD LTS 18-64,RESIDENTIAL CARE,2102951270,1000076377
07.05.2019,ADULT SOCIAL CARE,CARE O LINE,"3,847.50",LD LTS 18-64,SUPPORTED LIVING,2102951304,11241743
07.05.2019,ADULT SOCIAL CARE,CARE O LINE,"3,847.50",LD LTS 18-64,SUPPORTED LIVING,2102951306,11241743
07.05.2019,ADULT SOCIAL CARE,CARE O LINE,"3,847.50",LD LTS 18-64,SUPPORTED LIVING,2102951307,11241743
07.05.2019,ADULT SOCIAL CARE,CARE O LINE,"3,847.50",LD LTS 18-64,SUPPORTED LIVING,2102951308,11241743
07.05.2019,ADULT SOCIAL CARE,CARE O LINE,"3,847.50",LD LTS 18-64,SUPPORTED LIVING,2102951310,11241743
07.05.2019,ADULT SOCIAL CARE,CARE O LINE,"3,847.50",LD LTS 18-64,SUPPORTED LIVING,2102951320,11241743
07.05.2019,ADULT SOCIAL CARE,CARE O LINE,"3,847.50",LD LTS 18-64,SUPPORTED LIVING,2102951322,11241743
07.05.2019,ADULT SOCIAL CARE,CARE O LINE,"3,610.00",LD LTS 18-64,SUPPORTED LIVING,2102951327,11241743
07.05.2019,ADULT SOCIAL CARE,CARE O LINE,"3,230.00",LD LTS 18-64,SUPPORTED LIVING,2102951330,11241743
07.05.2019,ADULT SOCIAL CARE,CARE O LINE,"3,182.50",LD LTS 18-64,SUPPORTED LIVING,2102951318,11241743
07.05.2019,ADULT SOCIAL CARE,CARE O LINE,"3,135.00",LD LTS 18-64,SUPPORTED LIVING,2102951321,11241743
07.05.2019,ADULT SOCIAL CARE,CARE O LINE,"3,016.25",LD LTS 18-64,SUPPORTED LIVING,2102951305,11241743
07.05.2019,ADULT SOCIAL CARE,CARE O LINE,"3,016.25",LD LTS 18-64,SUPPORTED LIVING,2102951309,11241743
07.05.2019,ADULT SOCIAL CARE,CARE O LINE,"3,016.25",LD LTS 18-64,SUPPORTED LIVING,2102951311,11241743
07.05.2019,ADULT SOCIAL CARE,CARE O LINE,"3,016.25",LD LTS 18-64,SUPPORTED LIVING,2102951312,11241743
07.05.2019,ADULT SOCIAL CARE,CARE O LINE,"3,016.25",LD LTS 18-64,SUPPORTED LIVING,2102951314,11241743
07.05.2019,ADULT SOCIAL CARE,CARE O LINE,"3,016.25",LD LTS 18-64,SUPPORTED LIVING,2102951315,11241743
07.05.2019,ADULT SOCIAL CARE,CARE O LINE,"3,016.25",LD LTS 18-64,SUPPORTED LIVING,2102951316,11241743
07.05.2019,ADULT SOCIAL CARE,CARE O LINE,"3,016.25",LD LTS 18-64,SUPPORTED LIVING,2102951317,11241743
07.05.2019,ADULT SOCIAL CARE,CARE O LINE,"3,016.25",LD LTS 18-64,SUPPORTED LIVING,2102951323,11241743
07.05.2019,ADULT SOCIAL CARE,CARE O LINE,"3,016.25",LD LTS 18-64,SUPPORTED LIVING,2102951325,11241743
07.05.2019,ADULT SOCIAL CARE,CARE O LINE,"3,016.25",LD LTS 18-64,SUPPORTED LIVING,2102951326,11241743
07.05.2019,ADULT SOCIAL CARE,CARE O LINE,"3,016.25",LD LTS 18-64,SUPPORTED LIVING,2102951328,11241743
07.05.2019,ADULT SOCIAL CARE,CARE O LINE,"3,016.25",LD LTS 18-64,SUPPORTED LIVING,2102951329,11241743
07.05.2019,ADULT SOCIAL CARE,CARE O LINE,"2,945.00",LD LTS 18-64,SUPPORTED LIVING,2102951313,11241743
07.05.2019,ADULT SOCIAL CARE,CARE O LINE,"2,200.00",LD LTS 18-64,SUPPORTED LIVING,2102951324,11241743
07.05.2019,ADULT SOCIAL CARE,INSPIRE SUPPORT WORKERS LTD,"1,925.00",LD LTS 18-64,SUPPORTED LIVING,2102951262,1000080725
07.05.2019,ADULT SOCIAL CARE,CARE O LINE,932.78,LD LTS 18-64,SUPPORTED LIVING,2102951319,11241743
07.05.2019,ADULT SOCIAL CARE,INSPIRE SUPPORT WORKERS LTD,918,LD LTS 18-64,SUPPORTED LIVING,2102951259,1000080725
07.05.2019,ADULT SOCIAL CARE,ROYAL ASSOCIATION FOR DEAF PEOPLE,720,LD LTS 18-64,SUPPORTED LIVING,2102951267,1000062283
07.05.2019,ADULT SOCIAL CARE,CONTACT PROFESSIONALS,465,LD LTS 18-64,SUPPORTED LIVING,2102951269,1000057263
07.05.2019,ADULT SOCIAL CARE,THE CAMDEN SOCIETY (SOCIAL CARE),897.6,LD LTS 65+,DAYCARE,2102951394,1000036369
07.05.2019,ADULT SOCIAL CARE,SUPREME CARE SERVICES LTD,985.3,MEM LTS 65+,HOMECARE - C&V,2102951266,1000059416
07.05.2019,ADULT SOCIAL CARE,YOUNG FUTURES,385.8,MH LTS 18-64,SUPPORTED LIVING,2102951332,1000059563
07.05.2019,ADULT SOCIAL CARE,THE CAMDEN SOCIETY (SOCIAL CARE),705.6,PHY LTS 18-64,DAYCARE,2102951347,1000036369
07.05.2019,ADULT SOCIAL CARE,INSPIRE SUPPORT WORKERS LTD,332,PHY LTS 18-64,HOMECARE - SPOT,2102951260,1000080725
07.05.2019,ADULT SOCIAL CARE,THAMES HOMECARE SERVICE LTD,"27,300.00",REABLEMENT CONTRACT,HOMECARE - C&V,5902357148,1000079295
07.05.2019,ADULT SOCIAL CARE,THAMES HOMECARE SERVICE LTD,"27,300.00",REABLEMENT CONTRACT,HOMECARE - C&V,5902357155,1000079295
07.05.2019,ADULT SOCIAL CARE,THAMES HOMECARE SERVICE LTD,"24,640.00",REABLEMENT CONTRACT,HOMECARE - C&V,5902357146,1000079295
07.05.2019,ADULT SOCIAL CARE,APEX MEDICAL CONSULTING LTD,"7,058.10",SAFEGUARDING TEAM,OTHER CONTRACTORS,5902356042,1000078443
07.05.2019,ADULT SOCIAL CARE,APEX MEDICAL CONSULTING LTD,"7,058.10",SAFEGUARDING TEAM,OTHER CONTRACTORS,5902357096,1000078443
07.05.2019,ADULT SOCIAL CARE,APEX MEDICAL CONSULTING LTD,"-7,058.10",SAFEGUARDING TEAM,OTHER CONTRACTORS,5902357464,1000078443
07.05.2019,ADULT SOCIAL CARE,LEWISHAM INDO CHINESE COMMUNITY,492.8,SEN LTS 65+,DAYCARE,2102951338,1000076593
07.05.2019,ADULT SOCIAL CARE,PEOPLEPLUS ILS,648.43,SPEC NEEDS CHILDREN,PAYMENTS TO CLIENTS (DIRECT PAYMENTS),2102951341,1000061886
07.05.2019,ADULT SOCIAL CARE,PEOPLEPLUS ILS,587.71,SPEC NEEDS CHILDREN,PAYMENTS TO CLIENTS (DIRECT PAYMENTS),2102951340,1000061886
07.05.2019,ADULT SOCIAL CARE,PEOPLEPLUS ILS,389.77,SPEC NEEDS CHILDREN,PAYMENTS TO CLIENTS (DIRECT PAYMENTS),2102951333,1000061886
07.05.2019,ADULT SOCIAL CARE,PEOPLEPLUS ILS,379.21,SPEC NEEDS CHILDREN,PAYMENTS TO CLIENTS (DIRECT PAYMENTS),2102951342,1000061886
07.05.2019,ADULT SOCIAL CARE,STREETSCENE ADDICTION RECOVERY LTD,"3,180.00",SUB LTS 18-64,DAYCARE,2102951271,11221787
07.05.2019,ADULT SOCIAL CARE,STREETSCENE ADDICTION RECOVERY LTD,"3,180.00",SUB LTS 18-64,DAYCARE,2102951272,11221787
07.05.2019,ADULT SOCIAL CARE,STREETSCENE ADDICTION RECOVERY LTD,"3,180.00",SUB LTS 18-64,DAYCARE,2102951273,11221787
07.05.2019,ADULT SOCIAL CARE,STREETSCENE ADDICTION RECOVERY LTD,"1,104.00",SUB LTS 18-64,PLACEMENTS - REHAB,2102951274,11221787
07.05.2019,ADULT SOCIAL CARE,BRAIN-IN-HAND LTD,"20,670.00",TELECARE,SUBSCRIPTIONS,5902356884,1000082650
07.05.2019,ASSET MANAGEMENT,GT STEWART LTD,"16,000.00",DISREPAIR,LEGAL FEES & COURT COSTS,5902357205,1000061213
07.05.2019,BERMONDSEY AND ROTHERHITHE COMMUNITY COUNCIL,MILLWALL FOR ALL TRUST,"6,336.00",1ST TOUCH FOOTBALL PROJECT,GRANT,CHEQUE PAYMENT,CHEQUE PAYMENT
07.05.2019,BERMONDSEY AND ROTHERHITHE COMMUNITY COUNCIL,MILLWALL FOR ALL TRUST,"5,000.00",1ST TOUCH FOOTBALL PROJECT (ASTLEY COOPER),GRANT,CHEQUE PAYMENT,CHEQUE PAYMENT
07.05.2019,"BOROUGH, BANKSIDE AND WALWORTH COMMUNITY COUNCIL",LATIN AMERICAN DISABLED PEOPLE'S PROJECT ,"5,000.00","COMMUNITY VOLUNTEER, WELL-BEING AND INTEGRATION PROJECT ",GRANT,CHEQUE PAYMENT,CHEQUE PAYMENT
07.05.2019,CENTRAL FUNCTIONS,STANDAGE & CO LTD,"73,254.00",AYLESBURY,SECURITY SERVICES,2102951589,4002817
07.05.2019,CENTRAL FUNCTIONS,STANDAGE & CO LTD,"50,901.00",AYLESBURY,SECURITY SERVICES,2102951590,4002817
07.05.2019,CENTRAL FUNCTIONS,STANDAGE & CO LTD,"43,364.00",AYLESBURY,SECURITY SERVICES,2102951591,4002817
07.05.2019,CENTRAL FUNCTIONS,CURRIE & BROWN UK LTD,"1,600.00",COMMERCIAL PROPERTIES,PROFESSIONAL FEES,5902357099,1000033455
07.05.2019,CHIEF EXECUTIVE,BRITISH GAS,"1,758.02",CAPITAL PS (REGEN),CONSTRUCTION FEES  - EXTERNAL,5902357086,1000054825
07.05.2019,CHIEF EXECUTIVE,BRITISH GAS,661.28,CAPITAL PS (REGEN),CONSTRUCTION FEES  - EXTERNAL,5902357075,1000054825
07.05.2019,CHIEF EXECUTIVE,BRITISH GAS,572.67,CAPITAL PS (REGEN),CONSTRUCTION FEES  - EXTERNAL,5902357093,1000054825
07.05.2019,CHIEF EXECUTIVE,BRITISH GAS,570.99,CAPITAL PS (REGEN),CONSTRUCTION FEES  - EXTERNAL,5902357071,1000054825
07.05.2019,CHIEF EXECUTIVE,BRITISH GAS,558.5,CAPITAL PS (REGEN),CONSTRUCTION FEES  - EXTERNAL,5902357083,1000054825
07.05.2019,CHIEF EXECUTIVE,BRITISH GAS,540.63,CAPITAL PS (REGEN),CONSTRUCTION FEES  - EXTERNAL,5902357078,1000054825
07.05.2019,CHIEF EXECUTIVE,BRITISH GAS,492,CAPITAL PS (REGEN),CONSTRUCTION FEES  - EXTERNAL,5902357089,1000054825
07.05.2019,CHIEF EXECUTIVE,BRITISH GAS,473.83,CAPITAL PS (REGEN),CONSTRUCTION FEES  - EXTERNAL,5902357091,1000054825
07.05.2019,CHIEF EXECUTIVE,WERNICK EVENT HIRE LTD,"123,643.80",CAPITAL PS (STRAT SERV),CONSTRUCTION FEES - ARCHITECT,5902356975,1000073942
07.05.2019,CHILDREN AND ADULT,AHR ARCHITECTS LTD,"3,418.00",CAPITAL PS (EDUCATION),CONSTRUCTION FEES - ARCHITECT,5902357110,1000052423
07.05.2019,CHILDREN AND ADULT,AHR ARCHITECTS LTD,"3,229.00",CAPITAL PS (EDUCATION),CONSTRUCTION FEES - ARCHITECT,5902357113,1000052423
07.05.2019,CHILDREN AND ADULT,AHR ARCHITECTS LTD,"1,899.00",CAPITAL PS (EDUCATION),CONSTRUCTION FEES - ARCHITECT,5902357112,1000052423
07.05.2019,CHILDREN'S SERVICES,CAPSTONE FOSTER CARE,"3,398.40",AGENCY FOSTERING,EXTERNAL AGENCIES AND BODIES,2102950991,1000050353
07.05.2019,CHILDREN'S SERVICES,CONTACT PROFESSIONALS,475,CARE GRPS  4 TO 6,OTHER PAYMENTS FOR CLIENTS,5902357037,1000057263
07.05.2019,CHILDREN'S SERVICES,CONTACT PROFESSIONALS,475,CARE GRPS  4 TO 6,OTHER PAYMENTS FOR CLIENTS,5902357038,1000057263
07.05.2019,CHILDREN'S SERVICES,REDACTED PERSONAL DATA,280,CARE GRPS  4 TO 6,OTHER PAYMENTS FOR CLIENTS,REDACTED,REDACTED
07.05.2019,CHILDREN'S SERVICES,DUNCAN LEWIS (SOLICITORS) LTD,"1,012.00",CARE GRPS  4 TO 6,OTHER PAYMENTS FOR CLIENTS,5902357027,1000049481
07.05.2019,CHILDREN'S SERVICES,DUNCAN LEWIS (SOLICITORS) LTD,350,CARE GRPS  4 TO 6,OTHER PAYMENTS FOR CLIENTS,5902357027,1000049481
07.05.2019,CHILDREN'S SERVICES,MOOR HOUSE SCHOOL & COLLEGE,"1,059.00",CASEWORK OLA  0-8,OTHER CONTRACTORS,2102951476,1000080062
07.05.2019,CHILDREN'S SERVICES,MOOR HOUSE SCHOOL & COLLEGE,"1,059.00",CASEWORK OLA  0-8,OTHER CONTRACTORS,2102951477,1000080062
07.05.2019,CHILDREN'S SERVICES,MOOR HOUSE SCHOOL & COLLEGE,"15,308.67",CASEWORK OLA  0-8,RECOUPMENT,2102951474,1000080062
07.05.2019,CHILDREN'S SERVICES,MOOR HOUSE SCHOOL & COLLEGE,"14,602.67",CASEWORK OLA  0-8,RECOUPMENT,2102951475,1000080062
07.05.2019,CHILDREN'S SERVICES,WHITEFIELD ACADEMY TRUST,"7,916.50",CASEWORK OLA  0-8,RECOUPMENT,2102951569,1000080971
07.05.2019,CHILDREN'S SERVICES,MEDWAY COUNCIL,"4,166.67",CASEWORK OLA  0-8,RECOUPMENT,2102951499,1000021704
07.05.2019,CHILDREN'S SERVICES,MEDWAY COUNCIL,"4,166.67",CASEWORK OLA  0-8,RECOUPMENT,2102951501,1000021704
07.05.2019,CHILDREN'S SERVICES,MEDWAY COUNCIL,"4,166.67",CASEWORK OLA  0-8,RECOUPMENT,2102951502,1000021704
07.05.2019,CHILDREN'S SERVICES,MEDWAY COUNCIL,"4,166.66",CASEWORK OLA  0-8,RECOUPMENT,2102951503,1000021704
07.05.2019,CHILDREN'S SERVICES,MEDWAY COUNCIL,"2,875.00",CASEWORK OLA  0-8,RECOUPMENT,2102951500,1000021704
07.05.2019,CHILDREN'S SERVICES,ORCHARD HILL COLLEGE ACADEMY TRUST,"8,666.67",CASEWORK OLA  0-8,STATEMENTED FEES,2102951473,1000081716
07.05.2019,CHILDREN'S SERVICES,AVOCET SOCIAL CARE LTD,"4,800.00",DISABILITY & HIV,PROFESSIONAL FEES,5902357014,1000071940
07.05.2019,CHILDREN'S SERVICES,WARD ANDREWS LTD,876,LEGAL,LEGAL FEES & COURT COSTS,2102950936,1000082612
07.05.2019,CHILDREN'S SERVICES,TIM POTTER,550,LEGAL,LEGAL FEES & COURT COSTS,2102950932,1000068955
07.05.2019,CHILDREN'S SERVICES,TIM POTTER,500,LEGAL,LEGAL FEES & COURT COSTS,2102950939,1000068955
07.05.2019,CHILDREN'S SERVICES,PASCALS COLLEGE LTD,458.33,PFA TEAM SOUTHWARK 9 PLUS,CONTRIBUTION TO PROVISIONS (TP PAYMENTS),2102951471,1000077557
07.05.2019,CHILDREN'S SERVICES,MOOR HOUSE SCHOOL & COLLEGE,"1,040.00",PFA TEAM SOUTHWARK 9 PLUS,OTHER CONTRACTORS,2102951479,1000080062
07.05.2019,CHILDREN'S SERVICES,MOOR HOUSE SCHOOL & COLLEGE,"1,040.00",PFA TEAM SOUTHWARK 9 PLUS,OTHER CONTRACTORS,2102951480,1000080062
07.05.2019,CHILDREN'S SERVICES,NCYPE,"45,290.84",PFA TEAM SOUTHWARK 9 PLUS,RECOUPMENT,2102951472,1264546
07.05.2019,CHILDREN'S SERVICES,NATIONAL STAR FOUNDATION,"39,643.70",PFA TEAM SOUTHWARK 9 PLUS,RECOUPMENT,2102951470,1000064265
07.05.2019,CHILDREN'S SERVICES,ORCHARD HILL COLLEGE,"20,094.33",PFA TEAM SOUTHWARK 9 PLUS,RECOUPMENT,2102951449,1000070978
07.05.2019,CHILDREN'S SERVICES,ORCHARD HILL COLLEGE,"19,775.00",PFA TEAM SOUTHWARK 9 PLUS,RECOUPMENT,2102951467,1000070978
07.05.2019,CHILDREN'S SERVICES,ORCHARD HILL COLLEGE,"18,275.77",PFA TEAM SOUTHWARK 9 PLUS,RECOUPMENT,2102951458,1000070978
07.05.2019,CHILDREN'S SERVICES,ORCHARD HILL COLLEGE,"17,139.18",PFA TEAM SOUTHWARK 9 PLUS,RECOUPMENT,2102951448,1000070978
07.05.2019,CHILDREN'S SERVICES,ORCHARD HILL COLLEGE,"16,846.90",PFA TEAM SOUTHWARK 9 PLUS,RECOUPMENT,2102951457,1000070978
07.05.2019,CHILDREN'S SERVICES,ORCHARD HILL COLLEGE,"16,830.67",PFA TEAM SOUTHWARK 9 PLUS,RECOUPMENT,2102951464,1000070978
07.05.2019,CHILDREN'S SERVICES,ORCHARD HILL COLLEGE,"16,164.95",PFA TEAM SOUTHWARK 9 PLUS,RECOUPMENT,2102951453,1000070978
07.05.2019,CHILDREN'S SERVICES,ORCHARD HILL COLLEGE,"16,035.05",PFA TEAM SOUTHWARK 9 PLUS,RECOUPMENT,2102951455,1000070978
07.05.2019,CHILDREN'S SERVICES,ORCHARD HILL COLLEGE,"15,826.25",PFA TEAM SOUTHWARK 9 PLUS,RECOUPMENT,2102951465,1000070978
07.05.2019,CHILDREN'S SERVICES,ORCHARD HILL COLLEGE,"15,826.25",PFA TEAM SOUTHWARK 9 PLUS,RECOUPMENT,2102951466,1000070978
07.05.2019,CHILDREN'S SERVICES,ORCHARD HILL COLLEGE,"15,645.36",PFA TEAM SOUTHWARK 9 PLUS,RECOUPMENT,2102951447,1000070978
07.05.2019,CHILDREN'S SERVICES,MOOR HOUSE SCHOOL & COLLEGE,"14,983.67",PFA TEAM SOUTHWARK 9 PLUS,RECOUPMENT,2102951478,1000080062
07.05.2019,CHILDREN'S SERVICES,NATIONAL STAR FOUNDATION,"14,415.89",PFA TEAM SOUTHWARK 9 PLUS,RECOUPMENT,2102951469,1000064265
07.05.2019,CHILDREN'S SERVICES,ORCHARD HILL COLLEGE,"14,054.12",PFA TEAM SOUTHWARK 9 PLUS,RECOUPMENT,2102951460,1000070978
07.05.2019,CHILDREN'S SERVICES,ORCHARD HILL COLLEGE,"13,898.07",PFA TEAM SOUTHWARK 9 PLUS,RECOUPMENT,2102951462,1000070978
07.05.2019,CHILDREN'S SERVICES,ORCHARD HILL COLLEGE,"13,592.99",PFA TEAM SOUTHWARK 9 PLUS,RECOUPMENT,2102951446,1000070978
07.05.2019,CHILDREN'S SERVICES,ORCHARD HILL COLLEGE,"13,177.30",PFA TEAM SOUTHWARK 9 PLUS,RECOUPMENT,2102951444,1000070978
07.05.2019,CHILDREN'S SERVICES,ORCHARD HILL COLLEGE,"12,918.95",PFA TEAM SOUTHWARK 9 PLUS,RECOUPMENT,2102951440,1000070978
07.05.2019,CHILDREN'S SERVICES,ORCHARD HILL COLLEGE,"12,657.73",PFA TEAM SOUTHWARK 9 PLUS,RECOUPMENT,2102951463,1000070978
07.05.2019,CHILDREN'S SERVICES,ORCHARD HILL COLLEGE,"12,560.31",PFA TEAM SOUTHWARK 9 PLUS,RECOUPMENT,2102951450,1000070978
07.05.2019,CHILDREN'S SERVICES,ORCHARD HILL COLLEGE,"12,441.23",PFA TEAM SOUTHWARK 9 PLUS,RECOUPMENT,2102951451,1000070978
07.05.2019,CHILDREN'S SERVICES,ORCHARD HILL COLLEGE,"12,397.94",PFA TEAM SOUTHWARK 9 PLUS,RECOUPMENT,2102951442,1000070978
07.05.2019,CHILDREN'S SERVICES,ORCHARD HILL COLLEGE,"12,397.94",PFA TEAM SOUTHWARK 9 PLUS,RECOUPMENT,2102951445,1000070978
07.05.2019,CHILDREN'S SERVICES,ORCHARD HILL COLLEGE,"12,138.15",PFA TEAM SOUTHWARK 9 PLUS,RECOUPMENT,2102951443,1000070978
07.05.2019,CHILDREN'S SERVICES,ORCHARD HILL COLLEGE,"12,129.12",PFA TEAM SOUTHWARK 9 PLUS,RECOUPMENT,2102951459,1000070978
07.05.2019,CHILDREN'S SERVICES,ORCHARD HILL COLLEGE,"12,024.48",PFA TEAM SOUTHWARK 9 PLUS,RECOUPMENT,2102951456,1000070978
07.05.2019,CHILDREN'S SERVICES,ORCHARD HILL COLLEGE,"11,002.27",PFA TEAM SOUTHWARK 9 PLUS,RECOUPMENT,2102951461,1000070978
07.05.2019,CHILDREN'S SERVICES,ORCHARD HILL COLLEGE,"9,923.40",PFA TEAM SOUTHWARK 9 PLUS,RECOUPMENT,2102951452,1000070978
07.05.2019,CHILDREN'S SERVICES,ORCHARD HILL COLLEGE,"9,501.23",PFA TEAM SOUTHWARK 9 PLUS,RECOUPMENT,2102951441,1000070978
07.05.2019,CHILDREN'S SERVICES,ORCHARD HILL COLLEGE,"9,118.04",PFA TEAM SOUTHWARK 9 PLUS,RECOUPMENT,2102951454,1000070978
07.05.2019,CHILDREN'S SERVICES,WHITEFIELD ACADEMY TRUST,"7,916.50",PFA TEAM SOUTHWARK 9 PLUS,RECOUPMENT,2102951570,1000080971
07.05.2019,CHILDREN'S SERVICES,ORCHARD HILL COLLEGE,"7,536.05",PFA TEAM SOUTHWARK 9 PLUS,RECOUPMENT,2102951439,1000070978
07.05.2019,CHILDREN'S SERVICES,MICHAEL TIPPETT SCHOOL,"9,567.66",PFA TEAM SOUTHWARK 9 PLUS,RECOUPMENT,2102951572,1000074828
07.05.2019,CHILDREN'S SERVICES,MICHAEL TIPPETT SCHOOL,"8,370.83",PFA TEAM SOUTHWARK 9 PLUS,RECOUPMENT,2102951571,1000074828
07.05.2019,CHILDREN'S SERVICES,Y.O.U.R BEAUTY SCHOOL,"6,099.62",PFA TEAM SOUTHWARK 9 PLUS,"SCHOOLS CAPITATION, OTHER GRANTS",2102951504,1000082301
07.05.2019,CHILDREN'S SERVICES,EDUCATION MY LIFE MATTERS CIC,"3,122.00",PFA TEAM SOUTHWARK 9 PLUS,"SCHOOLS CAPITATION, OTHER GRANTS",2102951438,1000078939
07.05.2019,CHILDREN'S SERVICES,CAPITAL CITY COLLEGE GROUP,"16,631.67",PFA TEAM SOUTHWARK 9 PLUS,"SCHOOLS CAPITATION, STANDARDS FUND",2102951425,1000082160
07.05.2019,CHILDREN'S SERVICES,NEWCASTLE COLLEGE GROUP,"12,443.67",PFA TEAM SOUTHWARK 9 PLUS,"SCHOOLS CAPITATION, STANDARDS FUND",2102951542,1000080965
07.05.2019,CHILDREN'S SERVICES,NEWCASTLE COLLEGE GROUP,"12,194.00",PFA TEAM SOUTHWARK 9 PLUS,"SCHOOLS CAPITATION, STANDARDS FUND",2102951526,1000080965
07.05.2019,CHILDREN'S SERVICES,NEWCASTLE COLLEGE GROUP,"11,062.00",PFA TEAM SOUTHWARK 9 PLUS,"SCHOOLS CAPITATION, STANDARDS FUND",2102951558,1000080965
07.05.2019,CHILDREN'S SERVICES,NEWCASTLE COLLEGE GROUP,"10,838.33",PFA TEAM SOUTHWARK 9 PLUS,"SCHOOLS CAPITATION, STANDARDS FUND",2102951545,1000080965
07.05.2019,CHILDREN'S SERVICES,LAMBETH COLLEGE,"9,251.66",PFA TEAM SOUTHWARK 9 PLUS,"SCHOOLS CAPITATION, STANDARDS FUND",2102951497,1810111
07.05.2019,CHILDREN'S SERVICES,LAMBETH COLLEGE,"7,411.91",PFA TEAM SOUTHWARK 9 PLUS,"SCHOOLS CAPITATION, STANDARDS FUND",2102951489,1810111
07.05.2019,CHILDREN'S SERVICES,UNITED COLLEGES GROUP,"7,399.42",PFA TEAM SOUTHWARK 9 PLUS,"SCHOOLS CAPITATION, STANDARDS FUND",2102951426,1000071817
07.05.2019,CHILDREN'S SERVICES,LAMBETH COLLEGE,"6,788.43",PFA TEAM SOUTHWARK 9 PLUS,"SCHOOLS CAPITATION, STANDARDS FUND",2102951491,1810111
07.05.2019,CHILDREN'S SERVICES,LAMBETH COLLEGE,"5,935.14",PFA TEAM SOUTHWARK 9 PLUS,"SCHOOLS CAPITATION, STANDARDS FUND",2102951498,1810111
07.05.2019,CHILDREN'S SERVICES,NEWCASTLE COLLEGE GROUP,"5,871.67",PFA TEAM SOUTHWARK 9 PLUS,"SCHOOLS CAPITATION, STANDARDS FUND",2102951557,1000080965
07.05.2019,CHILDREN'S SERVICES,LAMBETH COLLEGE,"5,864.36",PFA TEAM SOUTHWARK 9 PLUS,"SCHOOLS CAPITATION, STANDARDS FUND",2102951495,1810111
07.05.2019,CHILDREN'S SERVICES,NEWCASTLE COLLEGE GROUP,"5,305.67",PFA TEAM SOUTHWARK 9 PLUS,"SCHOOLS CAPITATION, STANDARDS FUND",2102951564,1000080965
07.05.2019,CHILDREN'S SERVICES,LAMBETH COLLEGE,"5,289.98",PFA TEAM SOUTHWARK 9 PLUS,"SCHOOLS CAPITATION, STANDARDS FUND",2102951492,1810111
07.05.2019,CHILDREN'S SERVICES,NEWCASTLE COLLEGE GROUP,"4,626.33",PFA TEAM SOUTHWARK 9 PLUS,"SCHOOLS CAPITATION, STANDARDS FUND",2102951534,1000080965
07.05.2019,CHILDREN'S SERVICES,NEWCASTLE COLLEGE GROUP,"4,611.33",PFA TEAM SOUTHWARK 9 PLUS,"SCHOOLS CAPITATION, STANDARDS FUND",2102951562,1000080965
07.05.2019,CHILDREN'S SERVICES,NEWCASTLE COLLEGE GROUP,"4,535.67",PFA TEAM SOUTHWARK 9 PLUS,"SCHOOLS CAPITATION, STANDARDS FUND",2102951553,1000080965
07.05.2019,CHILDREN'S SERVICES,CROYDON COLLEGE,"3,973.12",PFA TEAM SOUTHWARK 9 PLUS,"SCHOOLS CAPITATION, STANDARDS FUND",2102951481,11300222
07.05.2019,CHILDREN'S SERVICES,UNITED COLLEGES GROUP,"3,958.33",PFA TEAM SOUTHWARK 9 PLUS,"SCHOOLS CAPITATION, STANDARDS FUND",2102951427,1000071817
07.05.2019,CHILDREN'S SERVICES,NEWCASTLE COLLEGE GROUP,"3,841.33",PFA TEAM SOUTHWARK 9 PLUS,"SCHOOLS CAPITATION, STANDARDS FUND",2102951529,1000080965
07.05.2019,CHILDREN'S SERVICES,UNITED COLLEGES GROUP,"3,762.50",PFA TEAM SOUTHWARK 9 PLUS,"SCHOOLS CAPITATION, STANDARDS FUND",2102951430,1000071817
07.05.2019,CHILDREN'S SERVICES,LAMBETH COLLEGE,"3,728.10",PFA TEAM SOUTHWARK 9 PLUS,"SCHOOLS CAPITATION, STANDARDS FUND",2102951490,1810111
07.05.2019,CHILDREN'S SERVICES,MIDKENT COLLEGE,"3,725.87",PFA TEAM SOUTHWARK 9 PLUS,"SCHOOLS CAPITATION, STANDARDS FUND",2102951432,1000080063
07.05.2019,CHILDREN'S SERVICES,NEWCASTLE COLLEGE GROUP,"3,615.67",PFA TEAM SOUTHWARK 9 PLUS,"SCHOOLS CAPITATION, STANDARDS FUND",2102951560,1000080965
07.05.2019,CHILDREN'S SERVICES,NEWCASTLE COLLEGE GROUP,"3,615.66",PFA TEAM SOUTHWARK 9 PLUS,"SCHOOLS CAPITATION, STANDARDS FUND",2102951561,1000080965
07.05.2019,CHILDREN'S SERVICES,NEWCASTLE COLLEGE GROUP,"3,607.33",PFA TEAM SOUTHWARK 9 PLUS,"SCHOOLS CAPITATION, STANDARDS FUND",2102951539,1000080965
07.05.2019,CHILDREN'S SERVICES,NEWCASTLE COLLEGE GROUP,"3,583.00",PFA TEAM SOUTHWARK 9 PLUS,"SCHOOLS CAPITATION, STANDARDS FUND",2102951533,1000080965
07.05.2019,CHILDREN'S SERVICES,NEWCASTLE COLLEGE GROUP,"3,337.67",PFA TEAM SOUTHWARK 9 PLUS,"SCHOOLS CAPITATION, STANDARDS FUND",2102951511,1000080965
07.05.2019,CHILDREN'S SERVICES,NEWCASTLE COLLEGE GROUP,"3,315.67",PFA TEAM SOUTHWARK 9 PLUS,"SCHOOLS CAPITATION, STANDARDS FUND",2102951509,1000080965
07.05.2019,CHILDREN'S SERVICES,NEWCASTLE COLLEGE GROUP,"3,315.67",PFA TEAM SOUTHWARK 9 PLUS,"SCHOOLS CAPITATION, STANDARDS FUND",2102951528,1000080965
07.05.2019,CHILDREN'S SERVICES,NEWCASTLE COLLEGE GROUP,"3,315.67",PFA TEAM SOUTHWARK 9 PLUS,"SCHOOLS CAPITATION, STANDARDS FUND",2102951535,1000080965
07.05.2019,CHILDREN'S SERVICES,NEWCASTLE COLLEGE GROUP,"3,315.66",PFA TEAM SOUTHWARK 9 PLUS,"SCHOOLS CAPITATION, STANDARDS FUND",2102951555,1000080965
07.05.2019,CHILDREN'S SERVICES,NEWCASTLE COLLEGE GROUP,"3,307.33",PFA TEAM SOUTHWARK 9 PLUS,"SCHOOLS CAPITATION, STANDARDS FUND",2102951525,1000080965
07.05.2019,CHILDREN'S SERVICES,NEWCASTLE COLLEGE GROUP,"3,297.00",PFA TEAM SOUTHWARK 9 PLUS,"SCHOOLS CAPITATION, STANDARDS FUND",2102951549,1000080965
07.05.2019,CHILDREN'S SERVICES,NEWCASTLE COLLEGE GROUP,"3,283.00",PFA TEAM SOUTHWARK 9 PLUS,"SCHOOLS CAPITATION, STANDARDS FUND",2102951523,1000080965
07.05.2019,CHILDREN'S SERVICES,NEWCASTLE COLLEGE GROUP,"3,263.33",PFA TEAM SOUTHWARK 9 PLUS,"SCHOOLS CAPITATION, STANDARDS FUND",2102951508,1000080965
07.05.2019,CHILDREN'S SERVICES,LAMBETH COLLEGE,"3,182.33",PFA TEAM SOUTHWARK 9 PLUS,"SCHOOLS CAPITATION, STANDARDS FUND",2102951488,1810111
07.05.2019,CHILDREN'S SERVICES,NEWCASTLE COLLEGE GROUP,"3,179.00",PFA TEAM SOUTHWARK 9 PLUS,"SCHOOLS CAPITATION, STANDARDS FUND",2102951512,1000080965
07.05.2019,CHILDREN'S SERVICES,NEWCASTLE COLLEGE GROUP,"3,146.67",PFA TEAM SOUTHWARK 9 PLUS,"SCHOOLS CAPITATION, STANDARDS FUND",2102951505,1000080965
07.05.2019,CHILDREN'S SERVICES,LAMBETH COLLEGE,"3,133.02",PFA TEAM SOUTHWARK 9 PLUS,"SCHOOLS CAPITATION, STANDARDS FUND",2102951496,1810111
07.05.2019,CHILDREN'S SERVICES,NEWCASTLE COLLEGE GROUP,"3,104.33",PFA TEAM SOUTHWARK 9 PLUS,"SCHOOLS CAPITATION, STANDARDS FUND",2102951510,1000080965
07.05.2019,CHILDREN'S SERVICES,NEWCASTLE COLLEGE GROUP,"3,104.33",PFA TEAM SOUTHWARK 9 PLUS,"SCHOOLS CAPITATION, STANDARDS FUND",2102951513,1000080965
07.05.2019,CHILDREN'S SERVICES,NEWCASTLE COLLEGE GROUP,"3,079.67",PFA TEAM SOUTHWARK 9 PLUS,"SCHOOLS CAPITATION, STANDARDS FUND",2102951567,1000080965
07.05.2019,CHILDREN'S SERVICES,NEWCASTLE COLLEGE GROUP,"2,855.00",PFA TEAM SOUTHWARK 9 PLUS,"SCHOOLS CAPITATION, STANDARDS FUND",2102951507,1000080965
07.05.2019,CHILDREN'S SERVICES,NEWCASTLE COLLEGE GROUP,"2,855.00",PFA TEAM SOUTHWARK 9 PLUS,"SCHOOLS CAPITATION, STANDARDS FUND",2102951515,1000080965
07.05.2019,CHILDREN'S SERVICES,UNITED COLLEGES GROUP,"2,853.47",PFA TEAM SOUTHWARK 9 PLUS,"SCHOOLS CAPITATION, STANDARDS FUND",2102951429,1000071817
07.05.2019,CHILDREN'S SERVICES,LAMBETH COLLEGE,"2,768.88",PFA TEAM SOUTHWARK 9 PLUS,"SCHOOLS CAPITATION, STANDARDS FUND",2102951486,1810111
07.05.2019,CHILDREN'S SERVICES,NEWCASTLE COLLEGE GROUP,"2,694.67",PFA TEAM SOUTHWARK 9 PLUS,"SCHOOLS CAPITATION, STANDARDS FUND",2102951538,1000080965
07.05.2019,CHILDREN'S SERVICES,LAMBETH COLLEGE,"2,500.74",PFA TEAM SOUTHWARK 9 PLUS,"SCHOOLS CAPITATION, STANDARDS FUND",2102951485,1810111
07.05.2019,CHILDREN'S SERVICES,NEWCASTLE COLLEGE GROUP,"2,476.67",PFA TEAM SOUTHWARK 9 PLUS,"SCHOOLS CAPITATION, STANDARDS FUND",2102951563,1000080965
07.05.2019,CHILDREN'S SERVICES,UNITED COLLEGES GROUP,"2,440.28",PFA TEAM SOUTHWARK 9 PLUS,"SCHOOLS CAPITATION, STANDARDS FUND",2102951428,1000071817
07.05.2019,CHILDREN'S SERVICES,LAMBETH COLLEGE,"2,434.57",PFA TEAM SOUTHWARK 9 PLUS,"SCHOOLS CAPITATION, STANDARDS FUND",2102951483,1810111
07.05.2019,CHILDREN'S SERVICES,NEWCASTLE COLLEGE GROUP,"2,353.67",PFA TEAM SOUTHWARK 9 PLUS,"SCHOOLS CAPITATION, STANDARDS FUND",2102951518,1000080965
07.05.2019,CHILDREN'S SERVICES,NEWCASTLE COLLEGE GROUP,"2,224.33",PFA TEAM SOUTHWARK 9 PLUS,"SCHOOLS CAPITATION, STANDARDS FUND",2102951516,1000080965
07.05.2019,CHILDREN'S SERVICES,NEWCASTLE COLLEGE GROUP,"2,224.33",PFA TEAM SOUTHWARK 9 PLUS,"SCHOOLS CAPITATION, STANDARDS FUND",2102951531,1000080965
07.05.2019,CHILDREN'S SERVICES,NEWCASTLE COLLEGE GROUP,"2,188.67",PFA TEAM SOUTHWARK 9 PLUS,"SCHOOLS CAPITATION, STANDARDS FUND",2102951520,1000080965
07.05.2019,CHILDREN'S SERVICES,NEWCASTLE COLLEGE GROUP,"2,169.67",PFA TEAM SOUTHWARK 9 PLUS,"SCHOOLS CAPITATION, STANDARDS FUND",2102951566,1000080965
07.05.2019,CHILDREN'S SERVICES,NEWCASTLE COLLEGE GROUP,"2,141.00",PFA TEAM SOUTHWARK 9 PLUS,"SCHOOLS CAPITATION, STANDARDS FUND",2102951548,1000080965
07.05.2019,CHILDREN'S SERVICES,NEWCASTLE COLLEGE GROUP,"2,135.67",PFA TEAM SOUTHWARK 9 PLUS,"SCHOOLS CAPITATION, STANDARDS FUND",2102951517,1000080965
07.05.2019,CHILDREN'S SERVICES,NEWCASTLE COLLEGE GROUP,"2,135.67",PFA TEAM SOUTHWARK 9 PLUS,"SCHOOLS CAPITATION, STANDARDS FUND",2102951552,1000080965
07.05.2019,CHILDREN'S SERVICES,NEWCASTLE COLLEGE GROUP,"2,102.67",PFA TEAM SOUTHWARK 9 PLUS,"SCHOOLS CAPITATION, STANDARDS FUND",2102951568,1000080965
07.05.2019,CHILDREN'S SERVICES,LAMBETH COLLEGE,"2,070.83",PFA TEAM SOUTHWARK 9 PLUS,"SCHOOLS CAPITATION, STANDARDS FUND",2102951494,1810111
07.05.2019,CHILDREN'S SERVICES,NEWCASTLE COLLEGE GROUP,"2,068.00",PFA TEAM SOUTHWARK 9 PLUS,"SCHOOLS CAPITATION, STANDARDS FUND",2102951540,1000080965
07.05.2019,CHILDREN'S SERVICES,NEWCASTLE COLLEGE GROUP,"2,007.33",PFA TEAM SOUTHWARK 9 PLUS,"SCHOOLS CAPITATION, STANDARDS FUND",2102951527,1000080965
07.05.2019,CHILDREN'S SERVICES,NEWCASTLE COLLEGE GROUP,"2,007.33",PFA TEAM SOUTHWARK 9 PLUS,"SCHOOLS CAPITATION, STANDARDS FUND",2102951543,1000080965
07.05.2019,CHILDREN'S SERVICES,NEWCASTLE COLLEGE GROUP,"2,007.33",PFA TEAM SOUTHWARK 9 PLUS,"SCHOOLS CAPITATION, STANDARDS FUND",2102951559,1000080965
07.05.2019,CHILDREN'S SERVICES,NEWCASTLE COLLEGE GROUP,"1,975.00",PFA TEAM SOUTHWARK 9 PLUS,"SCHOOLS CAPITATION, STANDARDS FUND",2102951530,1000080965
07.05.2019,CHILDREN'S SERVICES,NEWCASTLE COLLEGE GROUP,"1,967.00",PFA TEAM SOUTHWARK 9 PLUS,"SCHOOLS CAPITATION, STANDARDS FUND",2102951519,1000080965
07.05.2019,CHILDREN'S SERVICES,NEWCASTLE COLLEGE GROUP,"1,907.67",PFA TEAM SOUTHWARK 9 PLUS,"SCHOOLS CAPITATION, STANDARDS FUND",2102951546,1000080965
07.05.2019,CHILDREN'S SERVICES,NEWCASTLE COLLEGE GROUP,"1,869.33",PFA TEAM SOUTHWARK 9 PLUS,"SCHOOLS CAPITATION, STANDARDS FUND",2102951524,1000080965
07.05.2019,CHILDREN'S SERVICES,NEWCASTLE COLLEGE GROUP,"1,869.33",PFA TEAM SOUTHWARK 9 PLUS,"SCHOOLS CAPITATION, STANDARDS FUND",2102951550,1000080965
07.05.2019,CHILDREN'S SERVICES,NEWCASTLE COLLEGE GROUP,"1,861.33",PFA TEAM SOUTHWARK 9 PLUS,"SCHOOLS CAPITATION, STANDARDS FUND",2102951532,1000080965
07.05.2019,CHILDREN'S SERVICES,NEWCASTLE COLLEGE GROUP,"1,861.33",PFA TEAM SOUTHWARK 9 PLUS,"SCHOOLS CAPITATION, STANDARDS FUND",2102951537,1000080965
07.05.2019,CHILDREN'S SERVICES,NEWCASTLE COLLEGE GROUP,"1,861.33",PFA TEAM SOUTHWARK 9 PLUS,"SCHOOLS CAPITATION, STANDARDS FUND",2102951554,1000080965
07.05.2019,CHILDREN'S SERVICES,NEWCASTLE COLLEGE GROUP,"1,853.00",PFA TEAM SOUTHWARK 9 PLUS,"SCHOOLS CAPITATION, STANDARDS FUND",2102951551,1000080965
07.05.2019,CHILDREN'S SERVICES,LAMBETH COLLEGE,"1,830.63",PFA TEAM SOUTHWARK 9 PLUS,"SCHOOLS CAPITATION, STANDARDS FUND",2102951487,1810111
07.05.2019,CHILDREN'S SERVICES,NEWCASTLE COLLEGE GROUP,"1,823.00",PFA TEAM SOUTHWARK 9 PLUS,"SCHOOLS CAPITATION, STANDARDS FUND",2102951506,1000080965
07.05.2019,CHILDREN'S SERVICES,NEWCASTLE COLLEGE GROUP,"1,814.67",PFA TEAM SOUTHWARK 9 PLUS,"SCHOOLS CAPITATION, STANDARDS FUND",2102951522,1000080965
07.05.2019,CHILDREN'S SERVICES,NEWCASTLE COLLEGE GROUP,"1,814.67",PFA TEAM SOUTHWARK 9 PLUS,"SCHOOLS CAPITATION, STANDARDS FUND",2102951544,1000080965
07.05.2019,CHILDREN'S SERVICES,NEWCASTLE COLLEGE GROUP,"1,814.67",PFA TEAM SOUTHWARK 9 PLUS,"SCHOOLS CAPITATION, STANDARDS FUND",2102951565,1000080965
07.05.2019,CHILDREN'S SERVICES,NEWCASTLE COLLEGE GROUP,"1,760.00",PFA TEAM SOUTHWARK 9 PLUS,"SCHOOLS CAPITATION, STANDARDS FUND",2102951541,1000080965
07.05.2019,CHILDREN'S SERVICES,NEWCASTLE COLLEGE GROUP,"1,523.00",PFA TEAM SOUTHWARK 9 PLUS,"SCHOOLS CAPITATION, STANDARDS FUND",2102951536,1000080965
07.05.2019,CHILDREN'S SERVICES,NEWCASTLE COLLEGE GROUP,"1,515.00",PFA TEAM SOUTHWARK 9 PLUS,"SCHOOLS CAPITATION, STANDARDS FUND",2102951521,1000080965
07.05.2019,CHILDREN'S SERVICES,NEWCASTLE COLLEGE GROUP,"1,384.33",PFA TEAM SOUTHWARK 9 PLUS,"SCHOOLS CAPITATION, STANDARDS FUND",2102951556,1000080965
07.05.2019,CHILDREN'S SERVICES,NEWCASTLE COLLEGE GROUP,"1,329.67",PFA TEAM SOUTHWARK 9 PLUS,"SCHOOLS CAPITATION, STANDARDS FUND",2102951514,1000080965
07.05.2019,CHILDREN'S SERVICES,LAMBETH COLLEGE,"1,182.50",PFA TEAM SOUTHWARK 9 PLUS,"SCHOOLS CAPITATION, STANDARDS FUND",2102951493,1810111
07.05.2019,CHILDREN'S SERVICES,LAMBETH COLLEGE,"1,166.11",PFA TEAM SOUTHWARK 9 PLUS,"SCHOOLS CAPITATION, STANDARDS FUND",2102951484,1810111
07.05.2019,CHILDREN'S SERVICES,UNITED COLLEGES GROUP,"1,070.00",PFA TEAM SOUTHWARK 9 PLUS,"SCHOOLS CAPITATION, STANDARDS FUND",2102951431,1000071817
07.05.2019,CHILDREN'S SERVICES,NEWCASTLE COLLEGE GROUP,780.63,PFA TEAM SOUTHWARK 9 PLUS,"SCHOOLS CAPITATION, STANDARDS FUND",2102951547,1000080965
07.05.2019,CHILDREN'S SERVICES,LAMBETH COLLEGE,309.31,PFA TEAM SOUTHWARK 9 PLUS,"SCHOOLS CAPITATION, STANDARDS FUND",2102951482,1810111
07.05.2019,CHILDREN'S SERVICES,DROITWICH SPA HIGH SCHOOL AND SIXTH FORM CENTRE,"5,333.33",PFA TEAM SOUTHWARK 9 PLUS,STATEMENTED FEES,2102951424,1000082311
07.05.2019,CHILDREN'S SERVICES,BIG CREATIVE ACADEMY,"1,812.00",PFA TEAM SOUTHWARK 9 PLUS,STATEMENTED FEES,2102951468,1000081788
07.05.2019,CHILDREN'S SERVICES,CREATING CARE CHOICES LTD,"15,000.00",RESIDENTIAL,RESIDENTIAL CARE,2102951252,1000076738
07.05.2019,CHILDREN'S SERVICES,NETPEX LTD CORPORATE SERVICES,"2,900.67",S24 CLA,EXTERNAL AGENCIES AND BODIES,2102951300,1000076073
07.05.2019,CHILDREN'S SERVICES,CORNERSTONE CARE PARTNERSHIP LTD,"1,421.40",S24 CLA,EXTERNAL AGENCIES AND BODIES,2102951294,1000078888
07.05.2019,CHILDREN'S SERVICES,PURPLE PEBBLES(CHILD CARE) SERVICES,"1,392.86",S24 CLA,EXTERNAL AGENCIES AND BODIES,2102951303,1000070705
07.05.2019,CHILDREN'S SERVICES,PURPLE PEBBLES(CHILD CARE) SERVICES,"1,328.57",S24 CLA,EXTERNAL AGENCIES AND BODIES,2102951283,1000070705
07.05.2019,CHILDREN'S SERVICES,PURPLE PEBBLES(CHILD CARE) SERVICES,"1,328.57",S24 CLA,EXTERNAL AGENCIES AND BODIES,2102951289,1000070705
07.05.2019,CHILDREN'S SERVICES,PURPLE PEBBLES(CHILD CARE) SERVICES,"1,285.71",S24 CLA,EXTERNAL AGENCIES AND BODIES,2102951277,1000070705
07.05.2019,CHILDREN'S SERVICES,PURPLE PEBBLES(CHILD CARE) SERVICES,"1,285.71",S24 CLA,EXTERNAL AGENCIES AND BODIES,2102951290,1000070705
07.05.2019,CHILDREN'S SERVICES,PURPLE PEBBLES(CHILD CARE) SERVICES,"1,285.71",S24 CLA,EXTERNAL AGENCIES AND BODIES,2102951292,1000070705
07.05.2019,CHILDREN'S SERVICES,PURPLE PEBBLES(CHILD CARE) SERVICES,"1,285.71",S24 CLA,EXTERNAL AGENCIES AND BODIES,2102951293,1000070705
07.05.2019,CHILDREN'S SERVICES,PURPLE PEBBLES(CHILD CARE) SERVICES,"1,285.71",S24 CLA,EXTERNAL AGENCIES AND BODIES,2102951297,1000070705
07.05.2019,CHILDREN'S SERVICES,HOLMDENE HOUSING LTD,796.68,S24 CLA,EXTERNAL AGENCIES AND BODIES,2102951279,1000032598
07.05.2019,CHILDREN'S SERVICES,PURPLE PEBBLES(CHILD CARE) SERVICES,-768.77,S24 CLA,EXTERNAL AGENCIES AND BODIES,2102951287,1000070705
07.05.2019,CHILDREN'S SERVICES,UNLOCKING LANGUAGE LTD,"24,476.91",SALT,SPECIAL SCHOOL SEN,5902356876,1000081107
07.05.2019,CHILDREN'S SERVICES,IASPIRE CARE SERVICES LTD,"1,773.38",SEMI INDEPENDENT,EXTERNAL AGENCIES AND BODIES,2102951255,1000081500
07.05.2019,CHILDREN'S SERVICES,PURPLE PEBBLES(CHILD CARE) SERVICES,"1,392.86",SEMI INDEPENDENT,EXTERNAL AGENCIES AND BODIES,2102951291,1000070705
07.05.2019,CHILDREN'S SERVICES,PURPLE PEBBLES(CHILD CARE) SERVICES,"1,285.71",SEMI INDEPENDENT,EXTERNAL AGENCIES AND BODIES,2102951278,1000070705
07.05.2019,CHILDREN'S SERVICES,PURPLE PEBBLES(CHILD CARE) SERVICES,450,SEMI INDEPENDENT,EXTERNAL AGENCIES AND BODIES,2102951275,1000070705
07.05.2019,CHILDREN'S SERVICES,PURPLE PEBBLES(CHILD CARE) SERVICES,-715,SEMI INDEPENDENT,EXTERNAL AGENCIES AND BODIES,2102951280,1000070705
07.05.2019,CHILDREN'S SERVICES,JLD MANAGEMENT LTD,500,SEND REDESIGN PROJECT,CONSULTANTS SERVICES,5902357090,1000079916
07.05.2019,CHILDREN'S SERVICES,HOLMDENE HOUSING LTD,"1,480.00",UASC SECTION 24,EXTERNAL AGENCIES AND BODIES,2102951281,1000032598
07.05.2019,CHILDREN'S SERVICES,HOLMDENE HOUSING LTD,"1,480.00",UASC SECTION 24,EXTERNAL AGENCIES AND BODIES,2102951295,1000032598
07.05.2019,CHILDREN'S SERVICES,HOLMDENE HOUSING LTD,"1,480.00",UASC SECTION 24,EXTERNAL AGENCIES AND BODIES,2102951298,1000032598
07.05.2019,CHILDREN'S SERVICES,HOLMDENE HOUSING LTD,"1,480.00",UASC SECTION 24,EXTERNAL AGENCIES AND BODIES,2102951299,1000032598
07.05.2019,CHILDREN'S SERVICES,HOLMDENE HOUSING LTD,"1,480.00",UASC SECTION 24,EXTERNAL AGENCIES AND BODIES,2102951302,1000032598
07.05.2019,CHILDREN'S SERVICES,PURPLE PEBBLES(CHILD CARE) SERVICES,"1,414.29",UASC SECTION 24,EXTERNAL AGENCIES AND BODIES,2102951296,1000070705
07.05.2019,CHILDREN'S SERVICES,PURPLE PEBBLES(CHILD CARE) SERVICES,"1,328.57",UASC SECTION 24,EXTERNAL AGENCIES AND BODIES,2102951285,1000070705
07.05.2019,CHILDREN'S SERVICES,PURPLE PEBBLES(CHILD CARE) SERVICES,"1,285.71",UASC SECTION 24,EXTERNAL AGENCIES AND BODIES,2102951276,1000070705
07.05.2019,CHILDREN'S SERVICES,PURPLE PEBBLES(CHILD CARE) SERVICES,"1,242.86",UASC SECTION 24,EXTERNAL AGENCIES AND BODIES,2102951301,1000070705
07.05.2019,CHILDREN'S SERVICES,PURPLE PEBBLES(CHILD CARE) SERVICES,700,UASC SECTION 24,EXTERNAL AGENCIES AND BODIES,2102951284,1000070705
07.05.2019,CHILDREN'S SERVICES,PURPLE PEBBLES(CHILD CARE) SERVICES,350,UASC SECTION 24,EXTERNAL AGENCIES AND BODIES,2102951282,1000070705
07.05.2019,CHILDREN'S SERVICES,NETPEX LTD CORPORATE SERVICES,"4,207.32",UNACCOMPANIED ASYLUM CHILDREN 16-17,EXTERNAL AGENCIES AND BODIES,2102951254,1000076073
07.05.2019,CHILDREN'S SERVICES,NETPEX LTD CORPORATE SERVICES,300,UNACCOMPANIED ASYLUM CHILDREN 16-17,OTHER PAYMENTS FOR CLIENTS,2102951257,1000076073
07.05.2019,CHILDREN'S SERVICES,PURPLE PEBBLES(CHILD CARE) SERVICES,260.55,UNACCOMPANIED ASYLUM CHILDREN 16-17,OTHER PAYMENTS FOR CLIENTS,2102951258,1000070705
07.05.2019,COMMUNITIES,S7 CHAUFFEURS LTD,"2,295.00",MAYORAL SUPPORT,MISCELLANEOUS EXPENSES,5902357098,1000075707
07.05.2019,COMMUNITIES,SOUTHSIDE PARTNERSHIP,"1,281.11",NO RECOURSE TO PUBLIC FUNDS,ACCOMMODATION CHARGES,5902357197,1716624
07.05.2019,COMMUNITIES,SOUTHSIDE PARTNERSHIP,"1,281.11",NO RECOURSE TO PUBLIC FUNDS,ACCOMMODATION CHARGES,5902357198,1716624
07.05.2019,CUSTOMER EXPERIENCE HGF,FINEFAIR LTD,"4,444.93",PSL PLACEMENTS,EXTERNAL AGENCIES AND BODIES,5902357121,1000075570
07.05.2019,CUSTOMER EXPERIENCE HGF,OAK HOUSING LTD,"2,456.40",PSL PLACEMENTS,EXTERNAL AGENCIES AND BODIES,5902356985,1000079310
07.05.2019,ENVIRONMENT AND LEISURE,HOBART PAVING COMPANY LTD,"3,521.00",CAPITAL PS (LEISURE),CONSTRUCTION FEES - INTERNAL,2102951592,3000001690
07.05.2019,ENVIRONMENT AND LEISURE,HOBART PAVING COMPANY LTD,"3,322.00",CAPITAL PS (LEISURE),CONSTRUCTION FEES - INTERNAL,2102951592,3000001690
07.05.2019,ENVIRONMENT DIRECTORATE,DAWSON RENTALS BUS & COACH LTD,"1,781.55",COMMERCIAL VEH CTRL A/C,HIRED VEHICLES,5902357157,1000042174
07.05.2019,ENVIRONMENT DIRECTORATE,DAWSON RENTALS BUS & COACH LTD,"1,781.55",COMMERCIAL VEH CTRL A/C,HIRED VEHICLES,5902357158,1000042174
07.05.2019,ENVIRONMENT DIRECTORATE,DAWSON RENTALS BUS & COACH LTD,"1,781.55",COMMERCIAL VEH CTRL A/C,HIRED VEHICLES,5902357161,1000042174
07.05.2019,ENVIRONMENT DIRECTORATE,DAWSON RENTALS BUS & COACH LTD,335,COMMERCIAL VEH CTRL A/C,HIRED VEHICLES,5902357147,1000042174
07.05.2019,ENVIRONMENT DIRECTORATE,GREENHAM TRADING LTD,284.28,ESTATE CLEANING-GENERAL,MATERIALS,5902357007,1000006610
07.05.2019,ENVIRONMENT DIRECTORATE,FUTURE GARMENTS LTD T/A EUROX,332.8,MANAGEMENT TEAM,"CLOTHING, UNIFORMS & LAUNDRY",5902357134,1000080983
07.05.2019,ENVIRONMENT DIRECTORATE,A & H PEST CONTROL LTD,"2,590.00",PEST CONTROL-CDN A/C,OTHER CONTRACTORS,5902357115,11230875
07.05.2019,ENVIRONMENT DIRECTORATE,PROJECT CENTRE LTD,"7,665.84",TRANSPORT PROJECTS,OTHER CONTRACTORS,5902357102,1000072621
07.05.2019,ENVIRONMENT DIRECTORATE,PROJECT CENTRE LTD,"7,257.60",TRANSPORT PROJECTS,OTHER CONTRACTORS,5902357114,1000072621
07.05.2019,ENVIRONMENT DIRECTORATE,PROJECT CENTRE LTD,"5,443.20",TRANSPORT PROJECTS,OTHER CONTRACTORS,5902357111,1000072621
07.05.2019,F & C S EXCLUDING CORPORATE BUDGETS,PRICEWATERHOUSECOOPERS LLP,500,CORPORATE SERVICES AND F&G,SUBSCRIPTIONS,5902357168,1000022906
07.05.2019,HOUSING GENERAL FUND,HUNTERS THE FUNITURE COMPANY,"3,610.40",CAPITAL PS (REGEN),FURNITURE & FITTINGS ACQUISITION,5902357011,1000065904
07.05.2019,HOUSING STRATEGY AND OPTIONS,BACK ON TRACK HOUSING,"1,087.68",HOMELESS PROJECTS,GRANTS,5902357176,1000071262
07.05.2019,LEISURE DIRECTORATE,EDF ENERGY PLC,"4,388.01",CEMETERIES,ELECTRICITY,5902357162,1008746
07.05.2019,LEISURE DIRECTORATE,MENTIVITY,"1,375.00",DAMILOLA TAYLOR CENTRE,MISCELLANEOUS EXPENSES,5902357019,1000081738
07.05.2019,LEISURE DIRECTORATE,SIMPLY HIRE LTD,"1,001.44",FACILITIES MAINTENANCE,BUILDING R&M,5902357117,1000018354
07.05.2019,LEISURE DIRECTORATE,SIMPLY HIRE LTD,835.72,FACILITIES MAINTENANCE,BUILDING R&M,5902357131,1000018354
07.05.2019,LEISURE DIRECTORATE,CONWAY AECOM LTD,"26,400.00",SDM BUDGET,PROFESSIONAL FEES,5902357008,1000071205
07.05.2019,MODERNISATION HGF,VIRGIN MEDIA,"12,348.81",IT MANAGEMENT,DATA COMMUNICATIONS,5902357065,1000026457
07.05.2019,MODERNISATION HGF,VIRGIN MEDIA,"7,025.64",IT MANAGEMENT,DATA COMMUNICATIONS,5902357064,1000026457
07.05.2019,MODERNISATION HGF,VIRGIN MEDIA,"6,840.00",IT MANAGEMENT,DATA COMMUNICATIONS,5902357059,1000026457
07.05.2019,MODERNISATION HGF,VIRGIN MEDIA,"6,500.52",IT MANAGEMENT,DATA COMMUNICATIONS,5902357092,1000026457
07.05.2019,MODERNISATION HGF,VIRGIN MEDIA,"3,261.67",IT MANAGEMENT,DATA COMMUNICATIONS,5902357066,1000026457
07.05.2019,MODERNISATION HGF,VIRGIN MEDIA,"2,944.83",IT MANAGEMENT,DATA COMMUNICATIONS,5902357087,1000026457
07.05.2019,MODERNISATION HGF,VIRGIN MEDIA,"1,040.00",IT MANAGEMENT,DATA COMMUNICATIONS,5902357088,1000026457
07.05.2019,MODERNISATION HGF,VIRGIN MEDIA,975.4,IT MANAGEMENT,DATA COMMUNICATIONS,5902357072,1000026457
07.05.2019,MODERNISATION HGF,VIRGIN MEDIA,315,IT MANAGEMENT,DATA COMMUNICATIONS,5902357060,1000026457
07.05.2019,MODERNISATION HGF,VIRGIN MEDIA,315,IT MANAGEMENT,DATA COMMUNICATIONS,5902357081,1000026457
07.05.2019,PECKHAM AND NUNHEAD COMMUNITY COUNCIL,MILLWALL FOR ALL TRUST ,"7,000.00",1ST TOUCH FOOTBALL PROJECT ,GRANT,CHEQUE PAYMENT,CHEQUE PAYMENT
07.05.2019,PLANNING AND TRANSPORT,IDOX SOFWARE LIMITED,"1,900.00",DEVELOPMENT CONTROL ADMINSTRATION,COMPUTER MAINTENANCE,5902357201,1000032110
07.05.2019,PROPERTY SERVICES,CURRIE & BROWN UK LTD,750,TOWER WORKSHOPS,PROFESSIONAL FEES,5902357099,1000033455
07.05.2019,PUBLIC HEALTH,LEWISHAM AND GREENWICH NHS TRUST,"20,792.26",SEXUAL HEALTH - STI,EXTERNAL AGENCIES AND BODIES,5902357079,1000076183
07.05.2019,PUBLIC HEALTH,BARTS HEALTH NHS TRUST,"13,106.69",SEXUAL HEALTH - STI,EXTERNAL AGENCIES AND BODIES,5902356990,1000055762
07.05.2019,PUBLIC HEALTH,WESTCO TRADING LTD,"1,945.00",STAKEHOLDER ENGAGEMENT,MARKETING & PUBLICITY SERVICES,5902357062,1000069599
07.05.2019,RESIDENT SERVICES,EDEN SPRINGS (UK) LTD,425.5,OPERATIONS/OFFICES ACCOMMODATION,WATER,5902357206,1000037350
07.05.2019,SCRUTINY,ROCKGROVE SHELTERED HOUSING,650,MEMBERS EXPENSES,HIRE OF ROOMS/HALLS,5902356993,1000045134
07.05.2019,SOUTHWARK BUILDING SERVICES,IMOTO DIRECT LTD,"12,180.00",BUSINESS SUPPORT,CONSULTANTS SERVICES,5902357202,1000079299
07.05.2019,SOUTHWARK BUILDING SERVICES,PILKINGTON UK LTD,"2,153.00",STORES/LOGISTICS,CREDITORS -GR/IR CLEARING ACCOUNT,5902357026,11224519
07.05.2019,SOUTHWARK BUILDING SERVICES,PILKINGTON UK LTD,652.6,STORES/LOGISTICS,CREDITORS -GR/IR CLEARING ACCOUNT,5902357018,11224519
07.05.2019,SOUTHWARK BUILDING SERVICES,PILKINGTON UK LTD,263.6,STORES/LOGISTICS,CREDITORS -GR/IR CLEARING ACCOUNT,5902357018,11224519
08.05.2019,ADULT SOCIAL CARE,REDACTED PERSONAL DATA,"3,682.28",LD LTS 18-64,SUPPORTED LIVING,REDACTED,REDACTED
08.05.2019,ADULT SOCIAL CARE,PHOENIX HEALTHCARE & RECRUITMENT,444.8,PHY LTS 18-64,DAYCARE,2102951957,1000065636
08.05.2019,ADULT SOCIAL CARE,BRITISH HOME & HOSPITAL FOR INCURABLES,"-1,608.19",PHY LTS 18-64,NURSING PLACEMENTS FEES,2102949596,1001606
08.05.2019,ADULT SOCIAL CARE,BRITISH HOME & HOSPITAL FOR INCURABLES,"5,271.43",PHY LTS 18-64,PLACEMENTS - RESPITE,2102951960,1001606
08.05.2019,ADULT SOCIAL CARE,BRITISH HOME & HOSPITAL FOR INCURABLES,"3,600.00",PHY LTS 18-64,PLACEMENTS - RESPITE,2102951961,1001606
08.05.2019,ADULT SOCIAL CARE,BRITISH HOME & HOSPITAL FOR INCURABLES,"3,600.00",PHY LTS 18-64,PLACEMENTS - RESPITE,2102951962,1001606
08.05.2019,ADULT SOCIAL CARE,SUPREME CARE SERVICES LTD,"3,440.20",PHY LTS 65+,HOMECARE - C&V,2102951933,1000059416
08.05.2019,ADULT SOCIAL CARE,SUPREME CARE SERVICES LTD,"3,385.93",PHY LTS 65+,HOMECARE - C&V,2102951934,1000059416
08.05.2019,ADULT SOCIAL CARE,SUPREME CARE SERVICES LTD,"3,385.93",PHY LTS 65+,HOMECARE - C&V,2102951936,1000059416
08.05.2019,ADULT SOCIAL CARE,SUPREME CARE SERVICES LTD,"3,385.93",PHY LTS 65+,HOMECARE - C&V,2102951938,1000059416
08.05.2019,ADULT SOCIAL CARE,SUPREME CARE SERVICES LTD,"3,314.95",PHY LTS 65+,HOMECARE - C&V,2102951932,1000059416
08.05.2019,ADULT SOCIAL CARE,SUPREME CARE SERVICES LTD,"3,097.65",PHY LTS 65+,HOMECARE - C&V,2102951935,1000059416
08.05.2019,ADULT SOCIAL CARE,SUPREME CARE SERVICES LTD,"1,173.18",PHY LTS 65+,HOMECARE - C&V,2102951937,1000059416
08.05.2019,ADULT SOCIAL CARE,F A ALBIN AND SONS,818,PUBLIC FUNERALS S.46,PAYMENTS TO CLIENTS (DIRECT PAYMENTS),2102951966,11313949
08.05.2019,ADULT SOCIAL CARE,JANE RAMSAY,326,SAFEGUARDING TEAM,EXTERNAL AGENCIES AND BODIES,5902357303,1000066652
08.05.2019,ADULT SOCIAL CARE,PANCHSHEEL GLOBAL PVT LTD,936.37,SAFEGUARDING TEAM,OTHER CONTRACTORS,5902357307,1000078003
08.05.2019,ADULT SOCIAL CARE,ROMEDICAL LTD,932.84,SAFEGUARDING TEAM,OTHER CONTRACTORS,5902357394,1000076318
08.05.2019,ADULT SOCIAL CARE,ROMEDICAL LTD,748.74,SAFEGUARDING TEAM,OTHER CONTRACTORS,5902357349,1000076318
08.05.2019,ADULT SOCIAL CARE,ROMEDICAL LTD,578.97,SAFEGUARDING TEAM,OTHER CONTRACTORS,5902357386,1000076318
08.05.2019,ADULT SOCIAL CARE,ROMEDICAL LTD,572.97,SAFEGUARDING TEAM,OTHER CONTRACTORS,5902357354,1000076318
08.05.2019,ADULT SOCIAL CARE,ROMEDICAL LTD,395.71,SAFEGUARDING TEAM,OTHER CONTRACTORS,5902357388,1000076318
08.05.2019,ADULT SOCIAL CARE,ROMEDICAL LTD,378.92,SAFEGUARDING TEAM,OTHER CONTRACTORS,5902357314,1000076318
08.05.2019,ADULT SOCIAL CARE,KAIROS COMMUNITY TRUST,"4,800.00",SUB LTS 18-64,DAYCARE,2102951946,1000025479
08.05.2019,ADULT SOCIAL CARE,KAIROS COMMUNITY TRUST,"2,000.00",SUB LTS 18-64,DAYCARE,2102951949,1000025479
08.05.2019,ADULT SOCIAL CARE,KAIROS COMMUNITY TRUST,"1,480.00",SUB LTS 18-64,DAYCARE,2102951941,1000025479
08.05.2019,ADULT SOCIAL CARE,KAIROS COMMUNITY TRUST,"1,320.00",SUB LTS 18-64,PLACEMENTS - REHAB,2102951942,1000025479
08.05.2019,ADULT SOCIAL CARE,FREEDOM RECOVERY CENTRE,"2,748.20",SUB LTS 18-64,RESIDENTIAL CARE,2102951947,1000046185
08.05.2019,ADULT SOCIAL CARE,FREEDOM RECOVERY CENTRE,"2,584.28",SUB LTS 18-64,RESIDENTIAL CARE,2102951944,1000046185
08.05.2019,ADULT SOCIAL CARE,FREEDOM RECOVERY CENTRE,"2,085.00",SUB LTS 18-64,RESIDENTIAL CARE,2102951950,1000046185
08.05.2019,ADULT SOCIAL CARE,FREEDOM RECOVERY CENTRE,"2,010.00",SUB LTS 18-64,RESIDENTIAL CARE,2102951952,1000046185
08.05.2019,ADULT SOCIAL CARE,FREEDOM RECOVERY CENTRE,"1,390.00",SUB LTS 18-64,RESIDENTIAL CARE,2102951939,1000046185
08.05.2019,ADULT SOCIAL CARE,FREEDOM RECOVERY CENTRE,695,SUB LTS 18-64,RESIDENTIAL CARE,2102951954,1000046185
08.05.2019,ASSET MANAGEMENT,SCS TECHNOLOGIES LTD,"2,893.54",ENG CONTRACTS (NORTH),TV AERIALS R&M,5902357274,1000069919
08.05.2019,ASSET MANAGEMENT,SCS TECHNOLOGIES LTD,677.08,ENG CONTRACTS (NORTH),TV AERIALS R&M,5902357235,1000069919
08.05.2019,ASSET MANAGEMENT,SCCI ALPHATRACK LTD,451,ENG CONTRACTS (NORTH),TV AERIALS R&M,5902357280,1000071955
08.05.2019,BERMONDSEY AND ROTHERHITHE COMMUNITY COUNCIL,BERMONDSEY COMMUNITY KITCHEN,"20,000.00",BERMONDSEY COMMUNITY KITCHEN,GRANT,CHEQUE PAYMENT,CHEQUE PAYMENT
08.05.2019,BERMONDSEY AND ROTHERHITHE COMMUNITY COUNCIL,SOUTHWARK HELPING HANDS CLUB,"4,800.00",SOUTHWARK HELPING HANDS CLUB,GRANT,CHEQUE PAYMENT,CHEQUE PAYMENT
08.05.2019,BERMONDSEY AND ROTHERHITHE COMMUNITY COUNCIL,TIME AND TALENTS,"2,000.00",TIME AND TALENTS,GRANT,CHEQUE PAYMENT,CHEQUE PAYMENT
08.05.2019,"BOROUGH, BANKSIDE AND WALWORTH COMMUNITY COUNCIL","BRANDON 1, 2 & 3 TRA ","1,000.00","BRANDON 1, 2, 3 COMMUNITY WEBSITE & INFORMATION HUB ",GRANT,CHEQUE PAYMENT,CHEQUE PAYMENT
08.05.2019,"BOROUGH, BANKSIDE AND WALWORTH COMMUNITY COUNCIL",CENTRAL SOUTHWARK COMMUNITY HUB ,"5,000.00",HOLIDAY ACTIVITY CLUB ,GRANT,CHEQUE PAYMENT,CHEQUE PAYMENT
08.05.2019,CENTRAL FUNCTIONS,POSTURITE (UK) LTD,451.81,HOME OWNERSHIP,EQUIPMENT PURCHASE & REPAIR,5902357239,11015468
08.05.2019,CENTRAL FUNCTIONS,MERLIN DMS LTD,927.95,HOME OWNERSHIP,OFFICE EXPENSES,5902357219,1000062300
08.05.2019,CHIEF EXECUTIVE,KIER CONSTRUCTION,"6,155.75",CAPITAL PS (REGEN),CONSTRUCTION FEES,5902357376,1000078751
08.05.2019,CHIEF EXECUTIVE,KIER CONSTRUCTION,"4,029.25",CAPITAL PS (REGEN),CONSTRUCTION FEES,5902357376,1000078751
08.05.2019,CHIEF EXECUTIVE'S OFFICE,BANKSIDE OPEN SPACES TRUST,"4,000.00",BUSINESS SUPPORT,SUBSCRIPTIONS,5902357406,1000018290
08.05.2019,CHIEF EXECUTIVE'S OFFICE,RENAISI LTD,"26,417.00",CHIEF EXEC'S OFFICE,GRANTS,5902357289,1000022051
08.05.2019,CHILDREN AND ADULT,PENNINGTON CHOICES LTD,765,CAPITAL PS (EDUCATION),CONSTRUCTION FEES  - EXTERNAL,5902357278,1000001687
08.05.2019,CHILDREN'S SERVICES,THE FAMILY PLACE LTD,"1,520.00",ADOPTION REFORM GRANT (PART B),PROFESSIONAL FEES,5902357350,1000077965
08.05.2019,CHILDREN'S SERVICES,THE FAMILY PLACE LTD,"1,140.00",ADOPTION REFORM GRANT (PART B),PROFESSIONAL FEES,5902357347,1000077965
08.05.2019,CHILDREN'S SERVICES,THE FAMILY PLACE LTD,380,ADOPTION REFORM GRANT (PART B),PROFESSIONAL FEES,5902357348,1000077965
08.05.2019,CHILDREN'S SERVICES,REDACTED PERSONAL DATA,400,DISABILITY & HIV,ADDITIONAL PAYMENTS TO AGENCIES/CARERS,REDACTED,REDACTED
08.05.2019,CHILDREN'S SERVICES,REDACTED PERSONAL DATA,300,DISABILITY & HIV,ADDITIONAL PAYMENTS TO AGENCIES/CARERS,REDACTED,REDACTED
08.05.2019,CHILDREN'S SERVICES,REDACTED PERSONAL DATA,385.71,DISABILITY & HIV,OTHER PAYMENTS FOR CLIENTS,REDACTED,REDACTED
08.05.2019,CHILDREN'S SERVICES,REDACTED PERSONAL DATA,372.86,DISABILITY & HIV,OTHER PAYMENTS FOR CLIENTS,REDACTED,REDACTED
08.05.2019,CHILDREN'S SERVICES,REDACTED PERSONAL DATA,"1,700.00",DISABILITY & HIV,PAYMENTS TO CARERS,REDACTED,REDACTED
08.05.2019,CHILDREN'S SERVICES,REDACTED PERSONAL DATA,"1,700.00",DISABILITY & HIV,PAYMENTS TO CARERS,REDACTED,REDACTED
08.05.2019,CHILDREN'S SERVICES,REDACTED PERSONAL DATA,"1,700.00",DISABILITY & HIV,PAYMENTS TO CARERS,REDACTED,REDACTED
08.05.2019,CHILDREN'S SERVICES,REDACTED PERSONAL DATA,"1,633.46",DISABILITY & HIV,PAYMENTS TO CARERS,REDACTED,REDACTED
08.05.2019,CHILDREN'S SERVICES,REDACTED PERSONAL DATA,"1,094.60",DISABILITY & HIV,PAYMENTS TO CARERS,REDACTED,REDACTED
08.05.2019,CHILDREN'S SERVICES,REDACTED PERSONAL DATA,"1,094.60",DISABILITY & HIV,PAYMENTS TO CARERS,REDACTED,REDACTED
08.05.2019,CHILDREN'S SERVICES,REDACTED PERSONAL DATA,991.42,DISABILITY & HIV,PAYMENTS TO CARERS,REDACTED,REDACTED
08.05.2019,CHILDREN'S SERVICES,REDACTED PERSONAL DATA,991.42,DISABILITY & HIV,PAYMENTS TO CARERS,REDACTED,REDACTED
08.05.2019,CHILDREN'S SERVICES,REDACTED PERSONAL DATA,934,DISABILITY & HIV,PAYMENTS TO CARERS,REDACTED,REDACTED
08.05.2019,CHILDREN'S SERVICES,REDACTED PERSONAL DATA,924.2,DISABILITY & HIV,PAYMENTS TO CARERS,REDACTED,REDACTED
08.05.2019,CHILDREN'S SERVICES,REDACTED PERSONAL DATA,904,DISABILITY & HIV,PAYMENTS TO CARERS,REDACTED,REDACTED
08.05.2019,CHILDREN'S SERVICES,REDACTED PERSONAL DATA,904,DISABILITY & HIV,PAYMENTS TO CARERS,REDACTED,REDACTED
08.05.2019,CHILDREN'S SERVICES,REDACTED PERSONAL DATA,904,DISABILITY & HIV,PAYMENTS TO CARERS,REDACTED,REDACTED
08.05.2019,CHILDREN'S SERVICES,REDACTED PERSONAL DATA,904,DISABILITY & HIV,PAYMENTS TO CARERS,REDACTED,REDACTED
08.05.2019,CHILDREN'S SERVICES,REDACTED PERSONAL DATA,904,DISABILITY & HIV,PAYMENTS TO CARERS,REDACTED,REDACTED
08.05.2019,CHILDREN'S SERVICES,REDACTED PERSONAL DATA,904,DISABILITY & HIV,PAYMENTS TO CARERS,REDACTED,REDACTED
08.05.2019,CHILDREN'S SERVICES,REDACTED PERSONAL DATA,904,DISABILITY & HIV,PAYMENTS TO CARERS,REDACTED,REDACTED
08.05.2019,CHILDREN'S SERVICES,REDACTED PERSONAL DATA,904,DISABILITY & HIV,PAYMENTS TO CARERS,REDACTED,REDACTED
08.05.2019,CHILDREN'S SERVICES,REDACTED PERSONAL DATA,904,DISABILITY & HIV,PAYMENTS TO CARERS,REDACTED,REDACTED
08.05.2019,CHILDREN'S SERVICES,REDACTED PERSONAL DATA,904,DISABILITY & HIV,PAYMENTS TO CARERS,REDACTED,REDACTED
08.05.2019,CHILDREN'S SERVICES,REDACTED PERSONAL DATA,904,DISABILITY & HIV,PAYMENTS TO CARERS,REDACTED,REDACTED
08.05.2019,CHILDREN'S SERVICES,REDACTED PERSONAL DATA,904,DISABILITY & HIV,PAYMENTS TO CARERS,REDACTED,REDACTED
08.05.2019,CHILDREN'S SERVICES,REDACTED PERSONAL DATA,904,DISABILITY & HIV,PAYMENTS TO CARERS,REDACTED,REDACTED
08.05.2019,CHILDREN'S SERVICES,REDACTED PERSONAL DATA,904,DISABILITY & HIV,PAYMENTS TO CARERS,REDACTED,REDACTED
08.05.2019,CHILDREN'S SERVICES,REDACTED PERSONAL DATA,874,DISABILITY & HIV,PAYMENTS TO CARERS,REDACTED,REDACTED
08.05.2019,CHILDREN'S SERVICES,REDACTED PERSONAL DATA,874,DISABILITY & HIV,PAYMENTS TO CARERS,REDACTED,REDACTED
08.05.2019,CHILDREN'S SERVICES,REDACTED PERSONAL DATA,874,DISABILITY & HIV,PAYMENTS TO CARERS,REDACTED,REDACTED
08.05.2019,CHILDREN'S SERVICES,REDACTED PERSONAL DATA,874,DISABILITY & HIV,PAYMENTS TO CARERS,REDACTED,REDACTED
08.05.2019,CHILDREN'S SERVICES,REDACTED PERSONAL DATA,854.28,DISABILITY & HIV,PAYMENTS TO CARERS,REDACTED,REDACTED
08.05.2019,CHILDREN'S SERVICES,REDACTED PERSONAL DATA,850,DISABILITY & HIV,PAYMENTS TO CARERS,REDACTED,REDACTED
08.05.2019,CHILDREN'S SERVICES,REDACTED PERSONAL DATA,835.43,DISABILITY & HIV,PAYMENTS TO CARERS,REDACTED,REDACTED
08.05.2019,CHILDREN'S SERVICES,REDACTED PERSONAL DATA,832,DISABILITY & HIV,PAYMENTS TO CARERS,REDACTED,REDACTED
08.05.2019,CHILDREN'S SERVICES,REDACTED PERSONAL DATA,820,DISABILITY & HIV,PAYMENTS TO CARERS,REDACTED,REDACTED
08.05.2019,CHILDREN'S SERVICES,REDACTED PERSONAL DATA,820,DISABILITY & HIV,PAYMENTS TO CARERS,REDACTED,REDACTED
08.05.2019,CHILDREN'S SERVICES,REDACTED PERSONAL DATA,820,DISABILITY & HIV,PAYMENTS TO CARERS,REDACTED,REDACTED
08.05.2019,CHILDREN'S SERVICES,REDACTED PERSONAL DATA,820,DISABILITY & HIV,PAYMENTS TO CARERS,REDACTED,REDACTED
08.05.2019,CHILDREN'S SERVICES,REDACTED PERSONAL DATA,820,DISABILITY & HIV,PAYMENTS TO CARERS,REDACTED,REDACTED
08.05.2019,CHILDREN'S SERVICES,REDACTED PERSONAL DATA,820,DISABILITY & HIV,PAYMENTS TO CARERS,REDACTED,REDACTED
08.05.2019,CHILDREN'S SERVICES,REDACTED PERSONAL DATA,820,DISABILITY & HIV,PAYMENTS TO CARERS,REDACTED,REDACTED
08.05.2019,CHILDREN'S SERVICES,REDACTED PERSONAL DATA,820,DISABILITY & HIV,PAYMENTS TO CARERS,REDACTED,REDACTED
08.05.2019,CHILDREN'S SERVICES,REDACTED PERSONAL DATA,820,DISABILITY & HIV,PAYMENTS TO CARERS,REDACTED,REDACTED
08.05.2019,CHILDREN'S SERVICES,REDACTED PERSONAL DATA,820,DISABILITY & HIV,PAYMENTS TO CARERS,REDACTED,REDACTED
08.05.2019,CHILDREN'S SERVICES,REDACTED PERSONAL DATA,820,DISABILITY & HIV,PAYMENTS TO CARERS,REDACTED,REDACTED
08.05.2019,CHILDREN'S SERVICES,REDACTED PERSONAL DATA,820,DISABILITY & HIV,PAYMENTS TO CARERS,REDACTED,REDACTED
08.05.2019,CHILDREN'S SERVICES,REDACTED PERSONAL DATA,820,DISABILITY & HIV,PAYMENTS TO CARERS,REDACTED,REDACTED
08.05.2019,CHILDREN'S SERVICES,REDACTED PERSONAL DATA,820,DISABILITY & HIV,PAYMENTS TO CARERS,REDACTED,REDACTED
08.05.2019,CHILDREN'S SERVICES,REDACTED PERSONAL DATA,820,DISABILITY & HIV,PAYMENTS TO CARERS,REDACTED,REDACTED
08.05.2019,CHILDREN'S SERVICES,REDACTED PERSONAL DATA,820,DISABILITY & HIV,PAYMENTS TO CARERS,REDACTED,REDACTED
08.05.2019,CHILDREN'S SERVICES,REDACTED PERSONAL DATA,820,DISABILITY & HIV,PAYMENTS TO CARERS,REDACTED,REDACTED
08.05.2019,CHILDREN'S SERVICES,REDACTED PERSONAL DATA,820,DISABILITY & HIV,PAYMENTS TO CARERS,REDACTED,REDACTED
08.05.2019,CHILDREN'S SERVICES,REDACTED PERSONAL DATA,820,DISABILITY & HIV,PAYMENTS TO CARERS,REDACTED,REDACTED
08.05.2019,CHILDREN'S SERVICES,REDACTED PERSONAL DATA,820,DISABILITY & HIV,PAYMENTS TO CARERS,REDACTED,REDACTED
08.05.2019,CHILDREN'S SERVICES,REDACTED PERSONAL DATA,820,DISABILITY & HIV,PAYMENTS TO CARERS,REDACTED,REDACTED
08.05.2019,CHILDREN'S SERVICES,REDACTED PERSONAL DATA,820,DISABILITY & HIV,PAYMENTS TO CARERS,REDACTED,REDACTED
08.05.2019,CHILDREN'S SERVICES,REDACTED PERSONAL DATA,820,DISABILITY & HIV,PAYMENTS TO CARERS,REDACTED,REDACTED
08.05.2019,CHILDREN'S SERVICES,REDACTED PERSONAL DATA,820,DISABILITY & HIV,PAYMENTS TO CARERS,REDACTED,REDACTED
08.05.2019,CHILDREN'S SERVICES,REDACTED PERSONAL DATA,820,DISABILITY & HIV,PAYMENTS TO CARERS,REDACTED,REDACTED
08.05.2019,CHILDREN'S SERVICES,REDACTED PERSONAL DATA,820,DISABILITY & HIV,PAYMENTS TO CARERS,REDACTED,REDACTED
08.05.2019,CHILDREN'S SERVICES,REDACTED PERSONAL DATA,820,DISABILITY & HIV,PAYMENTS TO CARERS,REDACTED,REDACTED
08.05.2019,CHILDREN'S SERVICES,REDACTED PERSONAL DATA,820,DISABILITY & HIV,PAYMENTS TO CARERS,REDACTED,REDACTED
08.05.2019,CHILDREN'S SERVICES,REDACTED PERSONAL DATA,820,DISABILITY & HIV,PAYMENTS TO CARERS,REDACTED,REDACTED
08.05.2019,CHILDREN'S SERVICES,REDACTED PERSONAL DATA,820,DISABILITY & HIV,PAYMENTS TO CARERS,REDACTED,REDACTED
08.05.2019,CHILDREN'S SERVICES,REDACTED PERSONAL DATA,820,DISABILITY & HIV,PAYMENTS TO CARERS,REDACTED,REDACTED
08.05.2019,CHILDREN'S SERVICES,REDACTED PERSONAL DATA,820,DISABILITY & HIV,PAYMENTS TO CARERS,REDACTED,REDACTED
08.05.2019,CHILDREN'S SERVICES,REDACTED PERSONAL DATA,820,DISABILITY & HIV,PAYMENTS TO CARERS,REDACTED,REDACTED
08.05.2019,CHILDREN'S SERVICES,REDACTED PERSONAL DATA,820,DISABILITY & HIV,PAYMENTS TO CARERS,REDACTED,REDACTED
08.05.2019,CHILDREN'S SERVICES,REDACTED PERSONAL DATA,820,DISABILITY & HIV,PAYMENTS TO CARERS,REDACTED,REDACTED
08.05.2019,CHILDREN'S SERVICES,REDACTED PERSONAL DATA,820,DISABILITY & HIV,PAYMENTS TO CARERS,REDACTED,REDACTED
08.05.2019,CHILDREN'S SERVICES,REDACTED PERSONAL DATA,820,DISABILITY & HIV,PAYMENTS TO CARERS,REDACTED,REDACTED
08.05.2019,CHILDREN'S SERVICES,REDACTED PERSONAL DATA,820,DISABILITY & HIV,PAYMENTS TO CARERS,REDACTED,REDACTED
08.05.2019,CHILDREN'S SERVICES,REDACTED PERSONAL DATA,820,DISABILITY & HIV,PAYMENTS TO CARERS,REDACTED,REDACTED
08.05.2019,CHILDREN'S SERVICES,REDACTED PERSONAL DATA,820,DISABILITY & HIV,PAYMENTS TO CARERS,REDACTED,REDACTED
08.05.2019,CHILDREN'S SERVICES,REDACTED PERSONAL DATA,820,DISABILITY & HIV,PAYMENTS TO CARERS,REDACTED,REDACTED
08.05.2019,CHILDREN'S SERVICES,REDACTED PERSONAL DATA,820,DISABILITY & HIV,PAYMENTS TO CARERS,REDACTED,REDACTED
08.05.2019,CHILDREN'S SERVICES,REDACTED PERSONAL DATA,820,DISABILITY & HIV,PAYMENTS TO CARERS,REDACTED,REDACTED
08.05.2019,CHILDREN'S SERVICES,REDACTED PERSONAL DATA,820,DISABILITY & HIV,PAYMENTS TO CARERS,REDACTED,REDACTED
08.05.2019,CHILDREN'S SERVICES,REDACTED PERSONAL DATA,820,DISABILITY & HIV,PAYMENTS TO CARERS,REDACTED,REDACTED
08.05.2019,CHILDREN'S SERVICES,REDACTED PERSONAL DATA,820,DISABILITY & HIV,PAYMENTS TO CARERS,REDACTED,REDACTED
08.05.2019,CHILDREN'S SERVICES,REDACTED PERSONAL DATA,820,DISABILITY & HIV,PAYMENTS TO CARERS,REDACTED,REDACTED
08.05.2019,CHILDREN'S SERVICES,REDACTED PERSONAL DATA,814,DISABILITY & HIV,PAYMENTS TO CARERS,REDACTED,REDACTED
08.05.2019,CHILDREN'S SERVICES,REDACTED PERSONAL DATA,814,DISABILITY & HIV,PAYMENTS TO CARERS,REDACTED,REDACTED
08.05.2019,CHILDREN'S SERVICES,REDACTED PERSONAL DATA,814,DISABILITY & HIV,PAYMENTS TO CARERS,REDACTED,REDACTED
08.05.2019,CHILDREN'S SERVICES,REDACTED PERSONAL DATA,814,DISABILITY & HIV,PAYMENTS TO CARERS,REDACTED,REDACTED
08.05.2019,CHILDREN'S SERVICES,REDACTED PERSONAL DATA,814,DISABILITY & HIV,PAYMENTS TO CARERS,REDACTED,REDACTED
08.05.2019,CHILDREN'S SERVICES,REDACTED PERSONAL DATA,814,DISABILITY & HIV,PAYMENTS TO CARERS,REDACTED,REDACTED
08.05.2019,CHILDREN'S SERVICES,REDACTED PERSONAL DATA,814,DISABILITY & HIV,PAYMENTS TO CARERS,REDACTED,REDACTED
08.05.2019,CHILDREN'S SERVICES,REDACTED PERSONAL DATA,814,DISABILITY & HIV,PAYMENTS TO CARERS,REDACTED,REDACTED
08.05.2019,CHILDREN'S SERVICES,REDACTED PERSONAL DATA,814,DISABILITY & HIV,PAYMENTS TO CARERS,REDACTED,REDACTED
08.05.2019,CHILDREN'S SERVICES,REDACTED PERSONAL DATA,814,DISABILITY & HIV,PAYMENTS TO CARERS,REDACTED,REDACTED
08.05.2019,CHILDREN'S SERVICES,REDACTED PERSONAL DATA,814,DISABILITY & HIV,PAYMENTS TO CARERS,REDACTED,REDACTED
08.05.2019,CHILDREN'S SERVICES,REDACTED PERSONAL DATA,814,DISABILITY & HIV,PAYMENTS TO CARERS,REDACTED,REDACTED
08.05.2019,CHILDREN'S SERVICES,REDACTED PERSONAL DATA,814,DISABILITY & HIV,PAYMENTS TO CARERS,REDACTED,REDACTED
08.05.2019,CHILDREN'S SERVICES,REDACTED PERSONAL DATA,814,DISABILITY & HIV,PAYMENTS TO CARERS,REDACTED,REDACTED
08.05.2019,CHILDREN'S SERVICES,REDACTED PERSONAL DATA,814,DISABILITY & HIV,PAYMENTS TO CARERS,REDACTED,REDACTED
08.05.2019,CHILDREN'S SERVICES,REDACTED PERSONAL DATA,814,DISABILITY & HIV,PAYMENTS TO CARERS,REDACTED,REDACTED
08.05.2019,CHILDREN'S SERVICES,REDACTED PERSONAL DATA,814,DISABILITY & HIV,PAYMENTS TO CARERS,REDACTED,REDACTED
08.05.2019,CHILDREN'S SERVICES,REDACTED PERSONAL DATA,814,DISABILITY & HIV,PAYMENTS TO CARERS,REDACTED,REDACTED
08.05.2019,CHILDREN'S SERVICES,REDACTED PERSONAL DATA,814,DISABILITY & HIV,PAYMENTS TO CARERS,REDACTED,REDACTED
08.05.2019,CHILDREN'S SERVICES,REDACTED PERSONAL DATA,814,DISABILITY & HIV,PAYMENTS TO CARERS,REDACTED,REDACTED
08.05.2019,CHILDREN'S SERVICES,REDACTED PERSONAL DATA,814,DISABILITY & HIV,PAYMENTS TO CARERS,REDACTED,REDACTED
08.05.2019,CHILDREN'S SERVICES,REDACTED PERSONAL DATA,814,DISABILITY & HIV,PAYMENTS TO CARERS,REDACTED,REDACTED
08.05.2019,CHILDREN'S SERVICES,REDACTED PERSONAL DATA,814,DISABILITY & HIV,PAYMENTS TO CARERS,REDACTED,REDACTED
08.05.2019,CHILDREN'S SERVICES,REDACTED PERSONAL DATA,814,DISABILITY & HIV,PAYMENTS TO CARERS,REDACTED,REDACTED
08.05.2019,CHILDREN'S SERVICES,REDACTED PERSONAL DATA,814,DISABILITY & HIV,PAYMENTS TO CARERS,REDACTED,REDACTED
08.05.2019,CHILDREN'S SERVICES,REDACTED PERSONAL DATA,814,DISABILITY & HIV,PAYMENTS TO CARERS,REDACTED,REDACTED
08.05.2019,CHILDREN'S SERVICES,REDACTED PERSONAL DATA,814,DISABILITY & HIV,PAYMENTS TO CARERS,REDACTED,REDACTED
08.05.2019,CHILDREN'S SERVICES,REDACTED PERSONAL DATA,790,DISABILITY & HIV,PAYMENTS TO CARERS,REDACTED,REDACTED
08.05.2019,CHILDREN'S SERVICES,REDACTED PERSONAL DATA,790,DISABILITY & HIV,PAYMENTS TO CARERS,REDACTED,REDACTED
08.05.2019,CHILDREN'S SERVICES,REDACTED PERSONAL DATA,790,DISABILITY & HIV,PAYMENTS TO CARERS,REDACTED,REDACTED
08.05.2019,CHILDREN'S SERVICES,REDACTED PERSONAL DATA,790,DISABILITY & HIV,PAYMENTS TO CARERS,REDACTED,REDACTED
08.05.2019,CHILDREN'S SERVICES,REDACTED PERSONAL DATA,790,DISABILITY & HIV,PAYMENTS TO CARERS,REDACTED,REDACTED
08.05.2019,CHILDREN'S SERVICES,REDACTED PERSONAL DATA,790,DISABILITY & HIV,PAYMENTS TO CARERS,REDACTED,REDACTED
08.05.2019,CHILDREN'S SERVICES,REDACTED PERSONAL DATA,790,DISABILITY & HIV,PAYMENTS TO CARERS,REDACTED,REDACTED
08.05.2019,CHILDREN'S SERVICES,REDACTED PERSONAL DATA,790,DISABILITY & HIV,PAYMENTS TO CARERS,REDACTED,REDACTED
08.05.2019,CHILDREN'S SERVICES,REDACTED PERSONAL DATA,790,DISABILITY & HIV,PAYMENTS TO CARERS,REDACTED,REDACTED
08.05.2019,CHILDREN'S SERVICES,REDACTED PERSONAL DATA,790,DISABILITY & HIV,PAYMENTS TO CARERS,REDACTED,REDACTED
08.05.2019,CHILDREN'S SERVICES,REDACTED PERSONAL DATA,790,DISABILITY & HIV,PAYMENTS TO CARERS,REDACTED,REDACTED
08.05.2019,CHILDREN'S SERVICES,REDACTED PERSONAL DATA,790,DISABILITY & HIV,PAYMENTS TO CARERS,REDACTED,REDACTED
08.05.2019,CHILDREN'S SERVICES,REDACTED PERSONAL DATA,784,DISABILITY & HIV,PAYMENTS TO CARERS,REDACTED,REDACTED
08.05.2019,CHILDREN'S SERVICES,REDACTED PERSONAL DATA,784,DISABILITY & HIV,PAYMENTS TO CARERS,REDACTED,REDACTED
08.05.2019,CHILDREN'S SERVICES,REDACTED PERSONAL DATA,784,DISABILITY & HIV,PAYMENTS TO CARERS,REDACTED,REDACTED
08.05.2019,CHILDREN'S SERVICES,REDACTED PERSONAL DATA,776.08,DISABILITY & HIV,PAYMENTS TO CARERS,REDACTED,REDACTED
08.05.2019,CHILDREN'S SERVICES,REDACTED PERSONAL DATA,776.08,DISABILITY & HIV,PAYMENTS TO CARERS,REDACTED,REDACTED
08.05.2019,CHILDREN'S SERVICES,REDACTED PERSONAL DATA,726,DISABILITY & HIV,PAYMENTS TO CARERS,REDACTED,REDACTED
08.05.2019,CHILDREN'S SERVICES,REDACTED PERSONAL DATA,726,DISABILITY & HIV,PAYMENTS TO CARERS,REDACTED,REDACTED
08.05.2019,CHILDREN'S SERVICES,REDACTED PERSONAL DATA,726,DISABILITY & HIV,PAYMENTS TO CARERS,REDACTED,REDACTED
08.05.2019,CHILDREN'S SERVICES,REDACTED PERSONAL DATA,726,DISABILITY & HIV,PAYMENTS TO CARERS,REDACTED,REDACTED
08.05.2019,CHILDREN'S SERVICES,REDACTED PERSONAL DATA,726,DISABILITY & HIV,PAYMENTS TO CARERS,REDACTED,REDACTED
08.05.2019,CHILDREN'S SERVICES,REDACTED PERSONAL DATA,726,DISABILITY & HIV,PAYMENTS TO CARERS,REDACTED,REDACTED
08.05.2019,CHILDREN'S SERVICES,REDACTED PERSONAL DATA,726,DISABILITY & HIV,PAYMENTS TO CARERS,REDACTED,REDACTED
08.05.2019,CHILDREN'S SERVICES,REDACTED PERSONAL DATA,726,DISABILITY & HIV,PAYMENTS TO CARERS,REDACTED,REDACTED
08.05.2019,CHILDREN'S SERVICES,REDACTED PERSONAL DATA,726,DISABILITY & HIV,PAYMENTS TO CARERS,REDACTED,REDACTED
08.05.2019,CHILDREN'S SERVICES,REDACTED PERSONAL DATA,726,DISABILITY & HIV,PAYMENTS TO CARERS,REDACTED,REDACTED
08.05.2019,CHILDREN'S SERVICES,REDACTED PERSONAL DATA,726,DISABILITY & HIV,PAYMENTS TO CARERS,REDACTED,REDACTED
08.05.2019,CHILDREN'S SERVICES,REDACTED PERSONAL DATA,726,DISABILITY & HIV,PAYMENTS TO CARERS,REDACTED,REDACTED
08.05.2019,CHILDREN'S SERVICES,REDACTED PERSONAL DATA,726,DISABILITY & HIV,PAYMENTS TO CARERS,REDACTED,REDACTED
08.05.2019,CHILDREN'S SERVICES,REDACTED PERSONAL DATA,726,DISABILITY & HIV,PAYMENTS TO CARERS,REDACTED,REDACTED
08.05.2019,CHILDREN'S SERVICES,REDACTED PERSONAL DATA,726,DISABILITY & HIV,PAYMENTS TO CARERS,REDACTED,REDACTED
08.05.2019,CHILDREN'S SERVICES,REDACTED PERSONAL DATA,726,DISABILITY & HIV,PAYMENTS TO CARERS,REDACTED,REDACTED
08.05.2019,CHILDREN'S SERVICES,REDACTED PERSONAL DATA,726,DISABILITY & HIV,PAYMENTS TO CARERS,REDACTED,REDACTED
08.05.2019,CHILDREN'S SERVICES,REDACTED PERSONAL DATA,726,DISABILITY & HIV,PAYMENTS TO CARERS,REDACTED,REDACTED
08.05.2019,CHILDREN'S SERVICES,REDACTED PERSONAL DATA,726,DISABILITY & HIV,PAYMENTS TO CARERS,REDACTED,REDACTED
08.05.2019,CHILDREN'S SERVICES,REDACTED PERSONAL DATA,712.3,DISABILITY & HIV,PAYMENTS TO CARERS,REDACTED,REDACTED
08.05.2019,CHILDREN'S SERVICES,REDACTED PERSONAL DATA,706,DISABILITY & HIV,PAYMENTS TO CARERS,REDACTED,REDACTED
08.05.2019,CHILDREN'S SERVICES,REDACTED PERSONAL DATA,706,DISABILITY & HIV,PAYMENTS TO CARERS,REDACTED,REDACTED
08.05.2019,CHILDREN'S SERVICES,REDACTED PERSONAL DATA,696,DISABILITY & HIV,PAYMENTS TO CARERS,REDACTED,REDACTED
08.05.2019,CHILDREN'S SERVICES,REDACTED PERSONAL DATA,696,DISABILITY & HIV,PAYMENTS TO CARERS,REDACTED,REDACTED
08.05.2019,CHILDREN'S SERVICES,REDACTED PERSONAL DATA,696,DISABILITY & HIV,PAYMENTS TO CARERS,REDACTED,REDACTED
08.05.2019,CHILDREN'S SERVICES,REDACTED PERSONAL DATA,696,DISABILITY & HIV,PAYMENTS TO CARERS,REDACTED,REDACTED
08.05.2019,CHILDREN'S SERVICES,REDACTED PERSONAL DATA,696,DISABILITY & HIV,PAYMENTS TO CARERS,REDACTED,REDACTED
08.05.2019,CHILDREN'S SERVICES,REDACTED PERSONAL DATA,676,DISABILITY & HIV,PAYMENTS TO CARERS,REDACTED,REDACTED
08.05.2019,CHILDREN'S SERVICES,REDACTED PERSONAL DATA,676,DISABILITY & HIV,PAYMENTS TO CARERS,REDACTED,REDACTED
08.05.2019,CHILDREN'S SERVICES,REDACTED PERSONAL DATA,676,DISABILITY & HIV,PAYMENTS TO CARERS,REDACTED,REDACTED
08.05.2019,CHILDREN'S SERVICES,REDACTED PERSONAL DATA,676,DISABILITY & HIV,PAYMENTS TO CARERS,REDACTED,REDACTED
08.05.2019,CHILDREN'S SERVICES,REDACTED PERSONAL DATA,676,DISABILITY & HIV,PAYMENTS TO CARERS,REDACTED,REDACTED
08.05.2019,CHILDREN'S SERVICES,REDACTED PERSONAL DATA,676,DISABILITY & HIV,PAYMENTS TO CARERS,REDACTED,REDACTED
08.05.2019,CHILDREN'S SERVICES,REDACTED PERSONAL DATA,676,DISABILITY & HIV,PAYMENTS TO CARERS,REDACTED,REDACTED
08.05.2019,CHILDREN'S SERVICES,REDACTED PERSONAL DATA,676,DISABILITY & HIV,PAYMENTS TO CARERS,REDACTED,REDACTED
08.05.2019,CHILDREN'S SERVICES,REDACTED PERSONAL DATA,676,DISABILITY & HIV,PAYMENTS TO CARERS,REDACTED,REDACTED
08.05.2019,CHILDREN'S SERVICES,REDACTED PERSONAL DATA,676,DISABILITY & HIV,PAYMENTS TO CARERS,REDACTED,REDACTED
08.05.2019,CHILDREN'S SERVICES,REDACTED PERSONAL DATA,660,DISABILITY & HIV,PAYMENTS TO CARERS,REDACTED,REDACTED
08.05.2019,CHILDREN'S SERVICES,REDACTED PERSONAL DATA,646,DISABILITY & HIV,PAYMENTS TO CARERS,REDACTED,REDACTED
08.05.2019,CHILDREN'S SERVICES,REDACTED PERSONAL DATA,646,DISABILITY & HIV,PAYMENTS TO CARERS,REDACTED,REDACTED
08.05.2019,CHILDREN'S SERVICES,REDACTED PERSONAL DATA,646,DISABILITY & HIV,PAYMENTS TO CARERS,REDACTED,REDACTED
08.05.2019,CHILDREN'S SERVICES,REDACTED PERSONAL DATA,646,DISABILITY & HIV,PAYMENTS TO CARERS,REDACTED,REDACTED
08.05.2019,CHILDREN'S SERVICES,REDACTED PERSONAL DATA,646,DISABILITY & HIV,PAYMENTS TO CARERS,REDACTED,REDACTED
08.05.2019,CHILDREN'S SERVICES,REDACTED PERSONAL DATA,644.29,DISABILITY & HIV,PAYMENTS TO CARERS,REDACTED,REDACTED
08.05.2019,CHILDREN'S SERVICES,REDACTED PERSONAL DATA,581.43,DISABILITY & HIV,PAYMENTS TO CARERS,REDACTED,REDACTED
08.05.2019,CHILDREN'S SERVICES,REDACTED PERSONAL DATA,311.14,DISABILITY & HIV,PAYMENTS TO CARERS,REDACTED,REDACTED
08.05.2019,CHILDREN'S SERVICES,REDACTED PERSONAL DATA,311.14,DISABILITY & HIV,PAYMENTS TO CARERS,REDACTED,REDACTED
08.05.2019,CHILDREN'S SERVICES,REDACTED PERSONAL DATA,-292.86,DISABILITY & HIV,PAYMENTS TO CARERS,REDACTED,REDACTED
08.05.2019,CHILDREN'S SERVICES,REDACTED PERSONAL DATA,-300,DISABILITY & HIV,PAYMENTS TO CARERS,REDACTED,REDACTED
08.05.2019,CHILDREN'S SERVICES,REDACTED PERSONAL DATA,-317.67,DISABILITY & HIV,PAYMENTS TO CARERS,REDACTED,REDACTED
08.05.2019,CHILDREN'S SERVICES,REDACTED PERSONAL DATA,-332.67,DISABILITY & HIV,PAYMENTS TO CARERS,REDACTED,REDACTED
08.05.2019,CHILDREN'S SERVICES,REDACTED PERSONAL DATA,-332.67,DISABILITY & HIV,PAYMENTS TO CARERS,REDACTED,REDACTED
08.05.2019,CHILDREN'S SERVICES,REDACTED PERSONAL DATA,-338.57,DISABILITY & HIV,PAYMENTS TO CARERS,REDACTED,REDACTED
08.05.2019,CHILDREN'S SERVICES,REDACTED PERSONAL DATA,-343.85,DISABILITY & HIV,PAYMENTS TO CARERS,REDACTED,REDACTED
08.05.2019,CHILDREN'S SERVICES,REDACTED PERSONAL DATA,-348.86,DISABILITY & HIV,PAYMENTS TO CARERS,REDACTED,REDACTED
08.05.2019,CHILDREN'S SERVICES,REDACTED PERSONAL DATA,-358.41,DISABILITY & HIV,PAYMENTS TO CARERS,REDACTED,REDACTED
08.05.2019,CHILDREN'S SERVICES,REDACTED PERSONAL DATA,-410,DISABILITY & HIV,PAYMENTS TO CARERS,REDACTED,REDACTED
08.05.2019,CHILDREN'S SERVICES,REDACTED PERSONAL DATA,-500,DISABILITY & HIV,PAYMENTS TO CARERS,REDACTED,REDACTED
08.05.2019,CHILDREN'S SERVICES,THE ALBANY 2001 COMPANY,336,FREE AND EARLY LEARNING TEAM,TRAINING,5902357308,1000052402
08.05.2019,CHILDREN'S SERVICES,COWLEY INTERNATIONAL COLLEGE,792,PUPIL PREMIUM CURRENT YEAR,SCHOOLS CAPITATION,5902357208,1000082680
08.05.2019,CHILDREN'S SERVICES,REDACTED PERSONAL DATA,784,S24 CLA,EXTERNAL AGENCIES AND BODIES,REDACTED,REDACTED
08.05.2019,CHILDREN'S SERVICES,REDACTED PERSONAL DATA,321.26,S24 CLA,OTHER PAYMENTS FOR CLIENTS,REDACTED,REDACTED
08.05.2019,CHILDREN'S SERVICES,LONDON EARLY YEARS FOUNDATION,650,SPECIAL GUARDIANSHIP,EXTERNAL AGENCIES AND BODIES,5902357371,1000074303
08.05.2019,CHILDREN'S SERVICES,REDACTED PERSONAL DATA,"1,379.08",STAYING PUT,PAYMENTS TO CARERS,REDACTED,REDACTED
08.05.2019,CHILDREN'S SERVICES,REDACTED PERSONAL DATA,844,STAYING PUT,PAYMENTS TO CARERS,REDACTED,REDACTED
08.05.2019,CHILDREN'S SERVICES,REDACTED PERSONAL DATA,798.12,STAYING PUT,PAYMENTS TO CARERS,REDACTED,REDACTED
08.05.2019,CHILDREN'S SERVICES,REDACTED PERSONAL DATA,500,STAYING PUT,PAYMENTS TO CARERS,REDACTED,REDACTED
08.05.2019,CHILDREN'S SERVICES,REDACTED PERSONAL DATA,500,STAYING PUT,PAYMENTS TO CARERS,REDACTED,REDACTED
08.05.2019,CHILDREN'S SERVICES,REDACTED PERSONAL DATA,500,STAYING PUT,PAYMENTS TO CARERS,REDACTED,REDACTED
08.05.2019,CHILDREN'S SERVICES,REDACTED PERSONAL DATA,500,STAYING PUT,PAYMENTS TO CARERS,REDACTED,REDACTED
08.05.2019,CHILDREN'S SERVICES,REDACTED PERSONAL DATA,500,STAYING PUT,PAYMENTS TO CARERS,REDACTED,REDACTED
08.05.2019,CHILDREN'S SERVICES,REDACTED PERSONAL DATA,500,STAYING PUT,PAYMENTS TO CARERS,REDACTED,REDACTED
08.05.2019,CHILDREN'S SERVICES,REDACTED PERSONAL DATA,500,STAYING PUT,PAYMENTS TO CARERS,REDACTED,REDACTED
08.05.2019,CHILDREN'S SERVICES,REDACTED PERSONAL DATA,500,STAYING PUT,PAYMENTS TO CARERS,REDACTED,REDACTED
08.05.2019,CHILDREN'S SERVICES,REDACTED PERSONAL DATA,500,STAYING PUT,PAYMENTS TO CARERS,REDACTED,REDACTED
08.05.2019,CHILDREN'S SERVICES,REDACTED PERSONAL DATA,500,STAYING PUT,PAYMENTS TO CARERS,REDACTED,REDACTED
08.05.2019,CHILDREN'S SERVICES,REDACTED PERSONAL DATA,500,STAYING PUT,PAYMENTS TO CARERS,REDACTED,REDACTED
08.05.2019,CHILDREN'S SERVICES,REDACTED PERSONAL DATA,500,STAYING PUT,PAYMENTS TO CARERS,REDACTED,REDACTED
08.05.2019,CHILDREN'S SERVICES,REDACTED PERSONAL DATA,500,STAYING PUT,PAYMENTS TO CARERS,REDACTED,REDACTED
08.05.2019,CHILDREN'S SERVICES,REDACTED PERSONAL DATA,500,STAYING PUT,PAYMENTS TO CARERS,REDACTED,REDACTED
08.05.2019,CHILDREN'S SERVICES,REDACTED PERSONAL DATA,500,STAYING PUT,PAYMENTS TO CARERS,REDACTED,REDACTED
08.05.2019,CHILDREN'S SERVICES,REDACTED PERSONAL DATA,500,STAYING PUT,PAYMENTS TO CARERS,REDACTED,REDACTED
08.05.2019,CHILDREN'S SERVICES,REDACTED PERSONAL DATA,500,STAYING PUT,PAYMENTS TO CARERS,REDACTED,REDACTED
08.05.2019,CHILDREN'S SERVICES,REDACTED PERSONAL DATA,500,STAYING PUT,PAYMENTS TO CARERS,REDACTED,REDACTED
08.05.2019,CHILDREN'S SERVICES,REDACTED PERSONAL DATA,500,STAYING PUT,PAYMENTS TO CARERS,REDACTED,REDACTED
08.05.2019,CHILDREN'S SERVICES,REDACTED PERSONAL DATA,500,STAYING PUT,PAYMENTS TO CARERS,REDACTED,REDACTED
08.05.2019,CHILDREN'S SERVICES,REDACTED PERSONAL DATA,500,STAYING PUT,PAYMENTS TO CARERS,REDACTED,REDACTED
08.05.2019,CHILDREN'S SERVICES,REDACTED PERSONAL DATA,500,STAYING PUT,PAYMENTS TO CARERS,REDACTED,REDACTED
08.05.2019,CHILDREN'S SERVICES,REDACTED PERSONAL DATA,500,STAYING PUT,PAYMENTS TO CARERS,REDACTED,REDACTED
08.05.2019,CHILDREN'S SERVICES,REDACTED PERSONAL DATA,500,STAYING PUT,PAYMENTS TO CARERS,REDACTED,REDACTED
08.05.2019,CHILDREN'S SERVICES,REDACTED PERSONAL DATA,500,STAYING PUT,PAYMENTS TO CARERS,REDACTED,REDACTED
08.05.2019,CHILDREN'S SERVICES,REDACTED PERSONAL DATA,500,STAYING PUT,PAYMENTS TO CARERS,REDACTED,REDACTED
08.05.2019,CHILDREN'S SERVICES,REDACTED PERSONAL DATA,500,STAYING PUT,PAYMENTS TO CARERS,REDACTED,REDACTED
08.05.2019,CHILDREN'S SERVICES,REDACTED PERSONAL DATA,500,STAYING PUT,PAYMENTS TO CARERS,REDACTED,REDACTED
08.05.2019,CHILDREN'S SERVICES,REDACTED PERSONAL DATA,500,STAYING PUT,PAYMENTS TO CARERS,REDACTED,REDACTED
08.05.2019,CHILDREN'S SERVICES,REDACTED PERSONAL DATA,430,STAYING PUT,PAYMENTS TO CARERS,REDACTED,REDACTED
08.05.2019,CHILDREN'S SERVICES,REDACTED PERSONAL DATA,373.46,STAYING PUT,PAYMENTS TO CARERS,REDACTED,REDACTED
08.05.2019,CHILDREN'S SERVICES,REDACTED PERSONAL DATA,-254.44,STAYING PUT,PAYMENTS TO CARERS,REDACTED,REDACTED
08.05.2019,CHILDREN'S SERVICES,REDACTED PERSONAL DATA,700,UASC SECTION 24,EXTERNAL AGENCIES AND BODIES,REDACTED,REDACTED
08.05.2019,CHILDREN'S SERVICES,REDACTED PERSONAL DATA,"1,200.00",UASC SECTION 24,OTHER PAYMENTS FOR CLIENTS,REDACTED,REDACTED
08.05.2019,CHILDREN'S SERVICES,REDACTED PERSONAL DATA,321.26,UASC SECTION 24,OTHER PAYMENTS FOR CLIENTS,REDACTED,REDACTED
08.05.2019,COMMUNITIES,ABOUT THIS VAN,"2,225.00",COMMUNITY COUNCILS TEAM,DELIVERY CHARGES,5902356883,1000039842
08.05.2019,COMMUNITIES,HOMELY HOUSING LETS LTD,"37,695.00",NO RECOURSE TO PUBLIC FUNDS,ACCOMMODATION CHARGES,5902357260,1000050013
08.05.2019,COMMUNITIES,J & M OASIS LTD,"32,395.00",NO RECOURSE TO PUBLIC FUNDS,ACCOMMODATION CHARGES,5902357333,1000072169
08.05.2019,COMMUNITIES,TAAKSVALE HOUSING LTD,"26,266.75",NO RECOURSE TO PUBLIC FUNDS,ACCOMMODATION CHARGES,5902357233,1000073665
08.05.2019,COMMUNITIES,KINDLY PROPERTIES LTD,"10,065.00",NO RECOURSE TO PUBLIC FUNDS,ACCOMMODATION CHARGES,5902357287,1000060734
08.05.2019,COMMUNITIES,CROMWOOD HOUSING,"8,779.00",NO RECOURSE TO PUBLIC FUNDS,ACCOMMODATION CHARGES,5902357300,1000071450
08.05.2019,COMMUNITIES,RS REAL ESTATE LTD,"7,035.00",NO RECOURSE TO PUBLIC FUNDS,ACCOMMODATION CHARGES,5902357216,1000072485
08.05.2019,COMMUNITIES,NORBURY PROPERTY SERVICES (LONDON) LTD,"5,400.00",NO RECOURSE TO PUBLIC FUNDS,ACCOMMODATION CHARGES,5902357305,1000075566
08.05.2019,COMMUNITIES,A & M PROPERTY AND CONSTRUCTION LTD,"4,380.00",NO RECOURSE TO PUBLIC FUNDS,ACCOMMODATION CHARGES,5902357282,1000014564
08.05.2019,COMMUNITIES,VENTURE HOUSING (LONDON) LTD,"3,915.00",NO RECOURSE TO PUBLIC FUNDS,ACCOMMODATION CHARGES,5902357316,1000056686
08.05.2019,COMMUNITIES,SOUTH OF THE RIVER INVESTMENTS LTD,"2,700.00",NO RECOURSE TO PUBLIC FUNDS,ACCOMMODATION CHARGES,5902357295,1000073638
08.05.2019,COMMUNITIES,STENFORD PROPERTY LTD,"2,160.00",NO RECOURSE TO PUBLIC FUNDS,ACCOMMODATION CHARGES,5902357223,1000074759
08.05.2019,COMMUNITIES,GROVE HOTEL LTD,"2,100.00",NO RECOURSE TO PUBLIC FUNDS,ACCOMMODATION CHARGES,5902357270,1000043663
08.05.2019,COMMUNITIES,DENHAN INTERNATIONAL LIMITED,"1,725.00",NO RECOURSE TO PUBLIC FUNDS,ACCOMMODATION CHARGES,5902357310,1000075567
08.05.2019,COMMUNITIES,MSR HOUSING,750,NO RECOURSE TO PUBLIC FUNDS,ACCOMMODATION CHARGES,5902357304,1000079359
08.05.2019,COMMUNITIES,WILLOW ESTATE AGENTS (LONDON) LTD,684,NO RECOURSE TO PUBLIC FUNDS,ACCOMMODATION CHARGES,5902357225,1000060607
08.05.2019,COMMUNITIES,TAAKSVALE HOUSING LTD,"-1,395.00",NO RECOURSE TO PUBLIC FUNDS,ACCOMMODATION CHARGES,5902357232,1000073665
08.05.2019,COMMUNITIES,BROOK,"36,437.50",YOUNG PEOPLES SERVICE,OTHER CONTRACTORS,5902357325,1000076901
08.05.2019,CUSTOMER EXPERIENCE HGF,DENHAN INTERNATIONAL LIMITED,"24,065.05",NIGHTLY TA (NSC),EXTERNAL AGENCIES AND BODIES,5902357324,1000075567
08.05.2019,CUSTOMER EXPERIENCE HGF,SECURENT LTD,"9,600.00",NIGHTLY TA (NSC),EXTERNAL AGENCIES AND BODIES,5902357292,1000079400
08.05.2019,CUSTOMER EXPERIENCE HGF,MSR HOUSING,"1,605.00",NIGHTLY TA (NSC),EXTERNAL AGENCIES AND BODIES,5902357230,1000079359
08.05.2019,CUSTOMER EXPERIENCE HGF,VENTURE HOUSING (LONDON) LTD,"1,332.00",NIGHTLY TA (NSC),EXTERNAL AGENCIES AND BODIES,5902357213,1000056686
08.05.2019,ENVIRONMENT AND LEISURE,NETWORK RAIL INFRASTRUCTURE LTD,"2,990.00",CAPITAL PS (LEISURE),CONSTRUCTION,5902357407,1000053596
08.05.2019,ENVIRONMENT DIRECTORATE,FIVEWAYS MUNICIPAL VEHICLE HIRE LTD,900,COMMERCIAL VEH CTRL A/C,HIRED VEHICLES,5902357375,1000023985
08.05.2019,ENVIRONMENT DIRECTORATE,FIVEWAYS MUNICIPAL VEHICLE HIRE LTD,900,COMMERCIAL VEH CTRL A/C,HIRED VEHICLES,5902357378,1000023985
08.05.2019,ENVIRONMENT DIRECTORATE,FIVEWAYS MUNICIPAL VEHICLE HIRE LTD,900,COMMERCIAL VEH CTRL A/C,HIRED VEHICLES,5902357382,1000023985
08.05.2019,ENVIRONMENT DIRECTORATE,FIVEWAYS MUNICIPAL VEHICLE HIRE LTD,900,COMMERCIAL VEH CTRL A/C,HIRED VEHICLES,5902357385,1000023985
08.05.2019,ENVIRONMENT DIRECTORATE,FIVEWAYS MUNICIPAL VEHICLE HIRE LTD,900,COMMERCIAL VEH CTRL A/C,HIRED VEHICLES,5902357408,1000023985
08.05.2019,ENVIRONMENT DIRECTORATE,FIVEWAYS MUNICIPAL VEHICLE HIRE LTD,725,COMMERCIAL VEH CTRL A/C,HIRED VEHICLES,5902357370,1000023985
08.05.2019,ENVIRONMENT DIRECTORATE,FIVEWAYS MUNICIPAL VEHICLE HIRE LTD,725,COMMERCIAL VEH CTRL A/C,HIRED VEHICLES,5902357396,1000023985
08.05.2019,ENVIRONMENT DIRECTORATE,FIVEWAYS MUNICIPAL VEHICLE HIRE LTD,725,COMMERCIAL VEH CTRL A/C,HIRED VEHICLES,5902357404,1000023985
08.05.2019,ENVIRONMENT DIRECTORATE,FIVEWAYS MUNICIPAL VEHICLE HIRE LTD,725,COMMERCIAL VEH CTRL A/C,HIRED VEHICLES,5902357413,1000023985
08.05.2019,ENVIRONMENT DIRECTORATE,PACE ACCIDENT REPAIRS CENTRE LTD,380,COMMERCIAL VEH CTRL A/C,HIRED VEHICLES,5902357421,1000069899
08.05.2019,ENVIRONMENT DIRECTORATE,PACE ACCIDENT REPAIRS CENTRE LTD,380,COMMERCIAL VEH CTRL A/C,HIRED VEHICLES,5902357423,1000069899
08.05.2019,ENVIRONMENT DIRECTORATE,FIVEWAYS MUNICIPAL VEHICLE HIRE LTD,424.28,COMMERCIAL VEH CTRL A/C,VEHICLE REPAIRS & MAINTENANCE,5902357424,1000023985
08.05.2019,ENVIRONMENT DIRECTORATE,LONDON HIRE T/A R J MOTORS,358.65,COMMERCIAL VEH CTRL A/C,VEHICLE REPAIRS & MAINTENANCE,5902357393,1000047106
08.05.2019,ENVIRONMENT DIRECTORATE,FIVEWAYS MUNICIPAL VEHICLE HIRE LTD,305.16,COMMERCIAL VEH CTRL A/C,VEHICLE REPAIRS & MAINTENANCE,5902357422,1000023985
08.05.2019,ENVIRONMENT DIRECTORATE,LONDON HIRE T/A R J MOTORS,284.4,COMMERCIAL VEH CTRL A/C,VEHICLE REPAIRS & MAINTENANCE,5902357355,1000047106
08.05.2019,ENVIRONMENT DIRECTORATE,GLASDON UK LIMITED,"1,479.21",STREET CLEANING-GENERAL,MATERIALS,5902357237,1024073
08.05.2019,ENVIRONMENT DIRECTORATE,ELLIOT ENVIRONMENTAL LTD,400,STREET CLEANING-GENERAL,OTHER CONTRACTORS,5902357231,1000047392
08.05.2019,ENVIRONMENT DIRECTORATE,RAY LINGE MARKET STALLS LTD,"8,275.00",STREET TRADING A/C,OTHER R&M,5902357313,11189601
08.05.2019,F & C S EXCLUDING CORPORATE BUDGETS,DSI BILLING SERVICES LTD,"40,599.61",ADMINISTRATIVE SUPPORT,POSTAGES,5902357332,1000058640
08.05.2019,F & C S EXCLUDING CORPORATE BUDGETS,EDF ENERGY PLC,-265.68,FC&P PROCESSING,OFFICE EXPENSES,2102950802,1008746
08.05.2019,F & C S EXCLUDING CORPORATE BUDGETS,THAMES WATER UTILITIES LTD,-895.43,FC&P PROCESSING,OFFICE EXPENSES,2102949156,11003005
08.05.2019,F & C S EXCLUDING CORPORATE BUDGETS,POSTURITE (UK) LTD,947.7,LITIGATION,FURNITURE PURCHASE & REPAIR,5902357309,11015468
08.05.2019,F & C S EXCLUDING CORPORATE BUDGETS,BUDGET CARPETS,483.33,SESS,OTHER PAYMENTS FOR CLIENTS,5902357296,11319076
08.05.2019,HOUSING GENERAL FUND,SOUTH EAST BUILDING CONTRACTORS LTD,"14,581.00",CAPITAL PS (HOUSING GF),CAPITAL GRANTS,5902357326,1000049893
08.05.2019,HOUSING GENERAL FUND,C & C BUILDERS LTD,"9,015.00",CAPITAL PS (HOUSING GF),CAPITAL GRANTS,5902357353,1000079100
08.05.2019,HOUSING GENERAL FUND,DACS LTD,"5,775.00",CAPITAL PS (HOUSING GF),CAPITAL GRANTS,5902357346,1000079747
08.05.2019,HOUSING GENERAL FUND,C & C BUILDERS LTD,"2,670.00",CAPITAL PS (HOUSING GF),CAPITAL GRANTS,5902357291,1000079100
08.05.2019,HOUSING GENERAL FUND,L H BRIDGE LTD,"1,700.00",CAPITAL PS (HOUSING GF),CAPITAL GRANTS,5902357319,1000056928
08.05.2019,HOUSING GENERAL FUND,C & C BUILDERS LTD,"1,060.00",CAPITAL PS (HOUSING GF),CAPITAL GRANTS,5902357353,1000079100
08.05.2019,HOUSING HRA,HIGHER ELEVATION LTD,"14,606.29",CAPITAL PS (HRA),CONST'N MAIN CONTRACT - NON CERTIFICATED,2102951593,3000001900
08.05.2019,HOUSING HRA,HIGHER ELEVATION LTD,570,CAPITAL PS (HRA),CONST'N MAIN CONTRACT - NON CERTIFICATED,2102951594,3000001900
08.05.2019,HOUSING HRA,LAND REGISTRY,788,HOME OWNERSHIP,PROFESSIONAL FEES,6101884302,DIRECT DEBIT PAYMENT
08.05.2019,HOUSING STRATEGY AND OPTIONS,CEDAR HOUSING SOLUTIONS LTD,"3,000.00",HOMELESS PROJECTS,GRANTS,5902357217,1000080014
08.05.2019,HOUSING STRATEGY AND OPTIONS,REDACTED PERSONAL DATA,"1,000.00",HOMELESS PROJECTS,GRANTS,REDACTED,REDACTED
08.05.2019,LEISURE DIRECTORATE,ASKEWS & HOLTS LIBRARY SERVICES LTD,"3,555.83",STOCK SERVICES,BOOKS & PUBLICATIONS,5902357262,1494168
08.05.2019,LEISURE DIRECTORATE,ASKEWS & HOLTS LIBRARY SERVICES LTD,"2,048.62",STOCK SERVICES,BOOKS & PUBLICATIONS,5902357312,1494168
08.05.2019,LEISURE DIRECTORATE,COMPLETE TREE CARE LTD,732,TREES O'HEADS,CONSULTANTS SERVICES,5902357387,1000041410
08.05.2019,LEISURE DIRECTORATE,COMPLETE TREE CARE LTD,589.5,TREES O'HEADS,CONSULTANTS SERVICES,5902357390,1000041410
08.05.2019,LEISURE DIRECTORATE,COMPLETE TREE CARE LTD,294.75,TREES O'HEADS,CONSULTANTS SERVICES,5902357398,1000041410
08.05.2019,MODERNISATION HGF,THAMES WATER UTILITIES LTD,895.43,7 TALFOURD ROAD,WATER,5902349917,11003005
08.05.2019,MODERNISATION HGF,ANDERSON TRAVEL LTD,300,CORPORATE TRAINING BUDGETS,HIRED VEHICLES,5902357210,1958067
08.05.2019,MODERNISATION HGF,CAPITA SECURE INFORMATION,"46,256.97",IT MANAGEMENT,COMMS & COMPUTING CONTRACT CHARGES,5902357275,1000070739
08.05.2019,MODERNISATION HGF,J2 GLOBAL CANADA,"1,254.00",IT MANAGEMENT,DATA COMMUNICATIONS,5902357360,1000070066
08.05.2019,MODERNISATION HGF,ITEC CONNECT LTD,"1,000.00",IT MANAGEMENT,PRINTING,5902357267,1000080418
08.05.2019,MODERNISATION HGF,SHL UK LTD,"7,500.00",OCCUPATIONAL ASSESSMENT,CONSULTANTS SERVICES,5902357212,1050652
08.05.2019,MODERNISATION HGF,LONDON COUNCILS,"3,000.00",SUPPORT COSTS,SUBSCRIPTIONS,5902357220,11237079
08.05.2019,MODERNISATION HGF,LONDON GRID FOR LEARNING TRUST,"11,984.96",TECHNOLOGY,TELEPHONES (LAND LINES),5902357301,1000066669
08.05.2019,MODERNISATION HGF,LONDON GRID FOR LEARNING TRUST,661.31,TECHNOLOGY,TELEPHONES (LAND LINES),5902357298,1000066669
08.05.2019,PLANNING AND TRANSPORT,SOUTHWARK NEWSPAPER LTD,504,DEVELOPMENT CONTROL ADMINSTRATION,MARKETING & PUBLICITY SERVICES,5902357379,1556957
08.05.2019,PLANNING AND TRANSPORT,SOUTHWARK NEWSPAPER LTD,300,DEVELOPMENT CONTROL ADMINSTRATION,MARKETING & PUBLICITY SERVICES,5902357383,1556957
08.05.2019,PLANNING AND TRANSPORT,GVA GRIMLEY LLP,"38,187.50",STRATEGIC APPLICATIONS,PROFESSIONAL FEES,5902357337,1000016057
08.05.2019,PLANNING AND TRANSPORT,GVA GRIMLEY LLP,"13,500.00",STRATEGIC APPLICATIONS,PROFESSIONAL FEES,5902357338,1000016057
08.05.2019,PLANNING AND TRANSPORT,GVA GRIMLEY LLP,"11,808.71",STRATEGIC APPLICATIONS,PROFESSIONAL FEES,5902357290,1000016057
08.05.2019,PLANNING AND TRANSPORT,LAND USE CONSULTANTS LTD,"11,316.75",STRATEGIC APPLICATIONS,PROFESSIONAL FEES,5902357302,11132526
08.05.2019,PUBLIC HEALTH,WILLIAM MARTIN PROPERTY CONSULTANTS LTD,500,22 SHAND STREET,PROFESSIONAL FEES,5902357271,1000062171
08.05.2019,PUBLIC HEALTH,THIS SOLID GROUND LTD,"5,745.00","COURAGE YARD, SHAD THAMES",MARKETING & PUBLICITY SERVICES,5902357335,1000082494
08.05.2019,PUBLIC HEALTH,THIS SOLID GROUND LTD,"2,175.00","COURAGE YARD, SHAD THAMES",MARKETING & PUBLICITY SERVICES,5902357334,1000082494
08.05.2019,PUBLIC HEALTH,GVA GRIMLEY LLP,"3,287.50",OKR MASTER PLANNING,PROFESSIONAL FEES,5902357328,1000016057
08.05.2019,RESIDENT SERVICES,CARLISLE SECURITY SERVICES LTD,"12,354.24",CAMBERWELL,SECURITY SERVICES,5902357221,11212342
08.05.2019,RESIDENT SERVICES,KENT COUNTY COUNCIL - LASER,956.86,NORTHCOTT HOUSE,ELECTRICITY,5902357253,1000012926
08.05.2019,RESIDENT SERVICES,KENT COUNTY COUNCIL - LASER,394.08,NORTHCOTT HOUSE,ELECTRICITY,5902357257,1000012926
08.05.2019,RESIDENT SERVICES,EDF ENERGY PLC,489.16,OPERATIONS/OFFICES ACCOMMODATION,ELECTRICITY,5902357254,1008746
08.05.2019,RESIDENT SERVICES,GOVNET COMMUNICATIONS,445,OPERATIONS/OFFICES ACCOMMODATION,TRAINING,5902357330,1000050132
08.05.2019,RESIDENT SERVICES,CIPFA BUSINESS LTD,345,STRATEGIC BUSINESS PLANNING,TRAINING,5902357327,1000024688
08.05.2019,RESIDENT SERVICES,K3 PROPERTY MANAGEMENT LTD,"1,085.00",TA PLACEMENTS,EXTERNAL AGENCIES AND BODIES,5902357391,1000068219
09.05.2019,ADULT SOCIAL CARE,CHOICE SUPPORT,600,APPOINTEESHIPS,OTHER PAYMENTS FOR CLIENTS,2102950511,1104183
09.05.2019,ADULT SOCIAL CARE,CHOICE SUPPORT,500,APPOINTEESHIPS,OTHER PAYMENTS FOR CLIENTS,2102950570,1104183
09.05.2019,ADULT SOCIAL CARE,SOUTHWARK CITIZENS ADVICE,"62,748.00",BREAK FOR CARERS,EXTERNAL AGENCIES AND BODIES,5902357486,1874379
09.05.2019,ADULT SOCIAL CARE,SOUTHWARK CITIZENS ADVICE,"62,748.00",BREAK FOR CARERS,EXTERNAL AGENCIES AND BODIES,5902357491,1874379
09.05.2019,ADULT SOCIAL CARE,HEALTHCARE & TRANSPORT SERVICES,860,LD LTS 18-64,CLIENT TRANSPORT,2102952437,1000042743
09.05.2019,ADULT SOCIAL CARE,HEALTHCARE & TRANSPORT SERVICES,516,LD LTS 18-64,CLIENT TRANSPORT,2102952440,1000042743
09.05.2019,ADULT SOCIAL CARE,HEALTHCARE & TRANSPORT SERVICES,448,LD LTS 18-64,CLIENT TRANSPORT,2102952434,1000042743
09.05.2019,ADULT SOCIAL CARE,HEALTHCARE & TRANSPORT SERVICES,448,LD LTS 18-64,CLIENT TRANSPORT,2102952436,1000042743
09.05.2019,ADULT SOCIAL CARE,HEALTHCARE & TRANSPORT SERVICES,448,LD LTS 18-64,CLIENT TRANSPORT,2102952438,1000042743
09.05.2019,ADULT SOCIAL CARE,HEALTHCARE & TRANSPORT SERVICES,448,LD LTS 18-64,CLIENT TRANSPORT,2102952439,1000042743
09.05.2019,ADULT SOCIAL CARE,HEALTHCARE & TRANSPORT SERVICES,306,LD LTS 18-64,CLIENT TRANSPORT,2102952429,1000042743
09.05.2019,ADULT SOCIAL CARE,HEALTHCARE & TRANSPORT SERVICES,306,LD LTS 18-64,CLIENT TRANSPORT,2102952430,1000042743
09.05.2019,ADULT SOCIAL CARE,HEALTHCARE & TRANSPORT SERVICES,306,LD LTS 18-64,CLIENT TRANSPORT,2102952432,1000042743
09.05.2019,ADULT SOCIAL CARE,REDACTED PERSONAL DATA,323.76,LD LTS 18-64,HOMECARE - SPOT,REDACTED,REDACTED
09.05.2019,ADULT SOCIAL CARE,REDACTED PERSONAL DATA,323.76,LD LTS 18-64,HOMECARE - SPOT,REDACTED,REDACTED
09.05.2019,ADULT SOCIAL CARE,REDACTED PERSONAL DATA,269.8,LD LTS 18-64,HOMECARE - SPOT,REDACTED,REDACTED
09.05.2019,ADULT SOCIAL CARE,REDACTED PERSONAL DATA,269.8,LD LTS 18-64,HOMECARE - SPOT,REDACTED,REDACTED
09.05.2019,ADULT SOCIAL CARE,CHOICE SUPPORT,"1,102.20",LD LTS 18-64,SUPPORTED LIVING,2102952044,1104183
09.05.2019,ADULT SOCIAL CARE,CHOICE SUPPORT,"1,102.20",LD LTS 18-64,SUPPORTED LIVING,2102952085,1104183
09.05.2019,ADULT SOCIAL CARE,CHOICE SUPPORT,955.24,LD LTS 18-64,SUPPORTED LIVING,2102952091,1104183
09.05.2019,ADULT SOCIAL CARE,CHOICE SUPPORT,955.24,LD LTS 18-64,SUPPORTED LIVING,2102952105,1104183
09.05.2019,ADULT SOCIAL CARE,CHOICE SUPPORT,808.28,LD LTS 18-64,SUPPORTED LIVING,2102952016,1104183
09.05.2019,ADULT SOCIAL CARE,CHOICE SUPPORT,808.28,LD LTS 18-64,SUPPORTED LIVING,2102952121,1104183
09.05.2019,ADULT SOCIAL CARE,CHOICE SUPPORT,587.84,LD LTS 18-64,SUPPORTED LIVING,2102952030,1104183
09.05.2019,ADULT SOCIAL CARE,CHOICE SUPPORT,587.84,LD LTS 18-64,SUPPORTED LIVING,2102952111,1104183
09.05.2019,ADULT SOCIAL CARE,CHOICE SUPPORT,551.1,LD LTS 18-64,SUPPORTED LIVING,2102952046,1104183
09.05.2019,ADULT SOCIAL CARE,CHOICE SUPPORT,551.1,LD LTS 18-64,SUPPORTED LIVING,2102952125,1104183
09.05.2019,ADULT SOCIAL CARE,DARETHEALTHCARE UK LTD,537.81,LD LTS 18-64,SUPPORTED LIVING,2102952444,1000059149
09.05.2019,ADULT SOCIAL CARE,CHOICE SUPPORT,514.36,LD LTS 18-64,SUPPORTED LIVING,2102952036,1104183
09.05.2019,ADULT SOCIAL CARE,CHOICE SUPPORT,514.36,LD LTS 18-64,SUPPORTED LIVING,2102952056,1104183
09.05.2019,ADULT SOCIAL CARE,CHOICE SUPPORT,514.36,LD LTS 18-64,SUPPORTED LIVING,2102952062,1104183
09.05.2019,ADULT SOCIAL CARE,CHOICE SUPPORT,514.36,LD LTS 18-64,SUPPORTED LIVING,2102952107,1104183
09.05.2019,ADULT SOCIAL CARE,CHOICE SUPPORT,440.88,LD LTS 18-64,SUPPORTED LIVING,2102952028,1104183
09.05.2019,ADULT SOCIAL CARE,CHOICE SUPPORT,440.88,LD LTS 18-64,SUPPORTED LIVING,2102952066,1104183
09.05.2019,ADULT SOCIAL CARE,CHOICE SUPPORT,440.88,LD LTS 18-64,SUPPORTED LIVING,2102952095,1104183
09.05.2019,ADULT SOCIAL CARE,CHOICE SUPPORT,440.88,LD LTS 18-64,SUPPORTED LIVING,2102952101,1104183
09.05.2019,ADULT SOCIAL CARE,REMARK LIVING,391,LD LTS 18-64,SUPPORTED LIVING,2102952483,1000081741
09.05.2019,ADULT SOCIAL CARE,CHOICE SUPPORT,367.4,LD LTS 18-64,SUPPORTED LIVING,2102952014,1104183
09.05.2019,ADULT SOCIAL CARE,CHOICE SUPPORT,367.4,LD LTS 18-64,SUPPORTED LIVING,2102952018,1104183
09.05.2019,ADULT SOCIAL CARE,CHOICE SUPPORT,367.4,LD LTS 18-64,SUPPORTED LIVING,2102952081,1104183
09.05.2019,ADULT SOCIAL CARE,CHOICE SUPPORT,367.4,LD LTS 18-64,SUPPORTED LIVING,2102952115,1104183
09.05.2019,ADULT SOCIAL CARE,CHOICE SUPPORT,330.66,LD LTS 18-64,SUPPORTED LIVING,2102952050,1104183
09.05.2019,ADULT SOCIAL CARE,CHOICE SUPPORT,330.66,LD LTS 18-64,SUPPORTED LIVING,2102952083,1104183
09.05.2019,ADULT SOCIAL CARE,CHOICE SUPPORT,293.92,LD LTS 18-64,SUPPORTED LIVING,2102952012,1104183
09.05.2019,ADULT SOCIAL CARE,CHOICE SUPPORT,293.92,LD LTS 18-64,SUPPORTED LIVING,2102952020,1104183
09.05.2019,ADULT SOCIAL CARE,CHOICE SUPPORT,293.92,LD LTS 18-64,SUPPORTED LIVING,2102952034,1104183
09.05.2019,ADULT SOCIAL CARE,CHOICE SUPPORT,293.92,LD LTS 18-64,SUPPORTED LIVING,2102952048,1104183
09.05.2019,ADULT SOCIAL CARE,CHOICE SUPPORT,293.92,LD LTS 18-64,SUPPORTED LIVING,2102952052,1104183
09.05.2019,ADULT SOCIAL CARE,CHOICE SUPPORT,293.92,LD LTS 18-64,SUPPORTED LIVING,2102952068,1104183
09.05.2019,ADULT SOCIAL CARE,CHOICE SUPPORT,"-11,540.59",LD LTS 18-64,SUPPORTED LIVING,2102947383,1104183
09.05.2019,ADULT SOCIAL CARE,REDACTED PERSONAL DATA,269.8,LD LTS 18-64,SUPPORTED LIVING,REDACTED,REDACTED
09.05.2019,ADULT SOCIAL CARE,REDACTED PERSONAL DATA,269.8,LD LTS 18-64,SUPPORTED LIVING,REDACTED,REDACTED
09.05.2019,ADULT SOCIAL CARE,LONDON CARE LTD,452.24,LD LTS 65+,HOMECARE - C&V,2102952462,1000003398
09.05.2019,ADULT SOCIAL CARE,LONDON CARE LTD,451.63,LD LTS 65+,HOMECARE - C&V,2102952458,1000003398
09.05.2019,ADULT SOCIAL CARE,LONDON CARE LTD,447.64,LD LTS 65+,HOMECARE - C&V,2102952445,1000003398
09.05.2019,ADULT SOCIAL CARE,LONDON CARE LTD,447.64,LD LTS 65+,HOMECARE - C&V,2102952449,1000003398
09.05.2019,ADULT SOCIAL CARE,LONDON CARE LTD,447.64,LD LTS 65+,HOMECARE - C&V,2102952450,1000003398
09.05.2019,ADULT SOCIAL CARE,LONDON CARE LTD,447.64,LD LTS 65+,HOMECARE - C&V,2102952456,1000003398
09.05.2019,ADULT SOCIAL CARE,LONDON CARE LTD,447.48,LD LTS 65+,HOMECARE - C&V,2102952453,1000003398
09.05.2019,ADULT SOCIAL CARE,LONDON CARE LTD,447.48,LD LTS 65+,HOMECARE - C&V,2102952454,1000003398
09.05.2019,ADULT SOCIAL CARE,LONDON CARE LTD,447.48,LD LTS 65+,HOMECARE - C&V,2102952459,1000003398
09.05.2019,ADULT SOCIAL CARE,LONDON CARE LTD,447.48,LD LTS 65+,HOMECARE - C&V,2102952460,1000003398
09.05.2019,ADULT SOCIAL CARE,LONDON CARE LTD,447.48,LD LTS 65+,HOMECARE - C&V,2102952463,1000003398
09.05.2019,ADULT SOCIAL CARE,LONDON CARE LTD,443.64,LD LTS 65+,HOMECARE - C&V,2102952455,1000003398
09.05.2019,ADULT SOCIAL CARE,LONDON CARE LTD,443.49,LD LTS 65+,HOMECARE - C&V,2102952448,1000003398
09.05.2019,ADULT SOCIAL CARE,LONDON CARE LTD,439.64,LD LTS 65+,HOMECARE - C&V,2102952446,1000003398
09.05.2019,ADULT SOCIAL CARE,LONDON CARE LTD,423.98,LD LTS 65+,HOMECARE - C&V,2102952447,1000003398
09.05.2019,ADULT SOCIAL CARE,LONDON CARE LTD,335.73,LD LTS 65+,HOMECARE - C&V,2102952457,1000003398
09.05.2019,ADULT SOCIAL CARE,CHOICE SUPPORT,"6,935.52",LD LTS 65+,SUPPORTED LIVING,2102952072,1104183
09.05.2019,ADULT SOCIAL CARE,CHOICE SUPPORT,"6,935.52",LD LTS 65+,SUPPORTED LIVING,2102952087,1104183
09.05.2019,ADULT SOCIAL CARE,CHOICE SUPPORT,"6,935.52",LD LTS 65+,SUPPORTED LIVING,2102952099,1104183
09.05.2019,ADULT SOCIAL CARE,CHOICE SUPPORT,440.88,LD LTS 65+,SUPPORTED LIVING,2102952038,1104183
09.05.2019,ADULT SOCIAL CARE,CHOICE SUPPORT,440.88,LD LTS 65+,SUPPORTED LIVING,2102952103,1104183
09.05.2019,ADULT SOCIAL CARE,SUPREME CARE SERVICES LTD,"2,872.40",MEM LTS 65+,HOMECARE - C&V,2102952471,1000059416
09.05.2019,ADULT SOCIAL CARE,SUPREME CARE SERVICES LTD,634.6,MEM LTS 65+,HOMECARE - C&V,2102952482,1000059416
09.05.2019,ADULT SOCIAL CARE,REDACTED PERSONAL DATA,431.68,MH LTS 18-64,HOMECARE - SPOT,REDACTED,REDACTED
09.05.2019,ADULT SOCIAL CARE,REDACTED PERSONAL DATA,431.68,MH LTS 18-64,HOMECARE - SPOT,REDACTED,REDACTED
09.05.2019,ADULT SOCIAL CARE,REDACTED PERSONAL DATA,"1,110.10",MH LTS 18-64,SUPPORTED LIVING,REDACTED,REDACTED
09.05.2019,ADULT SOCIAL CARE,REDACTED PERSONAL DATA,876.85,MH LTS 18-64,SUPPORTED LIVING,REDACTED,REDACTED
09.05.2019,ADULT SOCIAL CARE,REDACTED PERSONAL DATA,876.85,MH LTS 18-64,SUPPORTED LIVING,REDACTED,REDACTED
09.05.2019,ADULT SOCIAL CARE,REDACTED PERSONAL DATA,579.18,MH LTS 18-64,SUPPORTED LIVING,REDACTED,REDACTED
09.05.2019,ADULT SOCIAL CARE,REDACTED PERSONAL DATA,524.02,MH LTS 18-64,SUPPORTED LIVING,REDACTED,REDACTED
09.05.2019,ADULT SOCIAL CARE,REDACTED PERSONAL DATA,524.02,MH LTS 18-64,SUPPORTED LIVING,REDACTED,REDACTED
09.05.2019,ADULT SOCIAL CARE,REDACTED PERSONAL DATA,524.02,MH LTS 18-64,SUPPORTED LIVING,REDACTED,REDACTED
09.05.2019,ADULT SOCIAL CARE,REDACTED PERSONAL DATA,498.84,MH LTS 18-64,SUPPORTED LIVING,REDACTED,REDACTED
09.05.2019,ADULT SOCIAL CARE,REDACTED PERSONAL DATA,448.18,MH LTS 18-64,SUPPORTED LIVING,REDACTED,REDACTED
09.05.2019,ADULT SOCIAL CARE,REDACTED PERSONAL DATA,441.28,MH LTS 18-64,SUPPORTED LIVING,REDACTED,REDACTED
09.05.2019,ADULT SOCIAL CARE,REDACTED PERSONAL DATA,441.28,MH LTS 18-64,SUPPORTED LIVING,REDACTED,REDACTED
09.05.2019,ADULT SOCIAL CARE,REDACTED PERSONAL DATA,431.68,MH LTS 18-64,SUPPORTED LIVING,REDACTED,REDACTED
09.05.2019,ADULT SOCIAL CARE,REDACTED PERSONAL DATA,386.12,MH LTS 18-64,SUPPORTED LIVING,REDACTED,REDACTED
09.05.2019,ADULT SOCIAL CARE,REDACTED PERSONAL DATA,386.12,MH LTS 18-64,SUPPORTED LIVING,REDACTED,REDACTED
09.05.2019,ADULT SOCIAL CARE,REDACTED PERSONAL DATA,330.96,MH LTS 18-64,SUPPORTED LIVING,REDACTED,REDACTED
09.05.2019,ADULT SOCIAL CARE,REDACTED PERSONAL DATA,330.96,MH LTS 18-64,SUPPORTED LIVING,REDACTED,REDACTED
09.05.2019,ADULT SOCIAL CARE,REDACTED PERSONAL DATA,330.96,MH LTS 18-64,SUPPORTED LIVING,REDACTED,REDACTED
09.05.2019,ADULT SOCIAL CARE,REDACTED PERSONAL DATA,330.96,MH LTS 18-64,SUPPORTED LIVING,REDACTED,REDACTED
09.05.2019,ADULT SOCIAL CARE,REDACTED PERSONAL DATA,330.96,MH LTS 18-64,SUPPORTED LIVING,REDACTED,REDACTED
09.05.2019,ADULT SOCIAL CARE,REDACTED PERSONAL DATA,330.96,MH LTS 18-64,SUPPORTED LIVING,REDACTED,REDACTED
09.05.2019,ADULT SOCIAL CARE,REDACTED PERSONAL DATA,330.96,MH LTS 18-64,SUPPORTED LIVING,REDACTED,REDACTED
09.05.2019,ADULT SOCIAL CARE,REDACTED PERSONAL DATA,323.76,MH LTS 18-64,SUPPORTED LIVING,REDACTED,REDACTED
09.05.2019,ADULT SOCIAL CARE,REDACTED PERSONAL DATA,323.76,MH LTS 18-64,SUPPORTED LIVING,REDACTED,REDACTED
09.05.2019,ADULT SOCIAL CARE,REDACTED PERSONAL DATA,323.76,MH LTS 18-64,SUPPORTED LIVING,REDACTED,REDACTED
09.05.2019,ADULT SOCIAL CARE,REDACTED PERSONAL DATA,323.76,MH LTS 18-64,SUPPORTED LIVING,REDACTED,REDACTED
09.05.2019,ADULT SOCIAL CARE,REDACTED PERSONAL DATA,285.3,MH LTS 18-64,SUPPORTED LIVING,REDACTED,REDACTED
09.05.2019,ADULT SOCIAL CARE,REDACTED PERSONAL DATA,275.8,MH LTS 18-64,SUPPORTED LIVING,REDACTED,REDACTED
09.05.2019,ADULT SOCIAL CARE,REDACTED PERSONAL DATA,275.8,MH LTS 18-64,SUPPORTED LIVING,REDACTED,REDACTED
09.05.2019,ADULT SOCIAL CARE,REDACTED PERSONAL DATA,275.8,MH LTS 18-64,SUPPORTED LIVING,REDACTED,REDACTED
09.05.2019,ADULT SOCIAL CARE,REDACTED PERSONAL DATA,275.8,MH LTS 18-64,SUPPORTED LIVING,REDACTED,REDACTED
09.05.2019,ADULT SOCIAL CARE,REDACTED PERSONAL DATA,275.8,MH LTS 18-64,SUPPORTED LIVING,REDACTED,REDACTED
09.05.2019,ADULT SOCIAL CARE,REDACTED PERSONAL DATA,275.8,MH LTS 18-64,SUPPORTED LIVING,REDACTED,REDACTED
09.05.2019,ADULT SOCIAL CARE,REDACTED PERSONAL DATA,275.8,MH LTS 18-64,SUPPORTED LIVING,REDACTED,REDACTED
09.05.2019,ADULT SOCIAL CARE,SUPREME CARE SERVICES LTD,601.2,MH LTS 65+,HOMECARE - C&V,2102952481,1000059416
09.05.2019,ADULT SOCIAL CARE,CHOICE SUPPORT,293.92,MH LTS 65+,SUPPORTED LIVING,2102952026,1104183
09.05.2019,ADULT SOCIAL CARE,CHOICE SUPPORT,293.92,MH LTS 65+,SUPPORTED LIVING,2102952058,1104183
09.05.2019,ADULT SOCIAL CARE,REDACTED PERSONAL DATA,"2,564.94",MH LTS 65+,SUPPORTED LIVING,REDACTED,REDACTED
09.05.2019,ADULT SOCIAL CARE,REDACTED PERSONAL DATA,"1,058.54",MH LTS 65+,SUPPORTED LIVING,REDACTED,REDACTED
09.05.2019,ADULT SOCIAL CARE,REDACTED PERSONAL DATA,854.98,MH LTS 65+,SUPPORTED LIVING,REDACTED,REDACTED
09.05.2019,ADULT SOCIAL CARE,REDACTED PERSONAL DATA,634.34,MH LTS 65+,SUPPORTED LIVING,REDACTED,REDACTED
09.05.2019,ADULT SOCIAL CARE,REDACTED PERSONAL DATA,358.54,MH LTS 65+,SUPPORTED LIVING,REDACTED,REDACTED
09.05.2019,ADULT SOCIAL CARE,REDACTED PERSONAL DATA,358.54,MH LTS 65+,SUPPORTED LIVING,REDACTED,REDACTED
09.05.2019,ADULT SOCIAL CARE,SUPREME CARE SERVICES LTD,726.45,PHY LTS 18-64,HOMECARE - C&V,2102952468,1000059416
09.05.2019,ADULT SOCIAL CARE,SUPREME CARE SERVICES LTD,534.4,PHY LTS 18-64,HOMECARE - C&V,2102952465,1000059416
09.05.2019,ADULT SOCIAL CARE,SUPREME CARE SERVICES LTD,534.4,PHY LTS 18-64,HOMECARE - C&V,2102952473,1000059416
09.05.2019,ADULT SOCIAL CARE,SUPREME CARE SERVICES LTD,534.4,PHY LTS 18-64,HOMECARE - C&V,2102952477,1000059416
09.05.2019,ADULT SOCIAL CARE,THAMES HOMECARE SERVICE LTD,930.8,PHY LTS 18-64,HOMECARE - SPOT,2102952404,1000079295
09.05.2019,ADULT SOCIAL CARE,THAMES HOMECARE SERVICE LTD,429.6,PHY LTS 18-64,HOMECARE - SPOT,2102952389,1000079295
09.05.2019,ADULT SOCIAL CARE,THAMES HOMECARE SERVICE LTD,380.38,PHY LTS 18-64,HOMECARE - SPOT,2102952371,1000079295
09.05.2019,ADULT SOCIAL CARE,THAMES HOMECARE SERVICE LTD,371.43,PHY LTS 18-64,HOMECARE - SPOT,2102952374,1000079295
09.05.2019,ADULT SOCIAL CARE,THAMES HOMECARE SERVICE LTD,326.68,PHY LTS 18-64,HOMECARE - SPOT,2102952375,1000079295
09.05.2019,ADULT SOCIAL CARE,THAMES HOMECARE SERVICE LTD,277.45,PHY LTS 18-64,HOMECARE - SPOT,2102952420,1000079295
09.05.2019,ADULT SOCIAL CARE,THAMES HOMECARE SERVICE LTD,268.5,PHY LTS 18-64,HOMECARE - SPOT,2102952409,1000079295
09.05.2019,ADULT SOCIAL CARE,THAMES HOMECARE SERVICE LTD,250.6,PHY LTS 18-64,HOMECARE - SPOT,2102952397,1000079295
09.05.2019,ADULT SOCIAL CARE,REDACTED PERSONAL DATA,524.02,PHY LTS 18-64,SUPPORTED LIVING,REDACTED,REDACTED
09.05.2019,ADULT SOCIAL CARE,SUPREME CARE SERVICES LTD,"2,171.00",PHY LTS 65+,HOMECARE - C&V,2102952464,1000059416
09.05.2019,ADULT SOCIAL CARE,SUPREME CARE SERVICES LTD,"1,002.10",PHY LTS 65+,HOMECARE - C&V,2102952474,1000059416
09.05.2019,ADULT SOCIAL CARE,SUPREME CARE SERVICES LTD,417.52,PHY LTS 65+,HOMECARE - C&V,2102952466,1000059416
09.05.2019,ADULT SOCIAL CARE,SUPREME CARE SERVICES LTD,417.52,PHY LTS 65+,HOMECARE - C&V,2102952478,1000059416
09.05.2019,ADULT SOCIAL CARE,SWK DISABLEMENT ASSN,"2,018.72",PHY LTS 65+,HOMECARE - SPOT,2102952141,1000011698
09.05.2019,ADULT SOCIAL CARE,THAMES HOMECARE SERVICE LTD,"1,029.25",PHY LTS 65+,HOMECARE - SPOT,2102952390,1000079295
09.05.2019,ADULT SOCIAL CARE,SUPREME CARE SERVICES LTD,951.92,PHY LTS 65+,HOMECARE - SPOT,2102952470,1000059416
09.05.2019,ADULT SOCIAL CARE,SUPREME CARE SERVICES LTD,951.92,PHY LTS 65+,HOMECARE - SPOT,2102952472,1000059416
09.05.2019,ADULT SOCIAL CARE,SUPREME CARE SERVICES LTD,951.92,PHY LTS 65+,HOMECARE - SPOT,2102952475,1000059416
09.05.2019,ADULT SOCIAL CARE,THAMES HOMECARE SERVICE LTD,707.05,PHY LTS 65+,HOMECARE - SPOT,2102952382,1000079295
09.05.2019,ADULT SOCIAL CARE,THAMES HOMECARE SERVICE LTD,702.58,PHY LTS 65+,HOMECARE - SPOT,2102952376,1000079295
09.05.2019,ADULT SOCIAL CARE,THAMES HOMECARE SERVICE LTD,689.15,PHY LTS 65+,HOMECARE - SPOT,2102952405,1000079295
09.05.2019,ADULT SOCIAL CARE,THAMES HOMECARE SERVICE LTD,563.85,PHY LTS 65+,HOMECARE - SPOT,2102952422,1000079295
09.05.2019,ADULT SOCIAL CARE,THAMES HOMECARE SERVICE LTD,483.3,PHY LTS 65+,HOMECARE - SPOT,2102952419,1000079295
09.05.2019,ADULT SOCIAL CARE,THAMES HOMECARE SERVICE LTD,407.23,PHY LTS 65+,HOMECARE - SPOT,2102952385,1000079295
09.05.2019,ADULT SOCIAL CARE,THAMES HOMECARE SERVICE LTD,375.9,PHY LTS 65+,HOMECARE - SPOT,2102952379,1000079295
09.05.2019,ADULT SOCIAL CARE,THAMES HOMECARE SERVICE LTD,366.95,PHY LTS 65+,HOMECARE - SPOT,2102952392,1000079295
09.05.2019,ADULT SOCIAL CARE,THAMES HOMECARE SERVICE LTD,349.05,PHY LTS 65+,HOMECARE - SPOT,2102952387,1000079295
09.05.2019,ADULT SOCIAL CARE,THAMES HOMECARE SERVICE LTD,344.58,PHY LTS 65+,HOMECARE - SPOT,2102952395,1000079295
09.05.2019,ADULT SOCIAL CARE,THAMES HOMECARE SERVICE LTD,344.58,PHY LTS 65+,HOMECARE - SPOT,2102952399,1000079295
09.05.2019,ADULT SOCIAL CARE,THAMES HOMECARE SERVICE LTD,299.83,PHY LTS 65+,HOMECARE - SPOT,2102952384,1000079295
09.05.2019,ADULT SOCIAL CARE,THAMES HOMECARE SERVICE LTD,281.93,PHY LTS 65+,HOMECARE - SPOT,2102952401,1000079295
09.05.2019,ADULT SOCIAL CARE,THAMES HOMECARE SERVICE LTD,281.93,PHY LTS 65+,HOMECARE - SPOT,2102952418,1000079295
09.05.2019,ADULT SOCIAL CARE,THAMES HOMECARE SERVICE LTD,250.6,PHY LTS 65+,HOMECARE - SPOT,2102952403,1000079295
09.05.2019,ADULT SOCIAL CARE,CHOICE SUPPORT,293.92,PHY LTS 65+,SUPPORTED LIVING,2102952040,1104183
09.05.2019,ADULT SOCIAL CARE,CHOICE SUPPORT,293.92,PHY LTS 65+,SUPPORTED LIVING,2102952070,1104183
09.05.2019,ADULT SOCIAL CARE,F A ALBIN AND SONS,"2,489.00",PUBLIC FUNERALS S.46,PAYMENTS TO CLIENTS (DIRECT PAYMENTS),2102952660,11313949
09.05.2019,ADULT SOCIAL CARE,F A ALBIN AND SONS,"-2,489.00",PUBLIC FUNERALS S.46,PAYMENTS TO CLIENTS (DIRECT PAYMENTS),2102952766,11313949
09.05.2019,ADULT SOCIAL CARE,J&G MEDICAL LTD,"6,640.50",SAFEGUARDING TEAM,OTHER CONTRACTORS,5902357476,1000076262
09.05.2019,ADULT SOCIAL CARE,THAMES HOMECARE SERVICE LTD,255.08,SUB LTS 65+,HOMECARE - SPOT,2102952412,1000079295
09.05.2019,ASSET MANAGEMENT,FRANKHAM CONSULTANCY GROUP LTD,"1,260.00",DISREPAIR,OTHER R&M,5902356855,1000043952
09.05.2019,ASSET MANAGEMENT,FRANKHAM CONSULTANCY GROUP LTD,930,DISREPAIR,OTHER R&M,5902356810,1000043952
09.05.2019,ASSET MANAGEMENT,FRANKHAM CONSULTANCY GROUP LTD,930,DISREPAIR,OTHER R&M,5902356851,1000043952
09.05.2019,ASSET MANAGEMENT,FRANKHAM CONSULTANCY GROUP LTD,930,DISREPAIR,OTHER R&M,5902356857,1000043952
09.05.2019,ASSET MANAGEMENT,M3 HOUSING LTD,"1,435.00",REPAIRS OPERATIONS,BOOKS & PUBLICATIONS,5902357608,1000059696
09.05.2019,BERMONDSEY AND ROTHERHITHE COMMUNITY COUNCIL,CANADA ESTATE TRA,745,DAY TRIP TO THE COAST,GRANT,CHEQUE PAYMENT,CHEQUE PAYMENT
09.05.2019,BERMONDSEY AND ROTHERHITHE COMMUNITY COUNCIL,SHAD THAMES AREA MANAGEMENT PARTNERSHIP,"4,450.00",HEALTHY STREETS IN SHAD THAMES,GRANT,CHEQUE PAYMENT,CHEQUE PAYMENT
09.05.2019,BERMONDSEY AND ROTHERHITHE COMMUNITY COUNCIL,ROTHERHITHE FESTIVAL GROUP,"5,838.00",ROTHERHITHE FESTIVAL,GRANT,CHEQUE PAYMENT,CHEQUE PAYMENT
09.05.2019,"BOROUGH, BANKSIDE AND WALWORTH COMMUNITY COUNCIL",THE WALWORTH SOCIETY ,"1,980.00",WALWORTH HISTORY FESTIVAL 2019 ,GRANT,CHEQUE PAYMENT,CHEQUE PAYMENT
09.05.2019,"BOROUGH, BANKSIDE AND WALWORTH COMMUNITY COUNCIL",THE WALWORTH SOCIETY ,"1,980.00",WALWORTH HISTORY FESTIVAL 2019 ,GRANT,CHEQUE PAYMENT,CHEQUE PAYMENT
09.05.2019,CENTRAL FUNCTIONS,BRESLIN CONSTRUCTION LTD,"16,500.00",COMMERCIAL PROPERTIES,BUILDING R&M,2102951976,3000001948
09.05.2019,CENTRAL FUNCTIONS,STANBURY BUILDING SERVICES LTD,"1,295.00",COMMERCIAL PROPERTIES,BUILDING R&M,5902357592,1000078207
09.05.2019,CENTRAL FUNCTIONS,CURRIE & BROWN UK LTD,"1,080.00",COMMERCIAL PROPERTIES,PROFESSIONAL FEES,5902357588,1000033455
09.05.2019,CENTRAL FUNCTIONS,REDACTED PERSONAL DATA,"1,174.70",HOME OWNERSHIP INCOME,HOUSING RESIDENTIAL RENTS,REDACTED,REDACTED
09.05.2019,CENTRAL FUNCTIONS,SOUTHWARK NEWSPAPER LTD,348,SERVICE LEVEL AGREEMENTS,LEGAL FEES & COURT COSTS,2102938293,1556957
09.05.2019,CENTRAL FUNCTIONS,LAMBERT SMITH HAMPTON GROUP LTD,"13,485.00",TECHNICAL SUPPORT,PROFESSIONAL FEES,5902357572,1000060045
09.05.2019,CHIEF EXECUTIVE,CUTTLE CONSTRUCTION LTD,"46,271.00",CAPITAL PS (REGEN),CONSTRUCTION,2102951982,3000001695
09.05.2019,CHIEF EXECUTIVE,CUTTLE CONSTRUCTION LTD,"2,358.19",CAPITAL PS (REGEN),CONSTRUCTION,2102951982,3000001695
09.05.2019,CHIEF EXECUTIVE,WARWICK LANDSCAPING LTD,"47,926.02",CAPITAL PS (REGEN),CONSTRUCTION FEES,2102951967,3000001705
09.05.2019,CHIEF EXECUTIVE,COLLINS (CONTRACTORS) LTD,646.33,CAPITAL PS (REGEN),CONSTRUCTION MAIN CONTRACT -CERTIFICATED,2102951975,3000001186
09.05.2019,CHIEF EXECUTIVE'S OFFICE,J C CONSULTANT SERVICES LTD,"8,500.00",CHIEF EXEC'S OFFICE,GRANTS,5902357578,1000042476
09.05.2019,CHIEF EXECUTIVE'S OFFICE,J C CONSULTANT SERVICES LTD,"8,000.00",CHIEF EXEC'S OFFICE,GRANTS,5902357573,1000042476
09.05.2019,CHILDREN AND ADULT,MORGAN SINDALL PLC,"105,784.37",CAPITAL PS (EDUCATION),CONSTR'N SUB CONTRACT - NON CERTIFICATED,2102951971,3000001556
09.05.2019,CHILDREN AND ADULT,KIER SUPPORT SERVICES LIMITED,"95,134.65",CAPITAL PS (SOC SERV),CONSTRUCTION MAIN CONTRACT,2102951978,3000001246
09.05.2019,CHILDREN AND ADULT,DE GRAAFF & PARTNERS LTD,504,CAPITAL PS (SOC SERV),CONSTRUCTION MAIN CONTRACT,5902357629,1000081567
09.05.2019,CHILDREN AND ADULT,DE GRAAFF & PARTNERS LTD,504,CAPITAL PS (SOC SERV),CONSTRUCTION MAIN CONTRACT,5902357629,1000081567
09.05.2019,CHILDREN AND ADULT,DE GRAAFF & PARTNERS LTD,504,CAPITAL PS (SOC SERV),CONSTRUCTION MAIN CONTRACT,5902357629,1000081567
09.05.2019,CHILDREN AND ADULT,DE GRAAFF & PARTNERS LTD,504,CAPITAL PS (SOC SERV),CONSTRUCTION MAIN CONTRACT,5902357629,1000081567
09.05.2019,CHILDREN'S SERVICES,REDACTED PERSONAL DATA,626.4,ADOPTION REFORM GRANT (PART B),PROFESSIONAL FEES,REDACTED,REDACTED
09.05.2019,CHILDREN'S SERVICES,BAKER & JOY COMMUNITY INTEREST COMPANY,279,AIS - PRAC GRP C SET7-9,PROFESSIONAL FEES,5902357715,1000077693
09.05.2019,CHILDREN'S SERVICES,JAMES MARTIN MUGWANYA T/A JOHN SMITH REMOVALS,499,AIS - PRE BIRTH,OTHER PAYMENTS FOR CLIENTS,5902357712,1000078552
09.05.2019,CHILDREN'S SERVICES,ISABELLE GRAVENSTEIN T/A REVIVAL,928,CENTRAL SUPPORT,MEDICAL / HEALTH & SAFETY SERVICES,5902357710,1000027424
09.05.2019,CHILDREN'S SERVICES,BEATRICE WEYDERT,"1,870.00",FAMILY ASSESSMENTS,RESIDENTIAL CARE,5902357713,1000034579
09.05.2019,CHILDREN'S SERVICES,CAMBRIDGE HOUSE & TALBOT,424,FREE AND EARLY LEARNING TEAM,TRAINING,5902357585,11248874
09.05.2019,CHILDREN'S SERVICES,CAMBRIDGE HOUSE & TALBOT,424,FREE AND EARLY LEARNING TEAM,TRAINING,5902357589,11248874
09.05.2019,CHILDREN'S SERVICES,REDACTED PERSONAL DATA,"2,660.00",FRIENDS & FAMILY FOSTERING,PAYMENTS TO CARERS,REDACTED,REDACTED
09.05.2019,CHILDREN'S SERVICES,REDACTED PERSONAL DATA,380,FRIENDS & FAMILY FOSTERING,PAYMENTS TO CARERS,REDACTED,REDACTED
09.05.2019,CHILDREN'S SERVICES,REDACTED PERSONAL DATA,-380,FRIENDS & FAMILY FOSTERING,PAYMENTS TO CARERS,REDACTED,REDACTED
09.05.2019,CHILDREN'S SERVICES,REDACTED PERSONAL DATA,"-2,660.00",FRIENDS & FAMILY FOSTERING,PAYMENTS TO CARERS,REDACTED,REDACTED
09.05.2019,CHILDREN'S SERVICES,GOVERNMENT KNOWLEDGE TRAINING LTD,260,LAC EDUCATION,TRAINING,5902357593,1000067734
09.05.2019,CHILDREN'S SERVICES,NORMANS MUSICAL INSTRUMENTS,950,LEA MUSIC SERVICE(310) - 5018566,EQUIPMENT PURCHASE & REPAIR,5902357509,1000015419
09.05.2019,CHILDREN'S SERVICES,NORMANS MUSICAL INSTRUMENTS,265.05,LEA MUSIC SERVICE(310) - 5018566,EQUIPMENT PURCHASE & REPAIR,5902357518,1000015419
09.05.2019,CHILDREN'S SERVICES,THE ST THOMAS THE APOSTLE COLLEGE,"13,870.00",MATERNITY COVER,SCHOOLS CAPITATION,2102951984,5001000074
09.05.2019,CHILDREN'S SERVICES,CHARLOTTE  SHARMAN PRIMARY SCHOOL,"11,728.00",MATERNITY COVER,SCHOOLS CAPITATION,2102951986,5001000016
09.05.2019,CHILDREN'S SERVICES,BESSEMER GRANGE PRIMARY SCHOOL,"7,773.00",MATERNITY COVER,SCHOOLS CAPITATION,2102951989,5001000009
09.05.2019,CHILDREN'S SERVICES,BOUCHER C OF E PRIMARY SCHOOL,"5,438.00",MATERNITY COVER,SCHOOLS CAPITATION,2102951987,5001000011
09.05.2019,CHILDREN'S SERVICES,OLIVER GOLDSMITH PRIMARY SCHOOL,"3,504.00",MATERNITY COVER,SCHOOLS CAPITATION,2102951988,5001000051
09.05.2019,CHILDREN'S SERVICES,THE APPLETON SCHOOL,"1,500.00",PUPIL PREMIUM CURRENT YEAR,SCHOOLS CAPITATION,2102950496,1000082622
09.05.2019,CHILDREN'S SERVICES,THE CHARTER SCHOOL EDUCATIONAL TRUST,"1,500.00",PUPIL PREMIUM CURRENT YEAR,SCHOOLS CAPITATION,2102950498,1000064975
09.05.2019,CHILDREN'S SERVICES,THE CHARTER SCHOOL EDUCATIONAL TRUST,"1,500.00",PUPIL PREMIUM CURRENT YEAR,SCHOOLS CAPITATION,2102950499,1000064975
09.05.2019,CHILDREN'S SERVICES,GARLINGE PRIMARY SCHOOL AND NURSERY,"1,350.00",PUPIL PREMIUM CURRENT YEAR,SCHOOLS CAPITATION,2102950494,1000082565
09.05.2019,CHILDREN'S SERVICES,THAMESVIEW SCHOOL,600,PUPIL PREMIUM CURRENT YEAR,SCHOOLS CAPITATION,2102950495,1000071184
09.05.2019,CHILDREN'S SERVICES,HE SAFEGUARDING LTD,500,RESOURCE PANEL,SECTION 17 PAYMENTS TO AGENCIES/CARERS,5902357711,1000077530
09.05.2019,CHILDREN'S SERVICES,ZENITH CARS LTD,612,S & FAM SUPP - PRAC GRP B SET 17-19,HIRED VEHICLES,5902357707,1000070570
09.05.2019,CHILDREN'S SERVICES,ZENITH CARS LTD,580,S & FAM SUPP - PRAC GRP B SET 17-19,OTHER PAYMENTS FOR CLIENTS,5902357707,1000070570
09.05.2019,CHILDREN'S SERVICES,LOGICOUS LTD,"1,020.00",S & FAM SUPP - PRAC GRP F SET 29-31,OTHER PAYMENTS FOR CLIENTS,5902357704,1000073852
09.05.2019,CHILDREN'S SERVICES,LOGICOUS LTD,"1,020.00",S & FAM SUPP - PRAC GRP F SET 29-31,OTHER PAYMENTS FOR CLIENTS,5902357704,1000073852
09.05.2019,CHILDREN'S SERVICES,SP HOMES LTD,890.1,S24 CLA,EXTERNAL AGENCIES AND BODIES,2102952004,1000080326
09.05.2019,CHILDREN'S SERVICES,REDACTED PERSONAL DATA,"1,576.11",S24 CLA,EXTERNAL AGENCIES AND BODIES,REDACTED,REDACTED
09.05.2019,CHILDREN'S SERVICES,NETPEX LTD CORPORATE SERVICES,281.1,S24 CLA,OTHER PAYMENTS FOR CLIENTS,2102952006,1000076073
09.05.2019,CHILDREN'S SERVICES,REDACTED PERSONAL DATA,"2,975.10",SCH TRANS - CONTRACT COST,AGENCY STAFF,REDACTED,REDACTED
09.05.2019,CHILDREN'S SERVICES,REDACTED PERSONAL DATA,507,SCH TRANS - CONTRACT COST,CAR MILEAGE EXPENSES,REDACTED,REDACTED
09.05.2019,CHILDREN'S SERVICES,REDACTED PERSONAL DATA,"3,574.80",SCH TRANS - CONTRACT COST,OTHER PAYMENTS FOR CLIENTS,REDACTED,REDACTED
09.05.2019,CHILDREN'S SERVICES,REDACTED PERSONAL DATA,"1,150.00",SCH TRANS - CONTRACT COST,OTHER PAYMENTS FOR CLIENTS,REDACTED,REDACTED
09.05.2019,CHILDREN'S SERVICES,REDACTED PERSONAL DATA,942.4,SCH TRANS - CONTRACT COST,OTHER PAYMENTS FOR CLIENTS,REDACTED,REDACTED
09.05.2019,CHILDREN'S SERVICES,REDACTED PERSONAL DATA,644.8,SCH TRANS - CONTRACT COST,OTHER PAYMENTS FOR CLIENTS,REDACTED,REDACTED
09.05.2019,CHILDREN'S SERVICES,REDACTED PERSONAL DATA,576,SCH TRANS - CONTRACT COST,OTHER PAYMENTS FOR CLIENTS,REDACTED,REDACTED
09.05.2019,CHILDREN'S SERVICES,REDACTED PERSONAL DATA,310.8,SCH TRANS - CONTRACT COST,OTHER PAYMENTS FOR CLIENTS,REDACTED,REDACTED
09.05.2019,CHILDREN'S SERVICES,CHARLOTTE  SHARMAN PRIMARY SCHOOL,"4,018.50",SCHOOLS DIRECT SALARY FUNDING,SCHOOLS CAPITATION,2102952550,5001000016
09.05.2019,CHILDREN'S SERVICES,ST JAMES CE SCHOOL,"3,341.70",SCHOOLS DIRECT SALARY FUNDING,SCHOOLS CAPITATION,2102952551,5001000070
09.05.2019,CHILDREN'S SERVICES,ARC COMMUNITY TRUSTEES,650,SPECIAL GUARDIANSHIP,EXTERNAL AGENCIES AND BODIES,5902357700,1000046206
09.05.2019,CHILDREN'S SERVICES,GOODRICH PRIMARY SCHOOL,"8,737.00",SPORTS FUNDING,SCHOOLS CAPITATION,2102952493,5001000028
09.05.2019,CHILDREN'S SERVICES,BESSEMER GRANGE PRIMARY SCHOOL,"8,733.00",SPORTS FUNDING,SCHOOLS CAPITATION,2102952516,5001000009
09.05.2019,CHILDREN'S SERVICES,PHOENIX PRIMARY SCHOOL,"8,571.00",SPORTS FUNDING,SCHOOLS CAPITATION,2102952512,5001000032
09.05.2019,CHILDREN'S SERVICES,ST JAMES CE SCHOOL,"8,467.00",SPORTS FUNDING,SCHOOLS CAPITATION,2102952525,5001000070
09.05.2019,CHILDREN'S SERVICES,CRAWFORD PRIMARY SCHOOL,"8,454.00",SPORTS FUNDING,SCHOOLS CAPITATION,2102952491,5001000024
09.05.2019,CHILDREN'S SERVICES,IVYDALE PRIMARY SCHOOL,"8,375.00",SPORTS FUNDING,SCHOOLS CAPITATION,2102952498,5001000038
09.05.2019,CHILDREN'S SERVICES,CAMELOT PRIMARY SCHOOL,"8,325.00",SPORTS FUNDING,SCHOOLS CAPITATION,2102952486,5001000014
09.05.2019,CHILDREN'S SERVICES,ROTHERHITHE PRIMARY SCHOOL,"8,262.00",SPORTS FUNDING,SCHOOLS CAPITATION,2102952506,5001000058
09.05.2019,CHILDREN'S SERVICES,ST JOHNS & ST CLEMENTS CE SCHOOL,"8,229.00",SPORTS FUNDING,SCHOOLS CAPITATION,2102952526,5001000073
09.05.2019,CHILDREN'S SERVICES,BRUNSWICK PARK PRIMARY SCHOOL,"8,212.00",SPORTS FUNDING,SCHOOLS CAPITATION,2102952517,5001000013
09.05.2019,CHILDREN'S SERVICES,JOHN RUSKIN PRIMARY SCHOOL,"8,171.00",SPORTS FUNDING,SCHOOLS CAPITATION,2102952499,5001000040
09.05.2019,CHILDREN'S SERVICES,DOG KENNEL HILL PRIMARY SCHOOL,"8,133.00",SPORTS FUNDING,SCHOOLS CAPITATION,2102952492,5001000025
09.05.2019,CHILDREN'S SERVICES,SOUTHWARK PARK PRIMARY SCHOOL,"8,117.00",SPORTS FUNDING,SCHOOLS CAPITATION,2102952508,5001000062
09.05.2019,CHILDREN'S SERVICES,OLIVER GOLDSMITH PRIMARY SCHOOL,"8,112.00",SPORTS FUNDING,SCHOOLS CAPITATION,2102952515,5001000051
09.05.2019,CHILDREN'S SERVICES,LYNDHURST PRIMARY SCHOOL,"8,100.00",SPORTS FUNDING,SCHOOLS CAPITATION,2102952502,5001000043
09.05.2019,CHILDREN'S SERVICES,ST FRANCIS'S RC PRIMARY SCHOOL,"8,096.00",SPORTS FUNDING,SCHOOLS CAPITATION,2102952522,5001000067
09.05.2019,CHILDREN'S SERVICES,CHARLES DICKENS PRIMARY SCHOOL,"8,092.00",SPORTS FUNDING,SCHOOLS CAPITATION,2102952487,5001000015
09.05.2019,CHILDREN'S SERVICES,COBOURG PRIMARY SCHOOL,"8,083.00",SPORTS FUNDING,SCHOOLS CAPITATION,2102952488,5001000021
09.05.2019,CHILDREN'S SERVICES,HEBER PRIMARY SCHOOL,"8,071.00",SPORTS FUNDING,SCHOOLS CAPITATION,2102952495,5001000035
